Workbook

Sheet Yupi (41) (hidden)
D1: FRANQUICIADO | E1: FERNANDO ROJAS | M1: DESCUENTO | S1: 0.18 | T1: DIAS MES | W1: DIA HABIL
D2: CODIGO | M2: ZONA
D3: FECHA | E3: =TODAY() -> 2012-09-10 | M3: VALOR PEDIDO | S3: =S82 -> 89349.46714 | T3: 26 | W3: 3
B4: Codigo | C4: Codigo Barras | D4: Descripción | E4: Displays por paca | F4: Unds por Display | G4: Unds por Paca | H4: Iva | I4: Precio Antes de Iva | J4: Precio incluido IVA | K4: Valor Display al tendero | L4: PVP Sugerido (Und) | M4: PACAS | N4: UNIDADES | O4: v.antes iva | P4: Descuento | Q4: total | R4: iva | S4: Total a Pagar | T4: PPTO DIA | U4: PPTO DIA HABIL | V4: VENTA ACUMULADA | W4: CUMP DIA HABIL | X4: 1 | Y4: =+X4+1 -> 2 | Z4: 3 | AA4: 4 | AB4: 5 | AC4: 6 | AD4: 7 | AE4: 8 | AF4: 9 | AG4: 10 | AH4: 11 | AI4: 12 | AJ4: 13 | AK4: 14 | AL4: 15 | AM4: 16 | AN4: 17 | AO4: 18 | AP4: 19 | AQ4: 20 | AR4: 21 | AS4: 22 | AT4: 23 | AU4: 24 | AV4: 25 | AW4: 26 | AX4: VENTA TOTAL | AY4: PPTO | AZ4: DIFERENCIA
A5: EXTRUIDOS | B5: 007695 | C5: 7703133078771 | D5: YUPIS QUESO 45g X 36 X 1 AS | E5: 36 | F5: 1 | G5: =+E5*F5 -> 36 | H5: 0.16 | I5: 560 | J5: =+I5+I5*H5 -> 649.6 | K5: =+J5*F5 -> 649.6 | L5: 700 | M5: =+N5/G5 -> 0 | O5: =+N5*I5 -> 0 | P5: =+O5*$O$83 -> 0 | Q5: =+O5-P5 -> 0 | R5: =+Q5*H5 -> 0 | S5: =+R5+Q5 -> 0 | T5: =AX5*G5 -> 0 | U5: =+$W$3*T5 -> 0 | V5: =SUM(X5:AW5) -> 0 | W5: =+V5/U5 ->  | AZ5: =+AY5-AX5 -> 0
B6: 007164 | C6: 7703133077309 | D6: YUPIS SALADO 60g X 36 X 1 AS | E6: 36 | F6: 1 | G6: =+E6*F6 -> 36 | H6: 0.16 | I6: =650/1.16 -> 560.3448276 | J6: 650 | K6: 650 | L6: 700 | M6: 0 | O6: 0 | P6: 0 | Q6: 0 | R6: 0 | S6: 0 | T6: 0 | U6: 0 | V6: 720 | X6: =36*20 -> 720 | AZ6: =+AY6-AX6 -> 0
B7: 007899 | D7: YUPIS PICANTE 45g X 36 X 1 AS | E7: 36 | F7: 1 | G7: 36 | H7: 0.16 | I7: =650/1.16 -> 560.3448276 | J7: 650 | K7: 650 | L7: 700 | M7: 0 | O7: 0 | P7: 0 | Q7: 0 | R7: 0 | S7: 0 | T7: 0 | U7: 0 | V7: 0 | AZ7: 0
B8: 07881 | C8: 7703133078818 | D8: YUPI CARAMELO 50gX36X1 AS | E8: 36 | F8: 1 | G8: 36 | H8: 0.16 | I8: =650/1.16 -> 560.3448276 | J8: 650 | K8: 650 | L8: 700 | M8: 0 | O8: 0 | P8: 0 | Q8: 0 | R8: 0 | S8: 0 | T8: 0 | U8: 0 | V8: 0 | AZ8: 0
B9: 007742 | D9: YUPI AREQUIQUESO 45 GR | E9: 36 | F9: 1 | G9: 36 | H9: 0.16 | I9: =650/1.16 -> 560.3448276 | J9: =+I9+I9*H9 -> 650 | K9: =+J9*F9 -> 650 | L9: 700 | M9: 0 | O9: =+N9*I9 -> 0 | P9: 0 | Q9: =+O9-P9 -> 0 | R9: =+Q9*H9 -> 0 | S9: 0 | T9: =AX9*G9 -> 0 | U9: =+$W$3*T9 -> 0 | V9: =SUM(X9:AW9) -> 0 | W9: =+V9/U9 ->  | AZ9: 0
B10: 102174 | C10: 7703133021739 | D10: YUPIS SALADO 10g X 12 X 20 DE | E10: 20 | F10: 12 | G10: 240 | H10: 0.16 | I10: =144/1.16 -> 124.137931 | J10: 144 | K10: 1728 | L10: 200 | M10: 0 | O10: 0 | P10: 0 | Q10: 0 | R10: 0 | S10: 0 | T10: 0 | U10: 0 | V10: 960 | X10: =240*4 -> 960 | AZ10: 0
B11: 07716 | C11: 7703133077248 | D11: TICK CHEESE 100G X 24 X 1 AS | E11: 24 | F11: 1 | G11: 24 | H11: 0.16 | I11: 767.2 | J11: 889.952 | K11: 889.952 | L11: 1000 | M11: 0 | O11: 0 | P11: 0 | Q11: 0 | R11: 0 | S11: 0 | T11: 0 | U11: 0 | V11: 0 | AZ11: 0
B12: 107729 | C12: 7703133077194 | D12: TICK CHEESE 40g X 12 X 6 DE | E12: 6 | F12: 12 | G12: 72 | H12: 0.16 | I12: 396 | J12: 459.36 | K12: 5512.32 | L12: 600 | M12: 0 | O12: 0 | P12: 0 | Q12: 0 | R12: 0 | S12: 0 | T12: 0 | U12: 0 | V12: 0 | AZ12: 0
B13: 02122 | C13: 7703133021227 | D13: PALOMITAS CARAMELO 68g X 36 X 1 AS | E13: 36 | F13: 1 | G13: 36 | H13: 0.16 | I13: 582 | J13: 675.12 | K13: 675.12 | L13: 800 | M13: 0 | O13: 0 | P13: 0 | Q13: 0 | R13: 0 | S13: 0 | T13: 0 | U13: 0 | V13: 0 | AZ13: 0
B14: 102117 | C14: 7703133021166 | D14: PALOMITAS CARAMELO 20g X 12 X 12 DE | E14: 12 | F14: 12 | G14: 144 | H14: 0.16 | I14: 344.8 | J14: 399.968 | K14: 4799.616 | L14: 500 | M14: 0 | O14: 0 | P14: 0 | Q14: 0 | R14: 0 | S14: 0 | T14: 0 | U14: 0 | V14: 0 | AZ14: 0
A15: RIZADAS | B15: 109128 | C15: 7703133091275 | D15: RIZADAS NATURAL 30g X 12 X 6 DE | E15: 6 | F15: 12 | G15: 72 | H15: 0.16 | I15: =750/1.16 -> 646.5517241 | J15: =+I15+I15*H15 -> 750 | K15: =+J15*F15 -> 9000 | L15: 800 | M15: =+N15/G15 -> 0 | O15: =+N15*I15 -> 0 | P15: 0 | Q15: =+O15-P15 -> 0 | R15: =+Q15*H15 -> 0 | S15: =+R15+Q15 -> 0 | AZ15: 0
B16: 109130 | C16: 7703133070324 | D16: RIZADAS POLLO 30g X 12 X 6 DE | E16: 6 | F16: 12 | G16: 72 | H16: 0.16 | I16: =750/1.16 -> 646.5517241 | J16: 750 | K16: 9000 | L16: 800 | M16: 0 | O16: 0 | P16: 0 | Q16: 0 | R16: 0 | S16: 0 | T16: 0 | U16: 0 | V16: 0 | AZ16: 0
B17: 109132 | C17: 7703133070362 | D17: RIZADAS MAYONESA 30g X 12 X 6 DE | E17: 6 | F17: 12 | G17: 72 | H17: 0.16 | I17: =750/1.16 -> 646.5517241 | J17: 750 | K17: 9000 | L17: 800 | M17: 0 | O17: 0 | P17: 0 | Q17: 0 | R17: 0 | S17: 0 | T17: 0 | U17: 0 | V17: 0 | AZ17: 0
B18: 109134 | C18: 7703133070348 | D18: RIZADAS LIMON 30g X 12 X 6 DE | E18: 6 | F18: 12 | G18: 72 | H18: 0.16 | I18: =750/1.16 -> 646.5517241 | J18: 750 | K18: 9000 | L18: 800 | M18: 0 | O18: 0 | P18: 0 | Q18: 0 | R18: 0 | S18: 0 | T18: 0 | U18: 0 | V18: 0 | AZ18: 0
B19: 107029 | C19: 7703133070287 | D19: RIZADAS BBQ RANCHERA 28g X 12 X 6 DE | E19: 6 | F19: 12 | G19: 72 | H19: 0.16 | I19: 581.9 | J19: 675.004 | K19: 8100.048 | L19: 800 | M19: =+N19/G19 -> 0 | O19: 0 | P19: 0 | Q19: 0 | R19: 0 | S19: 0 | T19: 0 | U19: 0 | V19: 0 | AZ19: 0
B20: 107122 | D20: RIZADAS MEXICAN FUSION 28g X 12 X 6 DE | E20: 6 | F20: 12 | G20: 72 | H20: 0.16 | I20: =750/1.16 -> 646.5517241 | J20: 750 | K20: 9000 | L20: 800 | M20: 0 | O20: 0 | P20: 0 | Q20: 0 | R20: 0 | S20: 0 | T20: 0 | U20: 0 | V20: 0 | AZ20: 0
B21: 107587 | C21: 7703133072922 | D21: RIZADAS NATURAL 115g X 20 X 1 AS | E21: 20 | F21: 1 | G21: 20 | H21: 0.16 | I21: =1907/1.16 -> 1643.965517 | J21: 1907 | K21: 1907 | L21: 2300 | M21: 0 | O21: 0 | P21: 0 | Q21: 0 | R21: 0 | S21: 0 | T21: 0 | U21: 0 | V21: 0 | AZ21: 0
B22: 107588 | C22: 7703133072946 | D22: RIZADAS MAYONESA 115g X 20 X 1 AS | E22: 20 | F22: 1 | G22: 20 | H22: 0.16 | I22: =1907/1.16 -> 1643.965517 | J22: 1907 | K22: 1907 | L22: 2300 | M22: 0 | O22: 0 | P22: 0 | Q22: 0 | R22: 0 | S22: 0 | T22: 0 | U22: 0 | V22: 0 | AZ22: 0
B23: 107586 | C23: 7703133072984 | D23: RIZADAS LIMON 115g X 20 X 1 AS | E23: 20 | F23: 1 | G23: 20 | H23: 0.16 | I23: =1907/1.16 -> 1643.965517 | J23: 1907 | K23: 1907 | L23: 2300 | M23: 0 | O23: 0 | P23: 0 | Q23: 0 | R23: 0 | S23: 0 | T23: 0 | U23: 0 | V23: 0 | AZ23: 0
B24: 107592 | C24: 7703133078856 | D24: RIZADAS POLLO 115g X 20 X 1 AS | E24: 20 | F24: 1 | G24: 20 | H24: 0.16 | I24: =1907/1.16 -> 1643.965517 | J24: 1907 | K24: 1907 | L24: 2300 | M24: 0 | O24: 0 | P24: 0 | Q24: 0 | R24: 0 | S24: 0 | T24: 0 | U24: 0 | V24: 20 | X24: 20 | AZ24: 0
B25: 007111 | D25: RIZADAS MEXICAN FUSION 115g X 20 X 1 AS | E25: 20 | F25: 1 | G25: 20 | H25: 0.16 | I25: 1508 | J25: =+I25+I25*H25 -> 1749.28 | K25: =+J25*F25 -> 1749.28 | L25: 1800 | M25: =+N25/G25 -> 0 | O25: =+N25*I25 -> 0 | P25: 0 | Q25: =+O25-P25 -> 0 | R25: =+Q25*H25 -> 0 | S25: =+R25+Q25 -> 0 | T25: =AX25*G25 -> 0 | U25: =+$W$3*T25 -> 0 | V25: =SUM(X25:AW25) -> 0 | W25: =+V25/U25 ->  | AZ25: 0
B26: 107443 | C26: 7703133072953 | D26: RIZADAS NATURAL 45GX8X6 DE | E26: 6 | F26: 8 | G26: 48 | H26: 0.16 | I26: 758.87 | J26: =+I26+I26*H26 -> 880.2892 | K26: =+J26*F26 -> 7042.3136 | L26: 1000 | M26: =+N26/G26 -> 0 | O26: =+N26*I26 -> 0 | P26: 0 | Q26: =+O26-P26 -> 0 | R26: =+Q26*H26 -> 0 | S26: =+R26+Q26 -> 0 | T26: =AX26*G26 -> 0 | U26: =+$W$3*T26 -> 0 | V26: =SUM(X26:AW26) -> 0 | W26: =+V26/U26 -> 
B27: 107295 | C27: 7703133072953 | D27: RIZADAS MAYONESA 45GX8X6 DE | E27: 6 | F27: 8 | G27: 48 | H27: 0.16 | I27: 758.87 | J27: 880.2892 | K27: 7042.3136 | L27: 1000 | M27: 0.5 | N27: 24 | O27: 18212.88 | P27: 3278.3184 | Q27: 14934.5616 | R27: 2389.529856 | S27: 17324.09146 | T27: 0 | U27: 0 | V27: 0 | AZ27: 0
B28: 107300 | C28: 7703133073011 | D28: RIZADAS POLLO 45GX8X6 DE | E28: 6 | F28: 8 | G28: 48 | H28: 0.16 | I28: 758.87 | J28: 880.2892 | K28: 7042.3136 | L28: 1000 | M28: 0.3333333333 | N28: 16 | O28: 12141.92 | P28: 2185.5456 | Q28: 9956.3744 | R28: 1593.019904 | S28: 11549.3943 | T28: 0 | U28: 0 | V28: 240 | X28: =48*5 -> 240 | AZ28: 0
B29: 107299 | C29: 7703133072991 | D29: RIZADAS LIMON 45GX8X6 DE | E29: 6 | F29: 8 | G29: 48 | H29: 0.16 | I29: 758.87 | J29: 880.2892 | K29: 7042.3136 | L29: 1000 | M29: 0.5 | N29: 24 | O29: 18212.88 | P29: 3278.3184 | Q29: 14934.5616 | R29: 2389.529856 | S29: 17324.09146 | T29: 0 | U29: 0 | V29: 0 | AZ29: 0
A30: LIZAS | B30: 106982 | C30: 7703133070409 | D30: LIZA´S S/TOMATE 30g X 12 X 5 DE | E30: 5 | F30: 12 | G30: 60 | H30: 0.16 | I30: =715/1.16 -> 616.3793103 | J30: 715 | K30: 8580 | L30: 800 | M30: 0 | O30: 0 | P30: 0 | Q30: 0 | R30: 0 | S30: 0 | T30: 0 | U30: 0 | V30: 0 | AZ30: 0
B31: 106983 | C31: 7703133072423 | D31: LIZA´S S/ROSADA 30g X 12 X 5 DE | E31: 5 | F31: 12 | G31: 60 | H31: 0.16 | I31: =715/1.16 -> 616.3793103 | J31: 715 | K31: 8580 | L31: 800 | M31: 0 | O31: 0 | P31: 0 | Q31: 0 | R31: 0 | S31: 0 | T31: 0 | U31: 0 | V31: 0 | AZ31: 0
B32: 107380 | C32: 7703133070461 | D32: LIZA'S POLLO 30g X 12 X 5 DE | E32: 5 | F32: 12 | G32: 60 | H32: 0.16 | I32: =715/1.16 -> 616.3793103 | J32: 715 | K32: 8580 | L32: 800 | M32: 0 | O32: 0 | P32: 0 | Q32: 0 | R32: 0 | S32: 0 | T32: 0 | U32: 0 | V32: 0 | AZ32: 0
B33: 107132 | C33: 7703133070447 | D33: LIZA´S LIMÓN 30g X 12 X 5 DE | E33: 5 | F33: 12 | G33: 60 | H33: 0.16 | I33: =715/1.16 -> 616.3793103 | J33: 715 | K33: 8580 | L33: 800 | M33: 0 | O33: 0 | P33: 0 | Q33: 0 | R33: 0 | S33: 0 | T33: 0 | U33: 0 | V33: 0 | AZ33: 0
A34: MIXTOS | B34: 07260 | C34: 7703133072380 | D34: EL GOLPE 110g X 24 X 1 AS | E34: 24 | F34: 1 | G34: 24 | H34: 0.16 | I34: 1379.31 | J34: 1599.9996 | K34: 1599.9996 | L34: 1800 | M34: 0 | O34: 0 | P34: 0 | Q34: 0 | R34: 0 | S34: 0 | T34: 0 | U34: 0 | V34: 24 | X34: 24 | AZ34: 0
B35: 107258 | C35: 7703133077231 | D35: GOLPE 30g X 12 X 6 DE | E35: 6 | F35: 12 | G35: 72 | H35: 0.16 | I35: 435.34 | J35: 504.9944 | K35: 6059.9328 | L35: 1000 | M35: 0 | O35: 0 | P35: 0 | Q35: 0 | R35: 0 | S35: 0
B36: 107726 | C36: 7703133077231 | D36: GOLPE MIX 45g X 8 X 6 DE | E36: 6 | F36: 8 | G36: 48 | H36: 0.16 | I36: 733 | J36: 850.28 | K36: 6802.24 | L36: 1000 | M36: 0.3333333333 | N36: 16 | O36: 11728 | P36: 2111.04 | Q36: 9616.96 | R36: 1538.7136 | S36: 11155.6736 | T36: 0 | U36: 0 | V36: 0 | AZ36: 0
B37: 107836 | C37: 7703133072571 | D37: EL GOLPE 45 gr 8 X 6 DE | E37: 6 | F37: 8 | G37: 48 | H37: 0.16 | I37: 733 | J37: 850.28 | K37: 6802.24 | L37: 1000 | M37: 0 | O37: 0 | P37: =+O37*$O$83 -> 0 | Q37: 0 | R37: 0 | S37: 0 | T37: 0 | U37: 0 | V37: 144 | X37: =48*3 -> 144 | AZ37: 0
B38: 107254 | C38: 7703133072540 | D38: EL GOLPE LIMON 45 gr 8 X 6 DE | E38: 6 | F38: 8 | G38: 48 | H38: 0.16 | I38: 733 | J38: 850.28 | K38: 6802.24 | L38: 1000 | M38: 0 | O38: 0 | P38: 0 | Q38: 0 | R38: 0 | S38: 0 | T38: 0 | U38: 0 | V38: 0 | AZ38: 0
B39: 107261 | C39: 7703133072533 | D39: EL GOLPE RANCHERO 45G X 8 X 6 DE | E39: 6 | F39: 8 | G39: 48 | H39: 0.16 | I39: 733 | J39: 850.28 | K39: 6802.24 | L39: 1000 | M39: 0.5 | N39: 24 | O39: 17592 | P39: 3166.56 | Q39: 14425.44 | R39: 2308.0704 | S39: 16733.5104 | T39: 0 | U39: 0 | V39: 480 | X39: 480 | AZ39: 0
B40: 107590 | C40: 7703133072496 | D40: GOLPE RANCHERO 140 GR 17 X 1 AS | E40: 17 | F40: 1 | G40: =+E40*F40 -> 17 | H40: 0.16 | I40: 2161 | J40: =+I40+I40*H40 -> 2506.76 | K40: =+J40*F40 -> 2506.76 | L40: 2800 | M40: =+N40/G40 -> 0 | O40: =+N40*I40 -> 0 | P40: 0 | Q40: =+O40-P40 -> 0 | R40: =+Q40*H40 -> 0 | S40: =+R40+Q40 -> 0 | T40: =AX40*G40 -> 0 | U40: =+$W$3*T40 -> 0 | V40: =SUM(X40:AW40) -> 0 | W40: =+V40/U40 ->  | AZ40: 0
B41: 107465 | D41: WOW MIX NATURAL 45 gr X 8 X 6 DE | E41: 6 | F41: 8 | G41: =+E41*F41 -> 48 | H41: 0.16 | I41: =850/1.16 -> 732.7586207 | J41: =+I41+I41*H41 -> 850 | K41: =+J41*F41 -> 6800 | L41: 1000 | M41: =+N41/G41 -> 0 | O41: =+N41*I41 -> 0 | P41: 0 | Q41: =+O41-P41 -> 0 | R41: =+Q41*H41 -> 0 | S41: =+R41+Q41 -> 0 | T41: =AX41*G41 -> 0 | U41: =+$W$3*T41 -> 0 | V41: =SUM(X41:AW41) -> 0 | W41: =+V41/U41 ->  | AZ41: 0
B42: 107445 | D42: WOW MIX QUESO 45 gr X 8 X 6 DE | E42: 6 | F42: 8 | G42: =+E42*F42 -> 48 | H42: 0.16 | I42: =850/1.16 -> 732.7586207 | J42: =+I42+I42*H42 -> 850 | K42: =+J42*F42 -> 6800 | L42: 1000 | M42: =+N42/G42 -> 0 | O42: =+N42*I42 -> 0 | P42: 0 | Q42: =+O42-P42 -> 0 | R42: =+Q42*H42 -> 0 | S42: =+R42+Q42 -> 0 | T42: =AX42*G42 -> 0 | U42: =+$W$3*T42 -> 0 | V42: =SUM(X42:AW42) -> 0 | W42: =+V42/U42 ->  | AZ42: 0
B43: 107447 | D43: WOW MIX BBQ 45 gr X 8 X 6 DE | E43: 6 | F43: 8 | G43: =+E43*F43 -> 48 | H43: 0.16 | I43: 732.8 | J43: =+I43+I43*H43 -> 850.048 | K43: =+J43*F43 -> 6800.384 | L43: 1000 | M43: =+N43/G43 -> 0 | O43: =+N43*I43 -> 0 | P43: 0 | Q43: =+O43-P43 -> 0 | R43: =+Q43*H43 -> 0 | S43: =+R43+Q43 -> 0 | T43: =AX43*G43 -> 0 | U43: =+$W$3*T43 -> 0 | V43: =SUM(X43:AW43) -> 240 | W43: =+V43/U43 ->  | X43: =48*5 -> 240 | AZ43: 0
A44: TOSTIS | B44: 007226 | C44: 7703133072380 | D44: TOSTI AREPAS 150g X 17 X 1 AS | E44: 17 | F44: 1 | G44: 17 | H44: 0.1 | I44: 1545 | J44: 1699.5 | K44: 1699.5 | L44: 1800 | M44: 0 | O44: 0 | P44: 0 | Q44: 0 | R44: 0 | S44: 0 | T44: 0 | U44: 0 | V44: 0 | AZ44: 0
B45: 107228 | C45: 7703133072274 | D45: TOSTIAREPA 28 G X12 X6 DE | E45: 6 | F45: 12 | G45: 72 | H45: 0.1 | I45: 364 | J45: 400.4 | K45: 4804.8 | L45: 500 | M45: 0 | O45: 0 | P45: 0 | Q45: 0 | R45: 0 | S45: 0 | T45: 0 | U45: 0 | V45: 72 | X45: 72 | AZ45: 0
B46: 107240 | C46: 7703133072397 | D46: TOSTI EMPANADA CARNE 28GX12X6 DE | E46: 6 | F46: 12 | G46: 72 | H46: 0.1 | I46: 364 | J46: 400.4 | K46: 4804.8 | L46: 500 | M46: 0 | O46: 0 | P46: 0 | Q46: 0 | R46: 0 | S46: 0 | T46: 0 | U46: 0 | V46: 0 | AZ46: 0
B47: 107234 | C47: 7703133072335 | D47: TOSTI EMPANADA LIMON 28 G X 12 X 6 DE | E47: 6 | F47: 12 | G47: 72 | H47: 0.1 | I47: 364 | J47: 400.4 | K47: 4804.8 | L47: 500 | M47: 0.3333333333 | N47: 24 | O47: 8736 | P47: 1572.48 | Q47: 7163.52 | R47: 716.352 | S47: 7879.872 | T47: 0 | U47: 0 | V47: 1080 | X47: =72*15 -> 1080 | AZ47: 0
B48: 107220 | C48: 7703133072199 | D48: TOSTI PIZZA POLLO 28G X 12 X 6 DE | E48: 6 | F48: 12 | G48: 72 | H48: 0.1 | I48: 364 | J48: 400.4 | K48: 4804.8 | L48: 500 | M48: 0 | O48: 0 | P48: 0 | Q48: 0 | R48: 0 | S48: 0 | T48: 0 | U48: 0 | V48: 72 | X48: 72 | AZ48: 0
B49: 107222 | C49: 7703133072199 | D49: TOSTI PIZZA QUESO 28G X 12 X 6 DE | E49: 6 | F49: 12 | G49: 72 | H49: 0.1 | I49: 364 | J49: 400.4 | K49: 4804.8 | L49: 500 | M49: 0 | O49: 0 | P49: 0 | Q49: 0 | R49: 0 | S49: 0 | T49: 0 | U49: 0 | V49: 0 | AZ49: 0
B50: 107333 | D50: TOSTI NACHOS QUESO 28 GR X 12 X 6 DE | E50: 6 | F50: 12 | G50: 72 | H50: 0.1 | I50: 364 | J50: 400.4 | K50: 4804.8 | L50: 500 | M50: 0 | O50: 0 | P50: 0 | Q50: 0 | R50: 0 | S50: 0 | T50: 0 | U50: 0 | V50: 144 | X50: =72*2 -> 144 | AZ50: 0
B51: 107231 | C51: 7703133072304 | D51: TOSTIEMPANADA QUESO PICANTE 28G X 12 X 6 | E51: 6 | F51: 12 | G51: 72 | H51: 0.1 | I51: 364 | J51: 400.4 | K51: 4804.8 | L51: 500 | M51: 0 | O51: 0 | P51: 0 | Q51: 0 | R51: 0 | S51: 0 | T51: 0 | U51: 0 | V51: 0 | AZ51: 0
B52: 107335 | D52: TOSTI NACHOS CHILE LIMON 28 GR X 12 X 6 | E52: 6 | F52: 12 | G52: 72 | H52: 0.1 | I52: 364 | J52: 400.4 | K52: 4804.8 | L52: 500 | M52: 0 | O52: 0 | P52: 0 | Q52: 0 | R52: 0 | S52: 0 | T52: 0 | U52: 0 | V52: 0 | AZ52: 0
B53: 107485 | C53: 7703133079996 | D53: TOSTI PLATANITOS 30 GR X 12 X 6 DE | E53: 6 | F53: 12 | G53: 72 | H53: 0.16 | I53: 388 | J53: 450.08 | K53: 5400.96 | L53: 600 | M53: 0 | O53: 0 | P53: 0 | Q53: 0 | R53: 0 | S53: 0 | T53: 0 | U53: 0 | V53: 72 | X53: 72 | AZ53: 0
B54: 107561 | D54: TOSTI NACHOS 45 GR 8 X 6 | E54: 6 | F54: 8 | G54: 48 | H54: 0.1 | I54: =650/1.1 -> 590.9090909 | J54: 650 | K54: 5200 | L54: 800 | M54: 0 | O54: 0 | P54: 0 | Q54: 0 | R54: 0 | S54: 0 | T54: 0 | U54: 0 | V54: 0
B55: 007337 | C55: 7703133079996 | D55: TOSTI NACHOS CHILE LIMON 150 GR X 17 X 1 AS | E55: 17 | F55: 1 | G55: 17 | H55: 0.1 | I55: 1545 | J55: =+I55+I55*H55 -> 1699.5 | K55: =+J55*F55 -> 1699.5 | L55: 1800 | M55: =+N55/G55 -> 0 | O55: =+N55*I55 -> 0 | P55: 0 | Q55: =+O55-P55 -> 0 | R55: =+Q55*H55 -> 0 | S55: =+R55+Q55 -> 0 | T55: =AX55*G55 -> 0 | U55: 0 | V55: =SUM(X55:AW55) -> 0 | W55: =+V55/U55 ->  | AZ55: 0
B56: 007338 | C56: 7703133079996 | D56: TOSTI NACHOS QUESO 150 GR X 17 X 1 AS | E56: 17 | F56: 1 | G56: 17 | H56: 0.1 | I56: 1545 | J56: =+I56+I56*H56 -> 1699.5 | K56: =+J56*F56 -> 1699.5 | L56: 1800 | M56: =+N56/G56 -> 0 | O56: =+N56*I56 -> 0 | P56: 0 | Q56: =+O56-P56 -> 0 | R56: =+Q56*H56 -> 0 | S56: =+R56+Q56 -> 0 | T56: =AX56*G56 -> 0 | U56: 0 | V56: =SUM(X56:AW56) -> 0 | W56: =+V56/U56 ->  | AZ56: 0
A57: OTROS | B57: 107574 | C57: 77031330200227 | D57: MEKATROCITOS POLLO 28 GR X 12 X 8 DE | E57: 8 | F57: 12 | G57: 96 | H57: 0.1 | I57: 273 | J57: 300.3 | K57: 3603.6 | L57: 400 | M57: 0 | O57: 0 | P57: 0 | Q57: 0 | R57: 0 | S57: 0 | T57: 0 | U57: 0 | V57: 0 | AZ57: 0
B58: 02424 | C58: 7703133024242 | D58: TOZINETAS FRED 40g X 40 X 1 AS | E58: 40 | F58: 1 | G58: 40 | H58: 0.16 | I58: 954.55 | J58: 1107.278 | K58: 1107.278 | L58: 1280 | M58: 0 | O58: 0 | P58: 0 | Q58: 0 | R58: 0 | S58: 0 | T58: 0 | U58: 0 | V58: 0 | AZ58: 0
B59: 107385 | C59: 7703133024211 | D59: TOZINETAS FRED 25G X 48 DE | E59: 48 | F59: 1 | G59: 48 | H59: 0.16 | I59: 498 | J59: 577.68 | K59: 577.68 | L59: 600 | M59: 0 | O59: 0 | P59: 0 | Q59: 0 | R59: 0 | S59: 0 | T59: 0 | U59: 0 | V59: 48 | X59: 48 | AZ59: 0
B60: 102411 | C60: 7703133024105 | D60: COSTILLITAS FRED 25GX 48 DE | E60: 48 | F60: 1 | G60: 48 | H60: 0.16 | I60: 498 | J60: 577.68 | K60: 577.68 | L60: 700 | M60: 0 | O60: 0 | P60: 0 | Q60: 0 | R60: 0 | S60: 0 | T60: 0 | U60: 0 | V60: 48 | X60: 48 | AZ60: 0
B61: 108004 | D61: PAPAS CHIPS 150 GRMS | E61: 17 | F61: 1 | G61: 17 | H61: 0.16 | I61: 1940 | J61: 2250.4 | K61: 2250.4 | L61: 2700 | M61: 0 | O61: =+N61*I61 -> 0 | P61: =+O61*$O$83 -> 0 | Q61: =+O61-P61 -> 0 | R61: =+Q61*H61 -> 0 | S61: =+R61+Q61 -> 0 | T61: 0 | U61: 0
B62: 107996 | D62: PAPAS CHIPS 45 GRMS | E62: 48 | F62: 1 | G62: 48 | H62: 0.16 | I62: 646.8 | J62: 750.288 | K62: 750.288 | L62: 900 | M62: 0.25 | N62: 12 | O62: 7761.6 | P62: 1397.088 | Q62: 6364.512 | R62: 1018.32192 | S62: 7382.83392 | T62: 0 | U62: 0
B63: 07795 | C63: 7703133077958 | D63: LONCHERA DIVERTIDA 241g X 12 AS | E63: 12 | F63: 1 | G63: 12 | H63: 0.16 | I63: 3275.8621 | J63: 3800.000036 | K63: 3800.000036 | L63: 4650 | M63: 0 | O63: 0 | P63: =+O63*$O$83 -> 0 | Q63: 0 | R63: 0 | S63: 0 | T63: 0 | U63: 0 | V63: 12 | X63: 12 | AZ63: 0
B64: 02156 | C64: 7703133023979 | D64: LONCHIPACK 309g X 12 X 12 AS | E64: 12 | F64: 1 | G64: 12 | H64: 0.16 | I64: 4051.72 | J64: 4699.9952 | K64: 4699.9952 | L64: 6050 | M64: 0 | O64: 0 | P64: 0 | Q64: 0 | R64: 0 | S64: 0 | T64: 0 | U64: 0 | V64: 0
A65: CRESPAS | B65: 100008 | D65: MEKATO NATURAL 25 GR X 12 X 6 | E65: 12 | F65: 6 | G65: 72 | H65: 0.16 | I65: 474.16 | J65: 550.0256 | K65: 3300.1536 | L65: 700 | M65: 0 | O65: 0 | P65: 0 | Q65: 0 | R65: 0 | S65: 0 | T65: 0 | U65: 0 | V65: 0
B66: 100009 | D66: MEKATO LIMON 25 GR X 12 X 6 | E66: 12 | F66: 6 | G66: 72 | H66: 0.16 | I66: 474.16 | J66: 550.0256 | K66: 3300.1536 | L66: 700 | M66: 0 | O66: 0 | P66: 0 | Q66: 0 | R66: 0 | S66: 0 | T66: 0 | U66: 0 | V66: 0
B67: 100002 | D67: CRESPAS SALSA TOMATE 25 GR | E67: 12 | F67: 6 | G67: 72 | H67: 0.16 | I67: 505 | J67: 585.8 | K67: 3514.8 | L67: 700 | M67: 0 | O67: 0 | P67: 0 | Q67: 0 | R67: 0 | S67: 0 | T67: 0 | U67: 0 | V67: 0
B68: 100003 | D68: CRESPAS LIMON 25 GR | E68: 12 | F68: 6 | G68: 72 | H68: 0.16 | I68: 505 | J68: 585.8 | K68: 3514.8 | L68: 700 | M68: 0 | O68: 0 | P68: 0 | Q68: 0 | R68: 0 | S68: 0 | T68: 0 | U68: 0 | V68: 0
B69: 100004 | D69: CRESPAS POLLO 25 GR | E69: 12 | F69: 6 | G69: 72 | H69: 0.16 | I69: 505 | J69: 585.8 | K69: 3514.8 | L69: 700 | M69: 0 | O69: 0 | P69: 0 | Q69: 0 | R69: 0 | S69: 0 | T69: 0 | U69: 0 | V69: 0
A70: MEKATO | B70: 100144 | D70: ROSKOTAS AREQUIPE 14G X 12 X 7 | E70: 7 | F70: 12 | G70: 84 | H70: 0.1 | I70: 436.38 | J70: 480.018 | K70: 6074.4096 | L70: 700 | M70: 0 | O70: 0 | P70: 0 | Q70: 0 | R70: 0 | S70: 0 | T70: 0 | U70: 0 | V70: 0
B71: 000034 | D71: MEKATO ESCOLAR 205 GR X 24 | E71: 24 | F71: 1 | G71: 24 | H71: 0.16 | I71: 2844.82 | J71: 3299.9912 | K71: =+J71*F71 -> 3299.9912 | L71: 200 | M71: 0 | O71: 0 | P71: =+O71*$O$83 -> 0 | Q71: 0 | R71: 0 | S71: 0
B72: 100126 | D72: TICOS 9 G X 12 X 12 | E72: 12 | F72: 12 | G72: 144 | H72: 0.16 | I72: 86.21 | J72: 100.0036 | K72: 1200.0432 | L72: 200 | M72: 0 | O72: 0 | P72: 0 | Q72: 0 | R72: 0 | S72: 0 | T72: 0 | U72: 0 | V72: 0 | W72: =+V72/U72 -> 
B73: 100138 | D73: TICOS PICANTE 9 G X 12 X 20 | E73: 12 | F73: 20 | G73: 240 | H73: 0.16 | I73: 133.62 | J73: 154.9992 | K73: 3099.984 | L73: 200 | M73: 0 | O73: 0 | P73: 0 | Q73: 0 | R73: 0 | S73: 0
B74: 000127 | D74: TICOS 38G X 36 | E74: 36 | F74: 1 | G74: 36 | H74: 0.16 | I74: 327.59 | J74: 380.0044 | K74: 380.0044 | L74: 500 | M74: 0 | O74: 0 | P74: 0 | Q74: 0 | R74: 0 | S74: 0 | T74: 0 | U74: 0 | V74: 0
B75: 100130 | D75: TICOS QUESO 12 G X 12 X 20 | E75: 20 | F75: 12 | G75: 240 | H75: 0.16 | I75: 129.31 | J75: 149.9996 | K75: 1799.9952 | L75: 200 | M75: 0 | O75: 0 | P75: 0 | Q75: 0 | R75: 0 | S75: 0 | T75: 0 | U75: 0 | V75: 0
B76: 000152 | D76: TICOS QUESO 38 G X 36 | E76: 36 | F76: 1 | G76: 36 | H76: 0.16 | I76: 344.8276 | J76: 400.000016 | K76: 400.000016 | L76: 500 | M76: 0 | O76: 0 | P76: 0 | Q76: 0 | R76: 0 | S76: 0 | T76: 0 | U76: 0 | V76: 360 | X76: 360
B77: 100137 | D77: TICOS QUESO 8 G X 12 X 20 | E77: 20 | F77: 12 | G77: 240 | H77: 0.16 | I77: 133.62 | J77: 154.9992 | K77: 1859.9904 | L77: 500 | M77: 0 | O77: 0 | P77: 0 | Q77: 0 | R77: 0 | S77: 0 | T77: 0 | U77: 0 | V77: 0
B78: 100149 | D78: TICOS POLLO 9G 12 X 20 | E78: 12 | F78: 20 | G78: 240 | H78: 0.16 | I78: 133.62 | J78: 154.9992 | K78: 3099.984 | L78: 200 | M78: 0 | O78: 0 | P78: 0 | Q78: 0 | R78: 0 | S78: 0 | T78: 0 | U78: 0 | V78: 1200 | X78: =240*5 -> 1200
B79: 000128 | D79: TICOS POLLO 38 G X 36 | E79: 36 | F79: 1 | G79: 36 | H79: 0.16 | I79: 345 | J79: 400.2 | K79: 400.2 | L79: 500 | M79: 0 | O79: 0 | P79: 0 | Q79: 0 | R79: 0 | S79: 0 | T79: 0 | U79: 0 | V79: 0
B80: 000151 | D80: TICOS CARAMELO 38 G X 36 | E80: 36 | F80: 1 | G80: 36 | H80: 0.16 | I80: 344.8276 | J80: 400.000016 | K80: 400.000016 | L80: 500 | M80: 0 | O80: 0 | P80: 0 | Q80: 0 | R80: 0 | S80: 0 | T80: 0 | U80: 0 | V80: 0
B81: 000150 | C81: 7703133023979 | D81: TICO PICANTE 38G X 36 | E81: 36 | F81: 1 | G81: 36 | H81: 0.16 | I81: 327.5862 | J81: 379.999992 | K81: 379.999992 | L81: 500 | M81: 0 | O81: =+N81*I81 -> 0 | P81: 0 | Q81: =+O81-P81 -> 0 | R81: =+Q81*H81 -> 0 | S81: =+R81+Q81 -> 0 | T81: 0 | U81: 0 | V81: 108 | X81: =36*3 -> 108 | AZ81: 0
A82: CUPO CREDITO TOTAL | C82: 0 | E82: CUPO ACTUAL | F82: 0 | M82: =SUM(M5:M81) -> 2.75 | N82: =S82/1000 -> 89.34946714 | O82: =SUM(O5:O81) -> 94385.28 | P82: 16989.3504 | Q82: 77395.9296 | R82: 11953.53754 | S82: 89349.46714 | T82: 0 | U82: 0 | V82: 6044 | AX82: =SUM(AX5:AX81) -> 0 | AY82: =SUM(AY5:AY81) -> 0 | AZ82: =SUM(AZ5:AZ81) -> 0
B83: 0 | C83: 0 | D83: 0 | E83: 0 | F83: 0 | G83: 0 | H83: 0 | I83: 0 | J83: 0 | K83: 0 | L83: 0 | O83: =S1 -> 0.18

Sheet Yupi (42) (hidden)
D1: FRANQUICIADO | E1: DIDIER VIZCAINO | M1: DESCUENTO | S1: 0.2 | T1: DIAS MES | W1: DIA HABIL
D2: CODIGO | M2: ZONA | S2: VILLANUEVA
D3: FECHA | E3: =TODAY() -> 2012-09-10 | M3: VALOR PEDIDO | S3: =S81 -> 525842.6698 | T3: 26 | W3: 3
B4: Codigo | C4: Codigo Barras | D4: Descripción | E4: Displays por paca | F4: Unds por Display | G4: Unds por Paca | H4: Iva | I4: Precio Antes de Iva | J4: Precio incluido IVA | K4: Valor Display al tendero | L4: PVP Sugerido (Und) | M4: PACAS | N4: UNIDADES | O4: v.antes iva | P4: Descuento | Q4: total | R4: iva | S4: Total a Pagar | T4: PPTO DIA | U4: PPTO DIA HABIL | V4: VENTA ACUMULADA | W4: CUMP DIA HABIL | X4: 1 | Y4: =+X4+1 -> 2 | Z4: 3 | AA4: 4 | AB4: 5 | AC4: 6 | AD4: 7 | AE4: 8 | AF4: 9 | AG4: 10 | AH4: 11 | AI4: 12 | AJ4: 13 | AK4: 14 | AL4: 15 | AM4: 16 | AN4: 17 | AO4: 18 | AP4: 19 | AQ4: 20 | AR4: 21 | AS4: 22 | AT4: 23 | AU4: 24 | AV4: 25 | AW4: 26 | AX4: VENTA TOTAL | AY4: PPTO | AZ4: DIFERENCIA
A5: EXTRUIDOS | B5: 007695 | C5: 7703133078771 | D5: YUPIS QUESO 45g X 36 X 1 AS | E5: 36 | F5: 1 | G5: =+E5*F5 -> 36 | H5: 0.16 | I5: 560 | J5: =+I5+I5*H5 -> 649.6 | K5: =+J5*F5 -> 649.6 | L5: 700 | M5: =+N5/G5 -> 0 | O5: =+N5*I5 -> 0 | P5: =+O5*$O$82 -> 0 | Q5: =+O5-P5 -> 0 | R5: =+Q5*H5 -> 0 | S5: =+R5+Q5 -> 0 | T5: =AX5*G5 -> 0 | U5: =+$W$3*T5 -> 0 | V5: =SUM(X5:AW5) -> 0 | W5: =+V5/U5 ->  | AZ5: =+AY5-AX5 -> 0
B6: 007164 | C6: 7703133077309 | D6: YUPIS SALADO 60g X 36 X 1 AS | E6: 36 | F6: 1 | G6: =+E6*F6 -> 36 | H6: 0.16 | I6: =650/1.16 -> 560.3448276 | J6: 650 | K6: 650 | L6: 700 | M6: 0 | O6: 0 | P6: 0 | Q6: 0 | R6: 0 | S6: 0 | T6: 0 | U6: 0 | V6: 720 | X6: =36*20 -> 720 | AZ6: =+AY6-AX6 -> 0
B7: 007899 | D7: YUPIS PICANTE 45g X 36 X 1 AS | E7: 36 | F7: 1 | G7: 36 | H7: 0.16 | I7: =650/1.16 -> 560.3448276 | J7: 650 | K7: 650 | L7: 700 | M7: 0 | O7: 0 | P7: 0 | Q7: 0 | R7: 0 | S7: 0 | T7: 0 | U7: 0 | V7: 0 | AZ7: 0
B8: 07881 | C8: 7703133078818 | D8: YUPI CARAMELO 50gX36X1 AS | E8: 36 | F8: 1 | G8: 36 | H8: 0.16 | I8: =650/1.16 -> 560.3448276 | J8: 650 | K8: 650 | L8: 700 | M8: 0 | O8: 0 | P8: 0 | Q8: 0 | R8: 0 | S8: 0 | T8: 0 | U8: 0 | V8: 0 | AZ8: 0
B9: 007742 | D9: YUPI AREQUIQUESO 45 GR | E9: 36 | F9: 1 | G9: 36 | H9: 0.16 | I9: =650/1.16 -> 560.3448276 | J9: =+I9+I9*H9 -> 650 | K9: =+J9*F9 -> 650 | L9: 700 | M9: 0 | O9: =+N9*I9 -> 0 | P9: 0 | Q9: =+O9-P9 -> 0 | R9: =+Q9*H9 -> 0 | S9: 0 | T9: =AX9*G9 -> 0 | U9: =+$W$3*T9 -> 0 | V9: =SUM(X9:AW9) -> 0 | W9: =+V9/U9 ->  | AZ9: 0
B10: 102174 | C10: 7703133021739 | D10: YUPIS SALADO 10g X 12 X 20 DE | E10: 20 | F10: 12 | G10: 240 | H10: 0.16 | I10: =144/1.16 -> 124.137931 | J10: 144 | K10: 1728 | L10: 200 | M10: 0 | O10: 0 | P10: 0 | Q10: 0 | R10: 0 | S10: 0 | T10: 0 | U10: 0 | V10: 960 | X10: =240*4 -> 960 | AZ10: 0
B11: 07716 | C11: 7703133077248 | D11: TICK CHEESE 100G X 24 X 1 AS | E11: 24 | F11: 1 | G11: 24 | H11: 0.16 | I11: 767.2 | J11: 889.952 | K11: 889.952 | L11: 1000 | M11: 0 | O11: 0 | P11: 0 | Q11: 0 | R11: 0 | S11: 0 | T11: 0 | U11: 0 | V11: 0 | AZ11: 0
B12: 107729 | C12: 7703133077194 | D12: TICK CHEESE 40g X 12 X 6 DE | E12: 6 | F12: 12 | G12: 72 | H12: 0.16 | I12: 396 | J12: 459.36 | K12: 5512.32 | L12: 600 | M12: 0 | O12: 0 | P12: 0 | Q12: 0 | R12: 0 | S12: 0 | T12: 0 | U12: 0 | V12: 0 | AZ12: 0
B13: 02122 | C13: 7703133021227 | D13: PALOMITAS CARAMELO 68g X 36 X 1 AS | E13: 36 | F13: 1 | G13: 36 | H13: 0.16 | I13: 582 | J13: 675.12 | K13: 675.12 | L13: 800 | M13: 0 | O13: 0 | P13: 0 | Q13: 0 | R13: 0 | S13: 0 | T13: 0 | U13: 0 | V13: 0 | AZ13: 0
B14: 102117 | C14: 7703133021166 | D14: PALOMITAS CARAMELO 20g X 12 X 12 DE | E14: 12 | F14: 12 | G14: 144 | H14: 0.16 | I14: 344.8 | J14: 399.968 | K14: 4799.616 | L14: 500 | M14: 0 | O14: 0 | P14: 0 | Q14: 0 | R14: 0 | S14: 0 | T14: 0 | U14: 0 | V14: 0 | AZ14: 0
A15: RIZADAS | B15: 109128 | C15: 7703133091275 | D15: RIZADAS NATURAL 30g X 12 X 6 DE | E15: 6 | F15: 12 | G15: 72 | H15: 0.16 | I15: =750/1.16 -> 646.5517241 | J15: =+I15+I15*H15 -> 750 | K15: =+J15*F15 -> 9000 | L15: 800 | M15: =+N15/G15 -> 0 | O15: =+N15*I15 -> 0 | P15: 0 | Q15: =+O15-P15 -> 0 | R15: =+Q15*H15 -> 0 | S15: =+R15+Q15 -> 0 | AZ15: 0
B16: 109130 | C16: 7703133070324 | D16: RIZADAS POLLO 30g X 12 X 6 DE | E16: 6 | F16: 12 | G16: 72 | H16: 0.16 | I16: =750/1.16 -> 646.5517241 | J16: 750 | K16: 9000 | L16: 800 | M16: 0 | O16: 0 | P16: 0 | Q16: 0 | R16: 0 | S16: 0 | T16: 0 | U16: 0 | V16: 0 | AZ16: 0
B17: 109132 | C17: 7703133070362 | D17: RIZADAS MAYONESA 30g X 12 X 6 DE | E17: 6 | F17: 12 | G17: 72 | H17: 0.16 | I17: =750/1.16 -> 646.5517241 | J17: 750 | K17: 9000 | L17: 800 | M17: 0 | O17: 0 | P17: 0 | Q17: 0 | R17: 0 | S17: 0 | T17: 0 | U17: 0 | V17: 0 | AZ17: 0
B18: 109134 | C18: 7703133070348 | D18: RIZADAS LIMON 30g X 12 X 6 DE | E18: 6 | F18: 12 | G18: 72 | H18: 0.16 | I18: =750/1.16 -> 646.5517241 | J18: 750 | K18: 9000 | L18: 800 | M18: 0 | O18: 0 | P18: 0 | Q18: 0 | R18: 0 | S18: 0 | T18: 0 | U18: 0 | V18: 0 | AZ18: 0
B19: 107029 | C19: 7703133070287 | D19: RIZADAS BBQ RANCHERA 28g X 12 X 6 DE | E19: 6 | F19: 12 | G19: 72 | H19: 0.16 | I19: 581.9 | J19: 675.004 | K19: 8100.048 | L19: 800 | M19: =+N19/G19 -> 0 | O19: 0 | P19: 0 | Q19: 0 | R19: 0 | S19: 0 | T19: 0 | U19: 0 | V19: 0 | AZ19: 0
B20: 107122 | D20: RIZADAS MEXICAN FUSION 28g X 12 X 6 DE | E20: 6 | F20: 12 | G20: 72 | H20: 0.16 | I20: =750/1.16 -> 646.5517241 | J20: 750 | K20: 9000 | L20: 800 | M20: 0 | O20: 0 | P20: 0 | Q20: 0 | R20: 0 | S20: 0 | T20: 0 | U20: 0 | V20: 0 | AZ20: 0
B21: 107587 | C21: 7703133072922 | D21: RIZADAS NATURAL 115g X 20 X 1 AS | E21: 20 | F21: 1 | G21: 20 | H21: 0.16 | I21: =1907/1.16 -> 1643.965517 | J21: 1907 | K21: 1907 | L21: 2300 | M21: 0 | O21: 0 | P21: 0 | Q21: 0 | R21: 0 | S21: 0 | T21: 0 | U21: 0 | V21: 0 | AZ21: 0
B22: 107588 | C22: 7703133072946 | D22: RIZADAS MAYONESA 115g X 20 X 1 AS | E22: 20 | F22: 1 | G22: 20 | H22: 0.16 | I22: =1907/1.16 -> 1643.965517 | J22: 1907 | K22: 1907 | L22: 2300 | M22: 0 | O22: 0 | P22: 0 | Q22: 0 | R22: 0 | S22: 0 | T22: 0 | U22: 0 | V22: 0 | AZ22: 0
B23: 107586 | C23: 7703133072984 | D23: RIZADAS LIMON 115g X 20 X 1 AS | E23: 20 | F23: 1 | G23: 20 | H23: 0.16 | I23: =1907/1.16 -> 1643.965517 | J23: 1907 | K23: 1907 | L23: 2300 | M23: 0 | O23: 0 | P23: 0 | Q23: 0 | R23: 0 | S23: 0 | T23: 0 | U23: 0 | V23: 0 | AZ23: 0
B24: 107592 | C24: 7703133078856 | D24: RIZADAS POLLO 115g X 20 X 1 AS | E24: 20 | F24: 1 | G24: 20 | H24: 0.16 | I24: =1907/1.16 -> 1643.965517 | J24: 1907 | K24: 1907 | L24: 2300 | M24: 0 | O24: 0 | P24: 0 | Q24: 0 | R24: 0 | S24: 0 | T24: 0 | U24: 0 | V24: 20 | X24: 20 | AZ24: 0
B25: 007111 | D25: RIZADAS MEXICAN FUSION 115g X 20 X 1 AS | E25: 20 | F25: 1 | G25: 20 | H25: 0.16 | I25: 1508 | J25: =+I25+I25*H25 -> 1749.28 | K25: =+J25*F25 -> 1749.28 | L25: 1800 | M25: =+N25/G25 -> 0 | O25: =+N25*I25 -> 0 | P25: 0 | Q25: =+O25-P25 -> 0 | R25: =+Q25*H25 -> 0 | S25: =+R25+Q25 -> 0 | T25: =AX25*G25 -> 0 | U25: =+$W$3*T25 -> 0 | V25: =SUM(X25:AW25) -> 0 | W25: =+V25/U25 ->  | AZ25: 0
B26: 107443 | C26: 7703133072953 | D26: RIZADAS NATURAL 45GX8X6 DE | E26: 6 | F26: 8 | G26: 48 | H26: 0.16 | I26: 758.87 | J26: =+I26+I26*H26 -> 880.2892 | K26: =+J26*F26 -> 7042.3136 | L26: 1000 | M26: =+N26/G26 -> 0 | O26: =+N26*I26 -> 0 | P26: 0 | Q26: =+O26-P26 -> 0 | R26: =+Q26*H26 -> 0 | S26: =+R26+Q26 -> 0 | T26: =AX26*G26 -> 0 | U26: =+$W$3*T26 -> 0 | V26: =SUM(X26:AW26) -> 0 | W26: =+V26/U26 -> 
B27: 107295 | C27: 7703133072953 | D27: RIZADAS MAYONESA 45GX8X6 DE | E27: 6 | F27: 8 | G27: 48 | H27: 0.16 | I27: 758.87 | J27: 880.2892 | K27: 7042.3136 | L27: 1000 | M27: 0 | O27: 0 | P27: 0 | Q27: 0 | R27: 0 | S27: 0 | T27: 0 | U27: 0 | V27: 0 | AZ27: 0
B28: 107300 | C28: 7703133073011 | D28: RIZADAS POLLO 45GX8X6 DE | E28: 6 | F28: 8 | G28: 48 | H28: 0.16 | I28: 758.87 | J28: 880.2892 | K28: 7042.3136 | L28: 1000 | M28: 0 | O28: 0 | P28: 0 | Q28: 0 | R28: 0 | S28: 0 | T28: 0 | U28: 0 | V28: 240 | X28: =48*5 -> 240 | AZ28: 0
B29: 107299 | C29: 7703133072991 | D29: RIZADAS LIMON 45GX8X6 DE | E29: 6 | F29: 8 | G29: 48 | H29: 0.16 | I29: 758.87 | J29: 880.2892 | K29: 7042.3136 | L29: 1000 | M29: 0 | O29: 0 | P29: 0 | Q29: 0 | R29: 0 | S29: 0 | T29: 0 | U29: 0 | V29: 0 | AZ29: 0
A30: LIZAS | B30: 106982 | C30: 7703133070409 | D30: LIZA´S S/TOMATE 30g X 12 X 5 DE | E30: 5 | F30: 12 | G30: 60 | H30: 0.16 | I30: =715/1.16 -> 616.3793103 | J30: 715 | K30: 8580 | L30: 800 | M30: 0 | O30: 0 | P30: 0 | Q30: 0 | R30: 0 | S30: 0 | T30: 0 | U30: 0 | V30: 0 | AZ30: 0
B31: 106983 | C31: 7703133072423 | D31: LIZA´S S/ROSADA 30g X 12 X 5 DE | E31: 5 | F31: 12 | G31: 60 | H31: 0.16 | I31: =715/1.16 -> 616.3793103 | J31: 715 | K31: 8580 | L31: 800 | M31: 0 | O31: 0 | P31: 0 | Q31: 0 | R31: 0 | S31: 0 | T31: 0 | U31: 0 | V31: 0 | AZ31: 0
B32: 107380 | C32: 7703133070461 | D32: LIZA'S POLLO 30g X 12 X 5 DE | E32: 5 | F32: 12 | G32: 60 | H32: 0.16 | I32: =715/1.16 -> 616.3793103 | J32: 715 | K32: 8580 | L32: 800 | M32: 0 | O32: 0 | P32: 0 | Q32: 0 | R32: 0 | S32: 0 | T32: 0 | U32: 0 | V32: 0 | AZ32: 0
B33: 107132 | C33: 7703133070447 | D33: LIZA´S LIMÓN 30g X 12 X 5 DE | E33: 5 | F33: 12 | G33: 60 | H33: 0.16 | I33: =715/1.16 -> 616.3793103 | J33: 715 | K33: 8580 | L33: 800 | M33: 0 | O33: 0 | P33: 0 | Q33: 0 | R33: 0 | S33: 0 | T33: 0 | U33: 0 | V33: 0 | AZ33: 0
A34: MIXTOS | B34: 07260 | C34: 7703133072380 | D34: EL GOLPE 110g X 24 X 1 AS | E34: 24 | F34: 1 | G34: 24 | H34: 0.16 | I34: 1379.31 | J34: 1599.9996 | K34: 1599.9996 | L34: 1800 | M34: 0 | O34: 0 | P34: 0 | Q34: 0 | R34: 0 | S34: 0 | T34: 0 | U34: 0 | V34: 24 | X34: 24 | AZ34: 0
B35: 107258 | C35: 7703133077231 | D35: GOLPE 30g X 12 X 6 DE | E35: 6 | F35: 12 | G35: 72 | H35: 0.16 | I35: 435.34 | J35: 504.9944 | K35: 6059.9328 | L35: 1000 | M35: 0 | O35: 0 | P35: 0 | Q35: 0 | R35: 0 | S35: 0
B36: 107726 | C36: 7703133077231 | D36: GOLPE MIX 45g X 8 X 6 DE | E36: 6 | F36: 8 | G36: 48 | H36: 0.16 | I36: 733 | J36: 850.28 | K36: 6802.24 | L36: 1000 | M36: 0 | O36: 0 | P36: 0 | Q36: 0 | R36: 0 | S36: 0 | T36: 0 | U36: 0 | V36: 0 | AZ36: 0
B37: 107836 | C37: 7703133072571 | D37: EL GOLPE 45 gr 8 X 6 DE | E37: 6 | F37: 8 | G37: 48 | H37: 0.16 | I37: 733 | J37: 850.28 | K37: 6802.24 | L37: 1000 | M37: 0 | O37: 0 | P37: 0 | Q37: 0 | R37: 0 | S37: 0 | T37: 0 | U37: 0 | V37: 144 | X37: =48*3 -> 144 | AZ37: 0
B38: 107254 | C38: 7703133072540 | D38: EL GOLPE LIMON 45 gr 8 X 6 DE | E38: 6 | F38: 8 | G38: 48 | H38: 0.16 | I38: 733 | J38: 850.28 | K38: 6802.24 | L38: 1000 | M38: 8 | N38: =48*8 -> 384 | O38: 281472 | P38: 56294.4 | Q38: 225177.6 | R38: 36028.416 | S38: 261206.016 | T38: 0 | U38: 0 | V38: 0 | AZ38: 0
B39: 107261 | C39: 7703133072533 | D39: EL GOLPE RANCHERO 45G X 8 X 6 DE | E39: 6 | F39: 8 | G39: 48 | H39: 0.16 | I39: 733 | J39: 850.28 | K39: 6802.24 | L39: 1000 | M39: 0 | O39: 0 | P39: 0 | Q39: 0 | R39: 0 | S39: 0 | T39: 0 | U39: 0 | V39: 480 | X39: 480 | AZ39: 0
B40: 107590 | C40: 7703133072496 | D40: GOLPE RANCHERO 140 GR 17 X 1 AS | E40: 17 | F40: 1 | G40: =+E40*F40 -> 17 | H40: 0.16 | I40: 2161 | J40: =+I40+I40*H40 -> 2506.76 | K40: =+J40*F40 -> 2506.76 | L40: 2800 | M40: =+N40/G40 -> 0 | O40: =+N40*I40 -> 0 | P40: 0 | Q40: =+O40-P40 -> 0 | R40: =+Q40*H40 -> 0 | S40: =+R40+Q40 -> 0 | T40: =AX40*G40 -> 0 | U40: =+$W$3*T40 -> 0 | V40: =SUM(X40:AW40) -> 0 | W40: =+V40/U40 ->  | AZ40: 0
B41: 107465 | D41: WOW MIX NATURAL 45 gr X 8 X 6 DE | E41: 6 | F41: 8 | G41: =+E41*F41 -> 48 | H41: 0.16 | I41: =850/1.16 -> 732.7586207 | J41: =+I41+I41*H41 -> 850 | K41: =+J41*F41 -> 6800 | L41: 1000 | M41: =+N41/G41 -> 0 | O41: =+N41*I41 -> 0 | P41: 0 | Q41: =+O41-P41 -> 0 | R41: =+Q41*H41 -> 0 | S41: =+R41+Q41 -> 0 | T41: =AX41*G41 -> 0 | U41: =+$W$3*T41 -> 0 | V41: =SUM(X41:AW41) -> 0 | W41: =+V41/U41 ->  | AZ41: 0
B42: 107445 | D42: WOW MIX QUESO 45 gr X 8 X 6 DE | E42: 6 | F42: 8 | G42: =+E42*F42 -> 48 | H42: 0.16 | I42: =850/1.16 -> 732.7586207 | J42: =+I42+I42*H42 -> 850 | K42: =+J42*F42 -> 6800 | L42: 1000 | M42: =+N42/G42 -> 1 | N42: 48 | O42: =+N42*I42 -> 35172.41379 | P42: 7034.482759 | Q42: =+O42-P42 -> 28137.93103 | R42: =+Q42*H42 -> 4502.068966 | S42: =+R42+Q42 -> 32640 | T42: =AX42*G42 -> 0 | U42: =+$W$3*T42 -> 0 | V42: =SUM(X42:AW42) -> 0 | W42: =+V42/U42 ->  | AZ42: 0
B43: 107447 | D43: WOW MIX BBQ 45 gr X 8 X 6 DE | E43: 6 | F43: 8 | G43: =+E43*F43 -> 48 | H43: 0.16 | I43: 732.8 | J43: =+I43+I43*H43 -> 850.048 | K43: =+J43*F43 -> 6800.384 | L43: 1000 | M43: =+N43/G43 -> 1 | N43: 48 | O43: =+N43*I43 -> 35174.4 | P43: 7034.88 | Q43: =+O43-P43 -> 28139.52 | R43: =+Q43*H43 -> 4502.3232 | S43: =+R43+Q43 -> 32641.8432 | T43: =AX43*G43 -> 0 | U43: =+$W$3*T43 -> 0 | V43: =SUM(X43:AW43) -> 240 | W43: =+V43/U43 ->  | X43: =48*5 -> 240 | AZ43: 0
A44: TOSTIS | B44: 007226 | C44: 7703133072380 | D44: TOSTI AREPAS 150g X 17 X 1 AS | E44: 17 | F44: 1 | G44: 17 | H44: 0.1 | I44: 1545 | J44: 1699.5 | K44: 1699.5 | L44: 1800 | M44: 0 | O44: 0 | P44: 0 | Q44: 0 | R44: 0 | S44: 0 | T44: 0 | U44: 0 | V44: 0 | AZ44: 0
B45: 107228 | C45: 7703133072274 | D45: TOSTIAREPA 28 G X12 X6 DE | E45: 6 | F45: 12 | G45: 72 | H45: 0.1 | I45: 364 | J45: 400.4 | K45: 4804.8 | L45: 500 | M45: 0 | O45: 0 | P45: 0 | Q45: 0 | R45: 0 | S45: 0 | T45: 0 | U45: 0 | V45: 72 | X45: 72 | AZ45: 0
B46: 107240 | C46: 7703133072397 | D46: TOSTI EMPANADA CARNE 28GX12X6 DE | E46: 6 | F46: 12 | G46: 72 | H46: 0.1 | I46: 364 | J46: 400.4 | K46: 4804.8 | L46: 500 | M46: 0 | O46: 0 | P46: 0 | Q46: 0 | R46: 0 | S46: 0 | T46: 0 | U46: 0 | V46: 0 | AZ46: 0
B47: 107234 | C47: 7703133072335 | D47: TOSTI EMPANADA LIMON 28 G X 12 X 6 DE | E47: 6 | F47: 12 | G47: 72 | H47: 0.1 | I47: 364 | J47: 400.4 | K47: 4804.8 | L47: 500 | M47: 0 | O47: 0 | P47: 0 | Q47: 0 | R47: 0 | S47: 0 | T47: 0 | U47: 0 | V47: 1080 | X47: =72*15 -> 1080 | AZ47: 0
B48: 107220 | C48: 7703133072199 | D48: TOSTI PIZZA POLLO 28G X 12 X 6 DE | E48: 6 | F48: 12 | G48: 72 | H48: 0.1 | I48: 364 | J48: 400.4 | K48: 4804.8 | L48: 500 | M48: 0 | O48: 0 | P48: 0 | Q48: 0 | R48: 0 | S48: 0 | T48: 0 | U48: 0 | V48: 72 | X48: 72 | AZ48: 0
B49: 107222 | C49: 7703133072199 | D49: TOSTI PIZZA QUESO 28G X 12 X 6 DE | E49: 6 | F49: 12 | G49: 72 | H49: 0.1 | I49: 364 | J49: 400.4 | K49: 4804.8 | L49: 500 | M49: 0 | O49: 0 | P49: 0 | Q49: 0 | R49: 0 | S49: 0 | T49: 0 | U49: 0 | V49: 0 | AZ49: 0
B50: 107333 | D50: TOSTI NACHOS QUESO 28 GR X 12 X 6 DE | E50: 6 | F50: 12 | G50: 72 | H50: 0.1 | I50: 364 | J50: 400.4 | K50: 4804.8 | L50: 500 | M50: 0 | O50: 0 | P50: 0 | Q50: 0 | R50: 0 | S50: 0 | T50: 0 | U50: 0 | V50: 144 | X50: =72*2 -> 144 | AZ50: 0
B51: 107231 | C51: 7703133072304 | D51: TOSTIEMPANADA QUESO PICANTE 28G X 12 X 6 | E51: 6 | F51: 12 | G51: 72 | H51: 0.1 | I51: 364 | J51: 400.4 | K51: 4804.8 | L51: 500 | M51: 0 | O51: 0 | P51: 0 | Q51: 0 | R51: 0 | S51: 0 | T51: 0 | U51: 0 | V51: 0 | AZ51: 0
B52: 107335 | D52: TOSTI NACHOS CHILE LIMON 28 GR X 12 X 6 | E52: 6 | F52: 12 | G52: 72 | H52: 0.1 | I52: 364 | J52: 400.4 | K52: 4804.8 | L52: 500 | M52: 0 | O52: 0 | P52: 0 | Q52: 0 | R52: 0 | S52: 0 | T52: 0 | U52: 0 | V52: 0 | AZ52: 0
B53: 107485 | C53: 7703133079996 | D53: TOSTI PLATANITOS 30 GR X 12 X 6 DE | E53: 6 | F53: 12 | G53: 72 | H53: 0.16 | I53: 388 | J53: 450.08 | K53: 5400.96 | L53: 600 | M53: 0 | O53: 0 | P53: 0 | Q53: 0 | R53: 0 | S53: 0 | T53: 0 | U53: 0 | V53: 72 | X53: 72 | AZ53: 0
B54: 107561 | D54: TOSTI NACHOS 45 GR 8 X 6 | E54: 6 | F54: 8 | G54: 48 | H54: 0.1 | I54: =650/1.1 -> 590.9090909 | J54: 650 | K54: 5200 | L54: 800 | M54: 0 | O54: 0 | P54: 0 | Q54: 0 | R54: 0 | S54: 0 | T54: 0 | U54: 0 | V54: 0
B55: 007337 | C55: 7703133079996 | D55: TOSTI NACHOS CHILE LIMON 150 GR X 17 X 1 AS | E55: 17 | F55: 1 | G55: 17 | H55: 0.1 | I55: 1545 | J55: =+I55+I55*H55 -> 1699.5 | K55: =+J55*F55 -> 1699.5 | L55: 1800 | M55: =+N55/G55 -> 0 | O55: =+N55*I55 -> 0 | P55: 0 | Q55: =+O55-P55 -> 0 | R55: =+Q55*H55 -> 0 | S55: =+R55+Q55 -> 0 | T55: =AX55*G55 -> 0 | U55: 0 | V55: =SUM(X55:AW55) -> 0 | W55: =+V55/U55 ->  | AZ55: 0
B56: 007338 | C56: 7703133079996 | D56: TOSTI NACHOS QUESO 150 GR X 17 X 1 AS | E56: 17 | F56: 1 | G56: 17 | H56: 0.1 | I56: 1545 | J56: =+I56+I56*H56 -> 1699.5 | K56: =+J56*F56 -> 1699.5 | L56: 1800 | M56: =+N56/G56 -> 0 | O56: =+N56*I56 -> 0 | P56: 0 | Q56: =+O56-P56 -> 0 | R56: =+Q56*H56 -> 0 | S56: =+R56+Q56 -> 0 | T56: =AX56*G56 -> 0 | U56: 0 | V56: =SUM(X56:AW56) -> 0 | W56: =+V56/U56 ->  | AZ56: 0
A57: OTROS | B57: 107574 | C57: 77031330200227 | D57: MEKATROCITOS POLLO 28 GR X 12 X 8 DE | E57: 8 | F57: 12 | G57: 96 | H57: 0.1 | I57: 273 | J57: 300.3 | K57: 3603.6 | L57: 400 | M57: 2.5 | N57: =20*12 -> 240 | O57: 65520 | P57: 13104 | Q57: 52416 | R57: 5241.6 | S57: 57657.6 | T57: 0 | U57: 0 | V57: 0 | AZ57: 0
B58: 02424 | C58: 7703133024242 | D58: TOZINETAS FRED 40g X 40 X 1 AS | E58: 40 | F58: 1 | G58: 40 | H58: 0.16 | I58: 954.55 | J58: 1107.278 | K58: 1107.278 | L58: 1280 | M58: 0 | O58: 0 | P58: 0 | Q58: 0 | R58: 0 | S58: 0 | T58: 0 | U58: 0 | V58: 0 | AZ58: 0
B59: 107385 | C59: 7703133024211 | D59: TOZINETAS FRED 25G X 48 DE | E59: 48 | F59: 1 | G59: 48 | H59: 0.16 | I59: 498 | J59: 577.68 | K59: 577.68 | L59: 600 | M59: 0 | O59: 0 | P59: 0 | Q59: 0 | R59: 0 | S59: 0 | T59: 0 | U59: 0 | V59: 48 | X59: 48 | AZ59: 0
B60: 102411 | C60: 7703133024105 | D60: COSTILLITAS FRED 25GX 48 DE | E60: 48 | F60: 1 | G60: 48 | H60: 0.16 | I60: 498 | J60: 577.68 | K60: 577.68 | L60: 700 | M60: 0 | O60: 0 | P60: 0 | Q60: 0 | R60: 0 | S60: 0 | T60: 0 | U60: 0 | V60: 48 | X60: 48 | AZ60: 0
B61: 107996 | D61: PAPAS CHIPS 45 GRMS | E61: 48 | F61: 1 | G61: 48 | H61: 0.16 | I61: 646.8 | J61: 750.288 | K61: 750.288 | L61: 900 | M61: 0 | O61: 0 | P61: 0 | Q61: 0 | R61: 0 | S61: 0 | T61: 0 | U61: 0
B62: 07795 | C62: 7703133077958 | D62: LONCHERA DIVERTIDA 241g X 12 AS | E62: 12 | F62: 1 | G62: 12 | H62: 0.16 | I62: 3275.8621 | J62: 3800.000036 | K62: 3800.000036 | L62: 4650 | M62: 3 | N62: 36 | O62: 117931.0356 | P62: =+O62*$O$82 -> 23586.20712 | Q62: 94344.82848 | R62: 15095.17256 | S62: 109440.001 | T62: 0 | U62: 0 | V62: 12 | X62: 12 | AZ62: 0
B63: 02156 | C63: 7703133023979 | D63: LONCHIPACK 309g X 12 X 12 AS | E63: 12 | F63: 1 | G63: 12 | H63: 0.16 | I63: 4051.72 | J63: 4699.9952 | K63: 4699.9952 | L63: 6050 | M63: 0 | O63: 0 | P63: 0 | Q63: 0 | R63: 0 | S63: 0 | T63: 0 | U63: 0 | V63: 0
A64: CRESPAS | B64: 100008 | D64: MEKATO NATURAL 25 GR X 12 X 6 | E64: 12 | F64: 6 | G64: 72 | H64: 0.16 | I64: 474.16 | J64: 550.0256 | K64: 3300.1536 | L64: 700 | M64: 0 | O64: 0 | P64: 0 | Q64: 0 | R64: 0 | S64: 0 | T64: 0 | U64: 0 | V64: 0
B65: 100009 | D65: MEKATO LIMON 25 GR X 12 X 6 | E65: 12 | F65: 6 | G65: 72 | H65: 0.16 | I65: 474.16 | J65: 550.0256 | K65: 3300.1536 | L65: 700 | M65: 0 | O65: 0 | P65: 0 | Q65: 0 | R65: 0 | S65: 0 | T65: 0 | U65: 0 | V65: 0
B66: 100002 | D66: CRESPAS SALSA TOMATE 25 GR | E66: 12 | F66: 6 | G66: 72 | H66: 0.16 | I66: 505 | J66: 585.8 | K66: 3514.8 | L66: 700 | M66: 0 | O66: 0 | P66: 0 | Q66: 0 | R66: 0 | S66: 0 | T66: 0 | U66: 0 | V66: 0
B67: 100003 | D67: CRESPAS LIMON 25 GR | E67: 12 | F67: 6 | G67: 72 | H67: 0.16 | I67: 505 | J67: 585.8 | K67: 3514.8 | L67: 700 | M67: 0 | O67: 0 | P67: 0 | Q67: 0 | R67: 0 | S67: 0 | T67: 0 | U67: 0 | V67: 0
B68: 100004 | D68: CRESPAS POLLO 25 GR | E68: 12 | F68: 6 | G68: 72 | H68: 0.16 | I68: 505 | J68: 585.8 | K68: 3514.8 | L68: 700 | M68: 0 | O68: 0 | P68: 0 | Q68: 0 | R68: 0 | S68: 0 | T68: 0 | U68: 0 | V68: 0
A69: MEKATO | B69: 100144 | D69: ROSKOTAS AREQUIPE 14G X 12 X 7 | E69: 7 | F69: 12 | G69: 84 | H69: 0.1 | I69: 436.38 | J69: 480.018 | K69: 6074.4096 | L69: 700 | M69: 1 | N69: 84 | O69: 36655.92 | P69: 7331.184 | Q69: 29324.736 | R69: 2932.4736 | S69: 32257.2096 | T69: 0 | U69: 0 | V69: 0
B70: 000034 | D70: MEKATO ESCOLAR 205 GR X 24 | E70: 24 | F70: 1 | G70: 24 | H70: 0.16 | I70: 2844.82 | J70: 3299.9912 | K70: =+J70*F70 -> 3299.9912 | L70: 200 | M70: 0 | O70: 0 | P70: =+O70*$O$82 -> 0 | Q70: 0 | R70: 0 | S70: 0
B71: 100126 | D71: TICOS 9 G X 12 X 12 | E71: 12 | F71: 12 | G71: 144 | H71: 0.16 | I71: 86.21 | J71: 100.0036 | K71: 1200.0432 | L71: 200 | M71: 0 | O71: 0 | P71: 0 | Q71: 0 | R71: 0 | S71: 0 | T71: 0 | U71: 0 | V71: 0 | W71: =+V71/U71 -> 
B72: 100138 | D72: TICOS PICANTE 9 G X 12 X 20 | E72: 12 | F72: 20 | G72: 240 | H72: 0.16 | I72: 133.62 | J72: 154.9992 | K72: 3099.984 | L72: 200 | M72: 0 | O72: 0 | P72: 0 | Q72: 0 | R72: 0 | S72: 0
B73: 000127 | D73: TICOS 38G X 36 | E73: 36 | F73: 1 | G73: 36 | H73: 0.16 | I73: 327.59 | J73: 380.0044 | K73: 380.0044 | L73: 500 | M73: 0 | O73: 0 | P73: 0 | Q73: 0 | R73: 0 | S73: 0 | T73: 0 | U73: 0 | V73: 0
B74: 100130 | D74: TICOS QUESO 12 G X 12 X 20 | E74: 20 | F74: 12 | G74: 240 | H74: 0.16 | I74: 129.31 | J74: 149.9996 | K74: 1799.9952 | L74: 200 | M74: 0 | O74: 0 | P74: 0 | Q74: 0 | R74: 0 | S74: 0 | T74: 0 | U74: 0 | V74: 0
B75: 000152 | D75: TICOS QUESO 38 G X 36 | E75: 36 | F75: 1 | G75: 36 | H75: 0.16 | I75: 344.8276 | J75: 400.000016 | K75: 400.000016 | L75: 500 | M75: 0 | O75: 0 | P75: 0 | Q75: 0 | R75: 0 | S75: 0 | T75: 0 | U75: 0 | V75: 360 | X75: 360
B76: 100137 | D76: TICOS QUESO 8 G X 12 X 20 | E76: 20 | F76: 12 | G76: 240 | H76: 0.16 | I76: 133.62 | J76: 154.9992 | K76: 1859.9904 | L76: 500 | M76: 0 | O76: 0 | P76: 0 | Q76: 0 | R76: 0 | S76: 0 | T76: 0 | U76: 0 | V76: 0
B77: 100149 | D77: TICOS POLLO 9G 12 X 20 | E77: 12 | F77: 20 | G77: 240 | H77: 0.16 | I77: 133.62 | J77: 154.9992 | K77: 3099.984 | L77: 200 | M77: 0 | O77: 0 | P77: 0 | Q77: 0 | R77: 0 | S77: 0 | T77: 0 | U77: 0 | V77: 1200 | X77: =240*5 -> 1200
B78: 000128 | D78: TICOS POLLO 38 G X 36 | E78: 36 | F78: 1 | G78: 36 | H78: 0.16 | I78: 345 | J78: 400.2 | K78: 400.2 | L78: 500 | M78: 0 | O78: 0 | P78: 0 | Q78: 0 | R78: 0 | S78: 0 | T78: 0 | U78: 0 | V78: 0
B79: 000151 | D79: TICOS CARAMELO 38 G X 36 | E79: 36 | F79: 1 | G79: 36 | H79: 0.16 | I79: 344.8276 | J79: 400.000016 | K79: 400.000016 | L79: 500 | M79: 0 | O79: 0 | P79: 0 | Q79: 0 | R79: 0 | S79: 0 | T79: 0 | U79: 0 | V79: 0
B80: 000150 | C80: 7703133023979 | D80: TICO PICANTE 38G X 36 | E80: 36 | F80: 1 | G80: 36 | H80: 0.16 | I80: 327.5862 | J80: 379.999992 | K80: 379.999992 | L80: 500 | M80: 0 | O80: =+N80*I80 -> 0 | P80: 0 | Q80: =+O80-P80 -> 0 | R80: =+Q80*H80 -> 0 | S80: =+R80+Q80 -> 0 | T80: 0 | U80: 0 | V80: 108 | X80: =36*3 -> 108 | AZ80: 0
A81: CUPO CREDITO TOTAL | C81: 0 | E81: CUPO ACTUAL | F81: 0 | M81: =SUM(M5:M80) -> 16.5 | N81: =S81/1000 -> 525.8426698 | O81: =SUM(O5:O80) -> 571925.7694 | P81: 114385.1539 | Q81: 457540.6155 | R81: 68302.05432 | S81: 525842.6698 | T81: 0 | U81: 0 | V81: 6044 | AX81: =SUM(AX5:AX80) -> 0 | AY81: =SUM(AY5:AY80) -> 0 | AZ81: =SUM(AZ5:AZ80) -> 0
B82: 0 | C82: 0 | D82: 0 | E82: 0 | F82: 0 | G82: 0 | H82: 0 | I82: 0 | J82: 0 | K82: 0 | L82: 0 | O82: =S1 -> 0.2

Sheet Yupi (44) (hidden)
D1: FRANQUICIADO | E1: DIDIER VIZCAINO | M1: DESCUENTO | S1: 0.2 | T1: DIAS MES | W1: DIA HABIL
D2: CODIGO | M2: ZONA | S2: VILLANUEVA
D3: FECHA | E3: =TODAY() -> 2012-09-10 | M3: VALOR PEDIDO | S3: =S82 -> 897844.992 | T3: 26 | W3: 3
B4: Codigo | C4: Codigo Barras | D4: Descripción | E4: Displays por paca | F4: Unds por Display | G4: Unds por Paca | H4: Iva | I4: Precio Antes de Iva | J4: Precio incluido IVA | K4: Valor Display al tendero | L4: PVP Sugerido (Und) | M4: PACAS | N4: UNIDADES | O4: v.antes iva | P4: Descuento | Q4: total | R4: iva | S4: Total a Pagar | T4: PPTO DIA | U4: PPTO DIA HABIL | V4: VENTA ACUMULADA | W4: CUMP DIA HABIL | X4: 1 | Y4: =+X4+1 -> 2 | Z4: 3 | AA4: 4 | AB4: 5 | AC4: 6 | AD4: 7 | AE4: 8 | AF4: 9 | AG4: 10 | AH4: 11 | AI4: 12 | AJ4: 13 | AK4: 14 | AL4: 15 | AM4: 16 | AN4: 17 | AO4: 18 | AP4: 19 | AQ4: 20 | AR4: 21 | AS4: 22 | AT4: 23 | AU4: 24 | AV4: 25 | AW4: 26 | AX4: VENTA TOTAL | AY4: PPTO | AZ4: DIFERENCIA
A5: EXTRUIDOS | B5: 007695 | C5: 7703133078771 | D5: YUPIS QUESO 45g X 36 X 1 AS | E5: 36 | F5: 1 | G5: =+E5*F5 -> 36 | H5: 0.16 | I5: 560 | J5: =+I5+I5*H5 -> 649.6 | K5: =+J5*F5 -> 649.6 | L5: 700 | M5: =+N5/G5 -> 0 | O5: =+N5*I5 -> 0 | P5: =+O5*$O$83 -> 0 | Q5: =+O5-P5 -> 0 | R5: =+Q5*H5 -> 0 | S5: =+R5+Q5 -> 0 | T5: =AX5*G5 -> 0 | U5: =+$W$3*T5 -> 0 | V5: =SUM(X5:AW5) -> 0 | W5: =+V5/U5 ->  | AZ5: =+AY5-AX5 -> 0
B6: 007164 | C6: 7703133077309 | D6: YUPIS SALADO 60g X 36 X 1 AS | E6: 36 | F6: 1 | G6: =+E6*F6 -> 36 | H6: 0.16 | I6: =650/1.16 -> 560.3448276 | J6: 650 | K6: 650 | L6: 700 | M6: 8 | N6: 288 | O6: 161379.3103 | P6: 32275.86207 | Q6: 129103.4483 | R6: 20656.55172 | S6: 149760 | T6: 0 | U6: 0 | V6: 720 | X6: =36*20 -> 720 | AZ6: =+AY6-AX6 -> 0
B7: 007899 | D7: YUPIS PICANTE 45g X 36 X 1 AS | E7: 36 | F7: 1 | G7: 36 | H7: 0.16 | I7: =650/1.16 -> 560.3448276 | J7: 650 | K7: 650 | L7: 700 | M7: 4 | N7: 144 | O7: 80689.65517 | P7: 16137.93103 | Q7: 64551.72414 | R7: 10328.27586 | S7: 74880 | T7: 0 | U7: 0 | V7: 0 | AZ7: 0
B8: 07881 | C8: 7703133078818 | D8: YUPI CARAMELO 50gX36X1 AS | E8: 36 | F8: 1 | G8: 36 | H8: 0.16 | I8: =650/1.16 -> 560.3448276 | J8: 650 | K8: 650 | L8: 700 | M8: 10 | N8: 360 | O8: 201724.1379 | P8: 40344.82759 | Q8: 161379.3103 | R8: 25820.68966 | S8: 187200 | T8: 0 | U8: 0 | V8: 0 | AZ8: 0
B9: 007742 | D9: YUPI AREQUIQUESO 45 GR | E9: 36 | F9: 1 | G9: 36 | H9: 0.16 | I9: =650/1.16 -> 560.3448276 | J9: =+I9+I9*H9 -> 650 | K9: =+J9*F9 -> 650 | L9: 700 | M9: 0 | O9: =+N9*I9 -> 0 | P9: 0 | Q9: =+O9-P9 -> 0 | R9: =+Q9*H9 -> 0 | S9: 0 | T9: =AX9*G9 -> 0 | U9: =+$W$3*T9 -> 0 | V9: =SUM(X9:AW9) -> 0 | W9: =+V9/U9 ->  | AZ9: 0
B10: 102174 | C10: 7703133021739 | D10: YUPIS SALADO 10g X 12 X 20 DE | E10: 20 | F10: 12 | G10: 240 | H10: 0.16 | I10: =144/1.16 -> 124.137931 | J10: 144 | K10: 1728 | L10: 200 | M10: 0 | O10: 0 | P10: 0 | Q10: 0 | R10: 0 | S10: 0 | T10: 0 | U10: 0 | V10: 960 | X10: =240*4 -> 960 | AZ10: 0
B11: 07716 | C11: 7703133077248 | D11: TICK CHEESE 100G X 24 X 1 AS | E11: 24 | F11: 1 | G11: 24 | H11: 0.16 | I11: 767.2 | J11: 889.952 | K11: 889.952 | L11: 1000 | M11: 0 | O11: 0 | P11: 0 | Q11: 0 | R11: 0 | S11: 0 | T11: 0 | U11: 0 | V11: 0 | AZ11: 0
B12: 107729 | C12: 7703133077194 | D12: TICK CHEESE 40g X 12 X 6 DE | E12: 6 | F12: 12 | G12: 72 | H12: 0.16 | I12: 396 | J12: 459.36 | K12: 5512.32 | L12: 600 | M12: 0 | O12: 0 | P12: 0 | Q12: 0 | R12: 0 | S12: 0 | T12: 0 | U12: 0 | V12: 0 | AZ12: 0
B13: 02122 | C13: 7703133021227 | D13: PALOMITAS CARAMELO 68g X 36 X 1 AS | E13: 36 | F13: 1 | G13: 36 | H13: 0.16 | I13: 582 | J13: 675.12 | K13: 675.12 | L13: 800 | M13: 0 | O13: 0 | P13: 0 | Q13: 0 | R13: 0 | S13: 0 | T13: 0 | U13: 0 | V13: 0 | AZ13: 0
B14: 102117 | C14: 7703133021166 | D14: PALOMITAS CARAMELO 20g X 12 X 12 DE | E14: 12 | F14: 12 | G14: 144 | H14: 0.16 | I14: 344.8 | J14: 399.968 | K14: 4799.616 | L14: 500 | M14: 0 | O14: 0 | P14: 0 | Q14: 0 | R14: 0 | S14: 0 | T14: 0 | U14: 0 | V14: 0 | AZ14: 0
A15: RIZADAS | B15: 109128 | C15: 7703133091275 | D15: RIZADAS NATURAL 30g X 12 X 6 DE | E15: 6 | F15: 12 | G15: 72 | H15: 0.16 | I15: =750/1.16 -> 646.5517241 | J15: =+I15+I15*H15 -> 750 | K15: =+J15*F15 -> 9000 | L15: 800 | M15: =+N15/G15 -> 0 | O15: =+N15*I15 -> 0 | P15: 0 | Q15: =+O15-P15 -> 0 | R15: =+Q15*H15 -> 0 | S15: =+R15+Q15 -> 0 | AZ15: 0
B16: 109130 | C16: 7703133070324 | D16: RIZADAS POLLO 30g X 12 X 6 DE | E16: 6 | F16: 12 | G16: 72 | H16: 0.16 | I16: =750/1.16 -> 646.5517241 | J16: 750 | K16: 9000 | L16: 800 | M16: 0 | O16: 0 | P16: 0 | Q16: 0 | R16: 0 | S16: 0 | T16: 0 | U16: 0 | V16: 0 | AZ16: 0
B17: 109132 | C17: 7703133070362 | D17: RIZADAS MAYONESA 30g X 12 X 6 DE | E17: 6 | F17: 12 | G17: 72 | H17: 0.16 | I17: =750/1.16 -> 646.5517241 | J17: 750 | K17: 9000 | L17: 800 | M17: 0 | O17: 0 | P17: 0 | Q17: 0 | R17: 0 | S17: 0 | T17: 0 | U17: 0 | V17: 0 | AZ17: 0
B18: 109134 | C18: 7703133070348 | D18: RIZADAS LIMON 30g X 12 X 6 DE | E18: 6 | F18: 12 | G18: 72 | H18: 0.16 | I18: =750/1.16 -> 646.5517241 | J18: 750 | K18: 9000 | L18: 800 | M18: 0 | O18: 0 | P18: 0 | Q18: 0 | R18: 0 | S18: 0 | T18: 0 | U18: 0 | V18: 0 | AZ18: 0
B19: 107029 | C19: 7703133070287 | D19: RIZADAS BBQ RANCHERA 28g X 12 X 6 DE | E19: 6 | F19: 12 | G19: 72 | H19: 0.16 | I19: 581.9 | J19: 675.004 | K19: 8100.048 | L19: 800 | M19: =+N19/G19 -> 0 | O19: 0 | P19: 0 | Q19: 0 | R19: 0 | S19: 0 | T19: 0 | U19: 0 | V19: 0 | AZ19: 0
B20: 107122 | D20: RIZADAS MEXICAN FUSION 28g X 12 X 6 DE | E20: 6 | F20: 12 | G20: 72 | H20: 0.16 | I20: =750/1.16 -> 646.5517241 | J20: 750 | K20: 9000 | L20: 800 | M20: 0 | O20: 0 | P20: 0 | Q20: 0 | R20: 0 | S20: 0 | T20: 0 | U20: 0 | V20: 0 | AZ20: 0
B21: 107587 | C21: 7703133072922 | D21: RIZADAS NATURAL 115g X 20 X 1 AS | E21: 20 | F21: 1 | G21: 20 | H21: 0.16 | I21: =1907/1.16 -> 1643.965517 | J21: 1907 | K21: 1907 | L21: 2300 | M21: 0 | O21: 0 | P21: 0 | Q21: 0 | R21: 0 | S21: 0 | T21: 0 | U21: 0 | V21: 0 | AZ21: 0
B22: 107588 | C22: 7703133072946 | D22: RIZADAS MAYONESA 115g X 20 X 1 AS | E22: 20 | F22: 1 | G22: 20 | H22: 0.16 | I22: =1907/1.16 -> 1643.965517 | J22: 1907 | K22: 1907 | L22: 2300 | M22: 0 | O22: 0 | P22: 0 | Q22: 0 | R22: 0 | S22: 0 | T22: 0 | U22: 0 | V22: 0 | AZ22: 0
B23: 107586 | C23: 7703133072984 | D23: RIZADAS LIMON 115g X 20 X 1 AS | E23: 20 | F23: 1 | G23: 20 | H23: 0.16 | I23: =1907/1.16 -> 1643.965517 | J23: 1907 | K23: 1907 | L23: 2300 | M23: 0 | O23: 0 | P23: 0 | Q23: 0 | R23: 0 | S23: 0 | T23: 0 | U23: 0 | V23: 0 | AZ23: 0
B24: 107592 | C24: 7703133078856 | D24: RIZADAS POLLO 115g X 20 X 1 AS | E24: 20 | F24: 1 | G24: 20 | H24: 0.16 | I24: =1907/1.16 -> 1643.965517 | J24: 1907 | K24: 1907 | L24: 2300 | M24: 0 | O24: 0 | P24: 0 | Q24: 0 | R24: 0 | S24: 0 | T24: 0 | U24: 0 | V24: 20 | X24: 20 | AZ24: 0
B25: 007111 | D25: RIZADAS MEXICAN FUSION 115g X 20 X 1 AS | E25: 20 | F25: 1 | G25: 20 | H25: 0.16 | I25: 1508 | J25: =+I25+I25*H25 -> 1749.28 | K25: =+J25*F25 -> 1749.28 | L25: 1800 | M25: =+N25/G25 -> 0 | O25: =+N25*I25 -> 0 | P25: 0 | Q25: =+O25-P25 -> 0 | R25: =+Q25*H25 -> 0 | S25: =+R25+Q25 -> 0 | T25: =AX25*G25 -> 0 | U25: =+$W$3*T25 -> 0 | V25: =SUM(X25:AW25) -> 0 | W25: =+V25/U25 ->  | AZ25: 0
B26: 107443 | C26: 7703133072953 | D26: RIZADAS NATURAL 45GX8X6 DE | E26: 6 | F26: 8 | G26: 48 | H26: 0.16 | I26: 758.87 | J26: =+I26+I26*H26 -> 880.2892 | K26: =+J26*F26 -> 7042.3136 | L26: 1000 | M26: =+N26/G26 -> 0 | O26: =+N26*I26 -> 0 | P26: 0 | Q26: =+O26-P26 -> 0 | R26: =+Q26*H26 -> 0 | S26: =+R26+Q26 -> 0 | T26: =AX26*G26 -> 0 | U26: =+$W$3*T26 -> 0 | V26: =SUM(X26:AW26) -> 0 | W26: =+V26/U26 -> 
B27: 107295 | C27: 7703133072953 | D27: RIZADAS MAYONESA 45GX8X6 DE | E27: 6 | F27: 8 | G27: 48 | H27: 0.16 | I27: 758.87 | J27: 880.2892 | K27: 7042.3136 | L27: 1000 | M27: 0 | O27: 0 | P27: 0 | Q27: 0 | R27: 0 | S27: 0 | T27: 0 | U27: 0 | V27: 0 | AZ27: 0
B28: 107300 | C28: 7703133073011 | D28: RIZADAS POLLO 45GX8X6 DE | E28: 6 | F28: 8 | G28: 48 | H28: 0.16 | I28: 758.87 | J28: 880.2892 | K28: 7042.3136 | L28: 1000 | M28: 0 | O28: 0 | P28: 0 | Q28: 0 | R28: 0 | S28: 0 | T28: 0 | U28: 0 | V28: 240 | X28: =48*5 -> 240 | AZ28: 0
B29: 107299 | C29: 7703133072991 | D29: RIZADAS LIMON 45GX8X6 DE | E29: 6 | F29: 8 | G29: 48 | H29: 0.16 | I29: 758.87 | J29: 880.2892 | K29: 7042.3136 | L29: 1000 | M29: 0 | O29: 0 | P29: 0 | Q29: 0 | R29: 0 | S29: 0 | T29: 0 | U29: 0 | V29: 0 | AZ29: 0
A30: LIZAS | B30: 106982 | C30: 7703133070409 | D30: LIZA´S S/TOMATE 30g X 12 X 5 DE | E30: 5 | F30: 12 | G30: 60 | H30: 0.16 | I30: =715/1.16 -> 616.3793103 | J30: 715 | K30: 8580 | L30: 800 | M30: 0 | O30: 0 | P30: 0 | Q30: 0 | R30: 0 | S30: 0 | T30: 0 | U30: 0 | V30: 0 | AZ30: 0
B31: 106983 | C31: 7703133072423 | D31: LIZA´S S/ROSADA 30g X 12 X 5 DE | E31: 5 | F31: 12 | G31: 60 | H31: 0.16 | I31: =715/1.16 -> 616.3793103 | J31: 715 | K31: 8580 | L31: 800 | M31: 0 | O31: 0 | P31: 0 | Q31: 0 | R31: 0 | S31: 0 | T31: 0 | U31: 0 | V31: 0 | AZ31: 0
B32: 107380 | C32: 7703133070461 | D32: LIZA'S POLLO 30g X 12 X 5 DE | E32: 5 | F32: 12 | G32: 60 | H32: 0.16 | I32: =715/1.16 -> 616.3793103 | J32: 715 | K32: 8580 | L32: 800 | M32: 0 | O32: 0 | P32: 0 | Q32: 0 | R32: 0 | S32: 0 | T32: 0 | U32: 0 | V32: 0 | AZ32: 0
B33: 107132 | C33: 7703133070447 | D33: LIZA´S LIMÓN 30g X 12 X 5 DE | E33: 5 | F33: 12 | G33: 60 | H33: 0.16 | I33: =715/1.16 -> 616.3793103 | J33: 715 | K33: 8580 | L33: 800 | M33: 0 | O33: 0 | P33: 0 | Q33: 0 | R33: 0 | S33: 0 | T33: 0 | U33: 0 | V33: 0 | AZ33: 0
A34: MIXTOS | B34: 07260 | C34: 7703133072380 | D34: EL GOLPE 110g X 24 X 1 AS | E34: 24 | F34: 1 | G34: 24 | H34: 0.16 | I34: 1379.31 | J34: 1599.9996 | K34: 1599.9996 | L34: 1800 | M34: 0 | O34: 0 | P34: 0 | Q34: 0 | R34: 0 | S34: 0 | T34: 0 | U34: 0 | V34: 24 | X34: 24 | AZ34: 0
B35: 107258 | C35: 7703133077231 | D35: GOLPE 30g X 12 X 6 DE | E35: 6 | F35: 12 | G35: 72 | H35: 0.16 | I35: 435.34 | J35: 504.9944 | K35: 6059.9328 | L35: 1000 | M35: 0 | O35: 0 | P35: 0 | Q35: 0 | R35: 0 | S35: 0
B36: 107726 | C36: 7703133077231 | D36: GOLPE MIX 45g X 8 X 6 DE | E36: 6 | F36: 8 | G36: 48 | H36: 0.16 | I36: 733 | J36: 850.28 | K36: 6802.24 | L36: 1000 | M36: 6 | N36: =36*8 -> 288 | O36: 211104 | P36: 42220.8 | Q36: 168883.2 | R36: 27021.312 | S36: 195904.512 | T36: 0 | U36: 0 | V36: 0 | AZ36: 0
B37: 107836 | C37: 7703133072571 | D37: EL GOLPE 45 gr 8 X 6 DE | E37: 6 | F37: 8 | G37: 48 | H37: 0.16 | I37: 733 | J37: 850.28 | K37: 6802.24 | L37: 1000 | M37: 5 | N37: =30*8 -> 240 | O37: 175920 | P37: 35184 | Q37: 140736 | R37: 22517.76 | S37: 163253.76 | T37: 0 | U37: 0 | V37: 144 | X37: =48*3 -> 144 | AZ37: 0
B38: 107254 | C38: 7703133072540 | D38: EL GOLPE LIMON 45 gr 8 X 6 DE | E38: 6 | F38: 8 | G38: 48 | H38: 0.16 | I38: 733 | J38: 850.28 | K38: 6802.24 | L38: 1000 | M38: 0 | O38: 0 | P38: 0 | Q38: 0 | R38: 0 | S38: 0 | T38: 0 | U38: 0 | V38: 0 | AZ38: 0
B39: 107261 | C39: 7703133072533 | D39: EL GOLPE RANCHERO 45G X 8 X 6 DE | E39: 6 | F39: 8 | G39: 48 | H39: 0.16 | I39: 733 | J39: 850.28 | K39: 6802.24 | L39: 1000 | M39: 0 | O39: 0 | P39: 0 | Q39: 0 | R39: 0 | S39: 0 | T39: 0 | U39: 0 | V39: 480 | X39: 480 | AZ39: 0
B40: 107590 | C40: 7703133072496 | D40: GOLPE RANCHERO 140 GR 17 X 1 AS | E40: 17 | F40: 1 | G40: =+E40*F40 -> 17 | H40: 0.16 | I40: 2161 | J40: =+I40+I40*H40 -> 2506.76 | K40: =+J40*F40 -> 2506.76 | L40: 2800 | M40: =+N40/G40 -> 0 | O40: =+N40*I40 -> 0 | P40: 0 | Q40: =+O40-P40 -> 0 | R40: =+Q40*H40 -> 0 | S40: =+R40+Q40 -> 0 | T40: =AX40*G40 -> 0 | U40: =+$W$3*T40 -> 0 | V40: =SUM(X40:AW40) -> 0 | W40: =+V40/U40 ->  | AZ40: 0
B41: 107465 | D41: WOW MIX NATURAL 45 gr X 8 X 6 DE | E41: 6 | F41: 8 | G41: =+E41*F41 -> 48 | H41: 0.16 | I41: =850/1.16 -> 732.7586207 | J41: =+I41+I41*H41 -> 850 | K41: =+J41*F41 -> 6800 | L41: 1000 | M41: =+N41/G41 -> 0 | O41: =+N41*I41 -> 0 | P41: 0 | Q41: =+O41-P41 -> 0 | R41: =+Q41*H41 -> 0 | S41: =+R41+Q41 -> 0 | T41: =AX41*G41 -> 0 | U41: =+$W$3*T41 -> 0 | V41: =SUM(X41:AW41) -> 0 | W41: =+V41/U41 ->  | AZ41: 0
B42: 107445 | D42: WOW MIX QUESO 45 gr X 8 X 6 DE | E42: 6 | F42: 8 | G42: =+E42*F42 -> 48 | H42: 0.16 | I42: =850/1.16 -> 732.7586207 | J42: =+I42+I42*H42 -> 850 | K42: =+J42*F42 -> 6800 | L42: 1000 | M42: =+N42/G42 -> 0 | O42: =+N42*I42 -> 0 | P42: 0 | Q42: =+O42-P42 -> 0 | R42: =+Q42*H42 -> 0 | S42: =+R42+Q42 -> 0 | T42: =AX42*G42 -> 0 | U42: =+$W$3*T42 -> 0 | V42: =SUM(X42:AW42) -> 0 | W42: =+V42/U42 ->  | AZ42: 0
B43: 107447 | D43: WOW MIX BBQ 45 gr X 8 X 6 DE | E43: 6 | F43: 8 | G43: =+E43*F43 -> 48 | H43: 0.16 | I43: 732.8 | J43: =+I43+I43*H43 -> 850.048 | K43: =+J43*F43 -> 6800.384 | L43: 1000 | M43: =+N43/G43 -> 0 | O43: =+N43*I43 -> 0 | P43: 0 | Q43: =+O43-P43 -> 0 | R43: =+Q43*H43 -> 0 | S43: =+R43+Q43 -> 0 | T43: =AX43*G43 -> 0 | U43: =+$W$3*T43 -> 0 | V43: =SUM(X43:AW43) -> 240 | W43: =+V43/U43 ->  | X43: =48*5 -> 240 | AZ43: 0
A44: TOSTIS | B44: 007226 | C44: 7703133072380 | D44: TOSTI AREPAS 150g X 17 X 1 AS | E44: 17 | F44: 1 | G44: 17 | H44: 0.1 | I44: 1545 | J44: 1699.5 | K44: 1699.5 | L44: 1800 | M44: 0 | O44: 0 | P44: 0 | Q44: 0 | R44: 0 | S44: 0 | T44: 0 | U44: 0 | V44: 0 | AZ44: 0
B45: 107228 | C45: 7703133072274 | D45: TOSTIAREPA 28 G X12 X6 DE | E45: 6 | F45: 12 | G45: 72 | H45: 0.1 | I45: 364 | J45: 400.4 | K45: 4804.8 | L45: 500 | M45: 0.5 | N45: 36 | O45: 13104 | P45: 2620.8 | Q45: 10483.2 | R45: 1048.32 | S45: 11531.52 | T45: 0 | U45: 0 | V45: 72 | X45: 72 | AZ45: 0
B46: 107240 | C46: 7703133072397 | D46: TOSTI EMPANADA CARNE 28GX12X6 DE | E46: 6 | F46: 12 | G46: 72 | H46: 0.1 | I46: 364 | J46: 400.4 | K46: 4804.8 | L46: 500 | M46: 0 | O46: 0 | P46: 0 | Q46: 0 | R46: 0 | S46: 0 | T46: 0 | U46: 0 | V46: 0 | AZ46: 0
B47: 107234 | C47: 7703133072335 | D47: TOSTI EMPANADA LIMON 28 G X 12 X 6 DE | E47: 6 | F47: 12 | G47: 72 | H47: 0.1 | I47: 364 | J47: 400.4 | K47: 4804.8 | L47: 500 | M47: 5 | N47: =5*72 -> 360 | O47: 131040 | P47: 26208 | Q47: 104832 | R47: 10483.2 | S47: 115315.2 | T47: 0 | U47: 0 | V47: 1080 | X47: =72*15 -> 1080 | AZ47: 0
B48: 107220 | C48: 7703133072199 | D48: TOSTI PIZZA POLLO 28G X 12 X 6 DE | E48: 6 | F48: 12 | G48: 72 | H48: 0.1 | I48: 364 | J48: 400.4 | K48: 4804.8 | L48: 500 | M48: 0 | O48: 0 | P48: 0 | Q48: 0 | R48: 0 | S48: 0 | T48: 0 | U48: 0 | V48: 72 | X48: 72 | AZ48: 0
B49: 107222 | C49: 7703133072199 | D49: TOSTI PIZZA QUESO 28G X 12 X 6 DE | E49: 6 | F49: 12 | G49: 72 | H49: 0.1 | I49: 364 | J49: 400.4 | K49: 4804.8 | L49: 500 | M49: 0 | O49: 0 | P49: 0 | Q49: 0 | R49: 0 | S49: 0 | T49: 0 | U49: 0 | V49: 0 | AZ49: 0
B50: 107333 | D50: TOSTI NACHOS QUESO 28 GR X 12 X 6 DE | E50: 6 | F50: 12 | G50: 72 | H50: 0.1 | I50: 364 | J50: 400.4 | K50: 4804.8 | L50: 500 | M50: 0 | O50: 0 | P50: 0 | Q50: 0 | R50: 0 | S50: 0 | T50: 0 | U50: 0 | V50: 144 | X50: =72*2 -> 144 | AZ50: 0
B51: 107231 | C51: 7703133072304 | D51: TOSTIEMPANADA QUESO PICANTE 28G X 12 X 6 | E51: 6 | F51: 12 | G51: 72 | H51: 0.1 | I51: 364 | J51: 400.4 | K51: 4804.8 | L51: 500 | M51: 0 | O51: 0 | P51: 0 | Q51: 0 | R51: 0 | S51: 0 | T51: 0 | U51: 0 | V51: 0 | AZ51: 0
B52: 107335 | D52: TOSTI NACHOS CHILE LIMON 28 GR X 12 X 6 | E52: 6 | F52: 12 | G52: 72 | H52: 0.1 | I52: 364 | J52: 400.4 | K52: 4804.8 | L52: 500 | M52: 0 | O52: 0 | P52: 0 | Q52: 0 | R52: 0 | S52: 0 | T52: 0 | U52: 0 | V52: 0 | AZ52: 0
B53: 107485 | C53: 7703133079996 | D53: TOSTI PLATANITOS 30 GR X 12 X 6 DE | E53: 6 | F53: 12 | G53: 72 | H53: 0.16 | I53: 388 | J53: 450.08 | K53: 5400.96 | L53: 600 | M53: 0 | O53: 0 | P53: 0 | Q53: 0 | R53: 0 | S53: 0 | T53: 0 | U53: 0 | V53: 72 | X53: 72 | AZ53: 0
B54: 107561 | D54: TOSTI NACHOS 45 GR 8 X 6 | E54: 6 | F54: 8 | G54: 48 | H54: 0.1 | I54: =650/1.1 -> 590.9090909 | J54: 650 | K54: 5200 | L54: 800 | M54: 0 | O54: 0 | P54: 0 | Q54: 0 | R54: 0 | S54: 0 | T54: 0 | U54: 0 | V54: 0
B55: 007337 | C55: 7703133079996 | D55: TOSTI NACHOS CHILE LIMON 150 GR X 17 X 1 AS | E55: 17 | F55: 1 | G55: 17 | H55: 0.1 | I55: 1545 | J55: =+I55+I55*H55 -> 1699.5 | K55: =+J55*F55 -> 1699.5 | L55: 1800 | M55: =+N55/G55 -> 0 | O55: =+N55*I55 -> 0 | P55: 0 | Q55: =+O55-P55 -> 0 | R55: =+Q55*H55 -> 0 | S55: =+R55+Q55 -> 0 | T55: =AX55*G55 -> 0 | U55: 0 | V55: =SUM(X55:AW55) -> 0 | W55: =+V55/U55 ->  | AZ55: 0
B56: 007338 | C56: 7703133079996 | D56: TOSTI NACHOS QUESO 150 GR X 17 X 1 AS | E56: 17 | F56: 1 | G56: 17 | H56: 0.1 | I56: 1545 | J56: =+I56+I56*H56 -> 1699.5 | K56: =+J56*F56 -> 1699.5 | L56: 1800 | M56: =+N56/G56 -> 0 | O56: =+N56*I56 -> 0 | P56: 0 | Q56: =+O56-P56 -> 0 | R56: =+Q56*H56 -> 0 | S56: =+R56+Q56 -> 0 | T56: =AX56*G56 -> 0 | U56: 0 | V56: =SUM(X56:AW56) -> 0 | W56: =+V56/U56 ->  | AZ56: 0
A57: OTROS | B57: 107574 | C57: 77031330200227 | D57: MEKATROCITOS POLLO 28 GR X 12 X 8 DE | E57: 8 | F57: 12 | G57: 96 | H57: 0.1 | I57: 273 | J57: 300.3 | K57: 3603.6 | L57: 400 | M57: 0 | O57: 0 | P57: 0 | Q57: 0 | R57: 0 | S57: 0 | T57: 0 | U57: 0 | V57: 0 | AZ57: 0
B58: 02424 | C58: 7703133024242 | D58: TOZINETAS FRED 40g X 40 X 1 AS | E58: 40 | F58: 1 | G58: 40 | H58: 0.16 | I58: 954.55 | J58: 1107.278 | K58: 1107.278 | L58: 1280 | M58: 0 | O58: 0 | P58: 0 | Q58: 0 | R58: 0 | S58: 0 | T58: 0 | U58: 0 | V58: 0 | AZ58: 0
B59: 107385 | C59: 7703133024211 | D59: TOZINETAS FRED 25G X 48 DE | E59: 48 | F59: 1 | G59: 48 | H59: 0.16 | I59: 498 | J59: 577.68 | K59: 577.68 | L59: 600 | M59: 0 | O59: 0 | P59: 0 | Q59: 0 | R59: 0 | S59: 0 | T59: 0 | U59: 0 | V59: 48 | X59: 48 | AZ59: 0
B60: 102411 | C60: 7703133024105 | D60: COSTILLITAS FRED 25GX 48 DE | E60: 48 | F60: 1 | G60: 48 | H60: 0.16 | I60: 498 | J60: 577.68 | K60: 577.68 | L60: 700 | M60: 0 | O60: 0 | P60: 0 | Q60: 0 | R60: 0 | S60: 0 | T60: 0 | U60: 0 | V60: 48 | X60: 48 | AZ60: 0
B61: 107996 | D61: PAPAS CHIPS 45g X 48 DE | E61: 48 | F61: 1 | G61: 48 | H61: 0.16 | I61: 646.8 | J61: 750.288 | K61: 750.288 | L61: 900 | M61: 0 | O61: 0 | P61: 0 | Q61: 0 | R61: 0 | S61: 0 | T61: 0 | U61: 0
D62: PAPAS CHIPS 150g X 17 AS | E62: 17 | F62: 1 | G62: 17 | H62: 0.16 | I62: =2250/1.16 -> 1939.655172 | J62: 2250 | K62: 2250 | L62: 2700 | M62: 0 | O62: 0 | P62: 0 | Q62: 0 | R62: 0 | S62: 0 | T62: 0 | U62: 0
B63: 07795 | C63: 7703133077958 | D63: LONCHERA DIVERTIDA 241g X 12 AS | E63: 12 | F63: 1 | G63: 12 | H63: 0.16 | I63: 3275.8621 | J63: 3800.000036 | K63: 3800.000036 | L63: 4650 | M63: 0 | O63: 0 | P63: 0 | Q63: 0 | R63: 0 | S63: 0 | T63: 0 | U63: 0 | V63: 12 | X63: 12 | AZ63: 0
B64: 02156 | C64: 7703133023979 | D64: LONCHIPACK 309g X 12 X 12 AS | E64: 12 | F64: 1 | G64: 12 | H64: 0.16 | I64: 4051.72 | J64: 4699.9952 | K64: 4699.9952 | L64: 6050 | M64: 0 | O64: 0 | P64: 0 | Q64: 0 | R64: 0 | S64: 0 | T64: 0 | U64: 0 | V64: 0
A65: CRESPAS | B65: 100008 | D65: MEKATO NATURAL 25 GR X 12 X 6 | E65: 12 | F65: 6 | G65: 72 | H65: 0.16 | I65: 474.16 | J65: 550.0256 | K65: 3300.1536 | L65: 700 | M65: 0 | O65: 0 | P65: 0 | Q65: 0 | R65: 0 | S65: 0 | T65: 0 | U65: 0 | V65: 0
B66: 100009 | D66: MEKATO LIMON 25 GR X 12 X 6 | E66: 12 | F66: 6 | G66: 72 | H66: 0.16 | I66: 474.16 | J66: 550.0256 | K66: 3300.1536 | L66: 700 | M66: 0 | O66: 0 | P66: 0 | Q66: 0 | R66: 0 | S66: 0 | T66: 0 | U66: 0 | V66: 0
B67: 100002 | D67: CRESPAS SALSA TOMATE 25 GR | E67: 12 | F67: 6 | G67: 72 | H67: 0.16 | I67: 505 | J67: 585.8 | K67: 3514.8 | L67: 700 | M67: 0 | O67: 0 | P67: 0 | Q67: 0 | R67: 0 | S67: 0 | T67: 0 | U67: 0 | V67: 0
B68: 100003 | D68: CRESPAS LIMON 25 GR | E68: 12 | F68: 6 | G68: 72 | H68: 0.16 | I68: 505 | J68: 585.8 | K68: 3514.8 | L68: 700 | M68: 0 | O68: 0 | P68: 0 | Q68: 0 | R68: 0 | S68: 0 | T68: 0 | U68: 0 | V68: 0
B69: 100004 | D69: CRESPAS POLLO 25 GR | E69: 12 | F69: 6 | G69: 72 | H69: 0.16 | I69: 505 | J69: 585.8 | K69: 3514.8 | L69: 700 | M69: 0 | O69: 0 | P69: =+O69*$O$83 -> 0 | Q69: 0 | R69: 0 | S69: 0 | T69: 0 | U69: 0 | V69: 0
A70: MEKATO | B70: 100144 | D70: ROSKOTAS AREQUIPE 14G X 12 X 7 | E70: 7 | F70: 12 | G70: 84 | H70: 0.1 | I70: 436.38 | J70: 480.018 | K70: 6074.4096 | L70: 700 | M70: 0 | O70: 0 | P70: 0 | Q70: 0 | R70: 0 | S70: 0 | T70: 0 | U70: 0 | V70: 0
B71: 000034 | D71: MEKATO ESCOLAR 205 GR X 24 | E71: 24 | F71: 1 | G71: 24 | H71: 0.16 | I71: 2844.82 | J71: 3299.9912 | K71: =+J71*F71 -> 3299.9912 | L71: 200 | M71: 0 | O71: 0 | P71: 0 | Q71: 0 | R71: 0 | S71: 0
B72: 100126 | D72: TICOS 9 G X 12 X 12 | E72: 12 | F72: 12 | G72: 144 | H72: 0.16 | I72: 86.21 | J72: 100.0036 | K72: 1200.0432 | L72: 200 | M72: 0 | O72: 0 | P72: 0 | Q72: 0 | R72: 0 | S72: 0 | T72: 0 | U72: 0 | V72: 0 | W72: =+V72/U72 -> 
B73: 100138 | D73: TICOS PICANTE 9 G X 12 X 20 | E73: 12 | F73: 20 | G73: 240 | H73: 0.16 | I73: 133.62 | J73: 154.9992 | K73: 3099.984 | L73: 200 | M73: 0 | O73: 0 | P73: 0 | Q73: 0 | R73: 0 | S73: 0
B74: 000127 | D74: TICOS 38G X 36 | E74: 36 | F74: 1 | G74: 36 | H74: 0.16 | I74: 327.59 | J74: 380.0044 | K74: 380.0044 | L74: 500 | M74: 0 | O74: 0 | P74: 0 | Q74: 0 | R74: 0 | S74: 0 | T74: 0 | U74: 0 | V74: 0
B75: 100130 | D75: TICOS QUESO 12 G X 12 X 20 | E75: 20 | F75: 12 | G75: 240 | H75: 0.16 | I75: 129.31 | J75: 149.9996 | K75: 1799.9952 | L75: 200 | M75: 0 | O75: 0 | P75: 0 | Q75: 0 | R75: 0 | S75: 0 | T75: 0 | U75: 0 | V75: 0
B76: 000152 | D76: TICOS QUESO 38 G X 36 | E76: 36 | F76: 1 | G76: 36 | H76: 0.16 | I76: 344.8276 | J76: 400.000016 | K76: 400.000016 | L76: 500 | M76: 0 | O76: 0 | P76: 0 | Q76: 0 | R76: 0 | S76: 0 | T76: 0 | U76: 0 | V76: 360 | X76: 360
B77: 100137 | D77: TICOS QUESO 8 G X 12 X 20 | E77: 20 | F77: 12 | G77: 240 | H77: 0.16 | I77: 133.62 | J77: 154.9992 | K77: 1859.9904 | L77: 500 | M77: 0 | O77: 0 | P77: 0 | Q77: 0 | R77: 0 | S77: 0 | T77: 0 | U77: 0 | V77: 0
B78: 100149 | D78: TICOS POLLO 9G 12 X 20 | E78: 12 | F78: 20 | G78: 240 | H78: 0.16 | I78: 133.62 | J78: 154.9992 | K78: 3099.984 | L78: 200 | M78: 0 | O78: 0 | P78: 0 | Q78: 0 | R78: 0 | S78: 0 | T78: 0 | U78: 0 | V78: 1200 | X78: =240*5 -> 1200
B79: 000128 | D79: TICOS POLLO 38 G X 36 | E79: 36 | F79: 1 | G79: 36 | H79: 0.16 | I79: 345 | J79: 400.2 | K79: 400.2 | L79: 500 | M79: 0 | O79: 0 | P79: 0 | Q79: 0 | R79: 0 | S79: 0 | T79: 0 | U79: 0 | V79: 0
B80: 000151 | D80: TICOS CARAMELO 38 G X 36 | E80: 36 | F80: 1 | G80: 36 | H80: 0.16 | I80: 344.8276 | J80: 400.000016 | K80: 400.000016 | L80: 500 | M80: 0 | O80: 0 | P80: 0 | Q80: 0 | R80: 0 | S80: 0 | T80: 0 | U80: 0 | V80: 0
B81: 000150 | C81: 7703133023979 | D81: TICO PICANTE 38G X 36 | E81: 36 | F81: 1 | G81: 36 | H81: 0.16 | I81: 327.5862 | J81: 379.999992 | K81: 379.999992 | L81: 500 | M81: 0 | O81: =+N81*I81 -> 0 | P81: 0 | Q81: =+O81-P81 -> 0 | R81: =+Q81*H81 -> 0 | S81: =+R81+Q81 -> 0 | T81: 0 | U81: 0 | V81: 108 | X81: =36*3 -> 108 | AZ81: 0
A82: CUPO CREDITO TOTAL | C82: 0 | E82: CUPO ACTUAL | F82: 0 | M82: =SUM(M5:M81) -> 38.5 | N82: =S82/1000 -> 897.844992 | O82: =SUM(O5:O81) -> 974961.1034 | P82: 194992.2207 | Q82: 779968.8828 | R82: 117876.1092 | S82: 897844.992 | T82: 0 | U82: 0 | V82: 6044 | AX82: =SUM(AX5:AX81) -> 0 | AY82: =SUM(AY5:AY81) -> 0 | AZ82: =SUM(AZ5:AZ81) -> 0
B83: 0 | C83: 0 | D83: 0 | E83: 0 | F83: 0 | G83: 0 | H83: 0 | I83: 0 | J83: 0 | K83: 0 | L83: 0 | O83: =S1 -> 0.2

Sheet Yupi (43) (hidden)
D1: FRANQUICIADO | E1: DIDIER VIZCAINO | M1: DESCUENTO | S1: 0.2 | T1: DIAS MES | W1: DIA HABIL
D2: CODIGO | M2: ZONA | S2: VILLANUEVA
D3: FECHA | E3: =TODAY() -> 2012-09-10 | M3: VALOR PEDIDO | S3: =S82 -> 464067.072 | T3: 26 | W3: 3
B4: Codigo | C4: Codigo Barras | D4: Descripción | E4: Displays por paca | F4: Unds por Display | G4: Unds por Paca | H4: Iva | I4: Precio Antes de Iva | J4: Precio incluido IVA | K4: Valor Display al tendero | L4: PVP Sugerido (Und) | M4: PACAS | N4: UNIDADES | O4: v.antes iva | P4: Descuento | Q4: total | R4: iva | S4: Total a Pagar | T4: PPTO DIA | U4: PPTO DIA HABIL | V4: VENTA ACUMULADA | W4: CUMP DIA HABIL | X4: 1 | Y4: =+X4+1 -> 2 | Z4: 3 | AA4: 4 | AB4: 5 | AC4: 6 | AD4: 7 | AE4: 8 | AF4: 9 | AG4: 10 | AH4: 11 | AI4: 12 | AJ4: 13 | AK4: 14 | AL4: 15 | AM4: 16 | AN4: 17 | AO4: 18 | AP4: 19 | AQ4: 20 | AR4: 21 | AS4: 22 | AT4: 23 | AU4: 24 | AV4: 25 | AW4: 26 | AX4: VENTA TOTAL | AY4: PPTO | AZ4: DIFERENCIA
A5: EXTRUIDOS | B5: 007695 | C5: 7703133078771 | D5: YUPIS QUESO 45g X 36 X 1 AS | E5: 36 | F5: 1 | G5: =+E5*F5 -> 36 | H5: 0.16 | I5: 560 | J5: =+I5+I5*H5 -> 649.6 | K5: =+J5*F5 -> 649.6 | L5: 700 | M5: =+N5/G5 -> 0 | O5: =+N5*I5 -> 0 | P5: =+O5*$O$83 -> 0 | Q5: =+O5-P5 -> 0 | R5: =+Q5*H5 -> 0 | S5: =+R5+Q5 -> 0 | T5: =AX5*G5 -> 0 | U5: =+$W$3*T5 -> 0 | V5: =SUM(X5:AW5) -> 0 | W5: =+V5/U5 ->  | AZ5: =+AY5-AX5 -> 0
B6: 007164 | C6: 7703133077309 | D6: YUPIS SALADO 60g X 36 X 1 AS | E6: 36 | F6: 1 | G6: =+E6*F6 -> 36 | H6: 0.16 | I6: =650/1.16 -> 560.3448276 | J6: 650 | K6: 650 | L6: 700 | M6: 0 | O6: 0 | P6: 0 | Q6: 0 | R6: 0 | S6: 0 | T6: 0 | U6: 0 | V6: 720 | X6: =36*20 -> 720 | AZ6: =+AY6-AX6 -> 0
B7: 007899 | D7: YUPIS PICANTE 45g X 36 X 1 AS | E7: 36 | F7: 1 | G7: 36 | H7: 0.16 | I7: =650/1.16 -> 560.3448276 | J7: 650 | K7: 650 | L7: 700 | M7: 0 | O7: 0 | P7: 0 | Q7: 0 | R7: 0 | S7: 0 | T7: 0 | U7: 0 | V7: 0 | AZ7: 0
B8: 07881 | C8: 7703133078818 | D8: YUPI CARAMELO 50gX36X1 AS | E8: 36 | F8: 1 | G8: 36 | H8: 0.16 | I8: =650/1.16 -> 560.3448276 | J8: 650 | K8: 650 | L8: 700 | M8: 0 | O8: 0 | P8: 0 | Q8: 0 | R8: 0 | S8: 0 | T8: 0 | U8: 0 | V8: 0 | AZ8: 0
B9: 007742 | D9: YUPI AREQUIQUESO 45 GR | E9: 36 | F9: 1 | G9: 36 | H9: 0.16 | I9: =650/1.16 -> 560.3448276 | J9: =+I9+I9*H9 -> 650 | K9: =+J9*F9 -> 650 | L9: 700 | M9: 0 | O9: =+N9*I9 -> 0 | P9: 0 | Q9: =+O9-P9 -> 0 | R9: =+Q9*H9 -> 0 | S9: 0 | T9: =AX9*G9 -> 0 | U9: =+$W$3*T9 -> 0 | V9: =SUM(X9:AW9) -> 0 | W9: =+V9/U9 ->  | AZ9: 0
B10: 102174 | C10: 7703133021739 | D10: YUPIS SALADO 10g X 12 X 20 DE | E10: 20 | F10: 12 | G10: 240 | H10: 0.16 | I10: =144/1.16 -> 124.137931 | J10: 144 | K10: 1728 | L10: 200 | M10: 1 | N10: 240 | O10: 29793.10345 | P10: 5958.62069 | Q10: 23834.48276 | R10: 3813.517241 | S10: 27648 | T10: 0 | U10: 0 | V10: 960 | X10: =240*4 -> 960 | AZ10: 0
B11: 07716 | C11: 7703133077248 | D11: TICK CHEESE 100G X 24 X 1 AS | E11: 24 | F11: 1 | G11: 24 | H11: 0.16 | I11: 767.2 | J11: 889.952 | K11: 889.952 | L11: 1000 | M11: 0 | O11: 0 | P11: 0 | Q11: 0 | R11: 0 | S11: 0 | T11: 0 | U11: 0 | V11: 0 | AZ11: 0
B12: 107729 | C12: 7703133077194 | D12: TICK CHEESE 40g X 12 X 6 DE | E12: 6 | F12: 12 | G12: 72 | H12: 0.16 | I12: 396 | J12: 459.36 | K12: 5512.32 | L12: 600 | M12: 0 | O12: 0 | P12: 0 | Q12: 0 | R12: 0 | S12: 0 | T12: 0 | U12: 0 | V12: 0 | AZ12: 0
B13: 02122 | C13: 7703133021227 | D13: PALOMITAS CARAMELO 68g X 36 X 1 AS | E13: 36 | F13: 1 | G13: 36 | H13: 0.16 | I13: 582 | J13: 675.12 | K13: 675.12 | L13: 800 | M13: 0 | O13: 0 | P13: 0 | Q13: 0 | R13: 0 | S13: 0 | T13: 0 | U13: 0 | V13: 0 | AZ13: 0
B14: 102117 | C14: 7703133021166 | D14: PALOMITAS CARAMELO 20g X 12 X 12 DE | E14: 12 | F14: 12 | G14: 144 | H14: 0.16 | I14: 344.8 | J14: 399.968 | K14: 4799.616 | L14: 500 | M14: 0 | O14: 0 | P14: 0 | Q14: 0 | R14: 0 | S14: 0 | T14: 0 | U14: 0 | V14: 0 | AZ14: 0
A15: RIZADAS | B15: 109128 | C15: 7703133091275 | D15: RIZADAS NATURAL 30g X 12 X 6 DE | E15: 6 | F15: 12 | G15: 72 | H15: 0.16 | I15: =750/1.16 -> 646.5517241 | J15: =+I15+I15*H15 -> 750 | K15: =+J15*F15 -> 9000 | L15: 800 | M15: =+N15/G15 -> 0 | O15: =+N15*I15 -> 0 | P15: 0 | Q15: =+O15-P15 -> 0 | R15: =+Q15*H15 -> 0 | S15: =+R15+Q15 -> 0 | AZ15: 0
B16: 109130 | C16: 7703133070324 | D16: RIZADAS POLLO 30g X 12 X 6 DE | E16: 6 | F16: 12 | G16: 72 | H16: 0.16 | I16: =750/1.16 -> 646.5517241 | J16: 750 | K16: 9000 | L16: 800 | M16: 0 | O16: 0 | P16: 0 | Q16: 0 | R16: 0 | S16: 0 | T16: 0 | U16: 0 | V16: 0 | AZ16: 0
B17: 109132 | C17: 7703133070362 | D17: RIZADAS MAYONESA 30g X 12 X 6 DE | E17: 6 | F17: 12 | G17: 72 | H17: 0.16 | I17: =750/1.16 -> 646.5517241 | J17: 750 | K17: 9000 | L17: 800 | M17: 0 | O17: 0 | P17: 0 | Q17: 0 | R17: 0 | S17: 0 | T17: 0 | U17: 0 | V17: 0 | AZ17: 0
B18: 109134 | C18: 7703133070348 | D18: RIZADAS LIMON 30g X 12 X 6 DE | E18: 6 | F18: 12 | G18: 72 | H18: 0.16 | I18: =750/1.16 -> 646.5517241 | J18: 750 | K18: 9000 | L18: 800 | M18: 0 | O18: 0 | P18: 0 | Q18: 0 | R18: 0 | S18: 0 | T18: 0 | U18: 0 | V18: 0 | AZ18: 0
B19: 107029 | C19: 7703133070287 | D19: RIZADAS BBQ RANCHERA 28g X 12 X 6 DE | E19: 6 | F19: 12 | G19: 72 | H19: 0.16 | I19: 581.9 | J19: 675.004 | K19: 8100.048 | L19: 800 | M19: =+N19/G19 -> 0 | O19: 0 | P19: 0 | Q19: 0 | R19: 0 | S19: 0 | T19: 0 | U19: 0 | V19: 0 | AZ19: 0
B20: 107122 | D20: RIZADAS MEXICAN FUSION 28g X 12 X 6 DE | E20: 6 | F20: 12 | G20: 72 | H20: 0.16 | I20: =750/1.16 -> 646.5517241 | J20: 750 | K20: 9000 | L20: 800 | M20: 0 | O20: 0 | P20: 0 | Q20: 0 | R20: 0 | S20: 0 | T20: 0 | U20: 0 | V20: 0 | AZ20: 0
B21: 107587 | C21: 7703133072922 | D21: RIZADAS NATURAL 115g X 20 X 1 AS | E21: 20 | F21: 1 | G21: 20 | H21: 0.16 | I21: =1907/1.16 -> 1643.965517 | J21: 1907 | K21: 1907 | L21: 2300 | M21: 0 | O21: 0 | P21: 0 | Q21: 0 | R21: 0 | S21: 0 | T21: 0 | U21: 0 | V21: 0 | AZ21: 0
B22: 107588 | C22: 7703133072946 | D22: RIZADAS MAYONESA 115g X 20 X 1 AS | E22: 20 | F22: 1 | G22: 20 | H22: 0.16 | I22: =1907/1.16 -> 1643.965517 | J22: 1907 | K22: 1907 | L22: 2300 | M22: 0 | O22: 0 | P22: 0 | Q22: 0 | R22: 0 | S22: 0 | T22: 0 | U22: 0 | V22: 0 | AZ22: 0
B23: 107586 | C23: 7703133072984 | D23: RIZADAS LIMON 115g X 20 X 1 AS | E23: 20 | F23: 1 | G23: 20 | H23: 0.16 | I23: =1907/1.16 -> 1643.965517 | J23: 1907 | K23: 1907 | L23: 2300 | M23: 0 | O23: 0 | P23: 0 | Q23: 0 | R23: 0 | S23: 0 | T23: 0 | U23: 0 | V23: 0 | AZ23: 0
B24: 107592 | C24: 7703133078856 | D24: RIZADAS POLLO 115g X 20 X 1 AS | E24: 20 | F24: 1 | G24: 20 | H24: 0.16 | I24: =1907/1.16 -> 1643.965517 | J24: 1907 | K24: 1907 | L24: 2300 | M24: 0 | O24: 0 | P24: 0 | Q24: 0 | R24: 0 | S24: 0 | T24: 0 | U24: 0 | V24: 20 | X24: 20 | AZ24: 0
B25: 007111 | D25: RIZADAS MEXICAN FUSION 115g X 20 X 1 AS | E25: 20 | F25: 1 | G25: 20 | H25: 0.16 | I25: 1508 | J25: =+I25+I25*H25 -> 1749.28 | K25: =+J25*F25 -> 1749.28 | L25: 1800 | M25: =+N25/G25 -> 0 | O25: =+N25*I25 -> 0 | P25: 0 | Q25: =+O25-P25 -> 0 | R25: =+Q25*H25 -> 0 | S25: =+R25+Q25 -> 0 | T25: =AX25*G25 -> 0 | U25: =+$W$3*T25 -> 0 | V25: =SUM(X25:AW25) -> 0 | W25: =+V25/U25 ->  | AZ25: 0
B26: 107443 | C26: 7703133072953 | D26: RIZADAS NATURAL 45GX8X6 DE | E26: 6 | F26: 8 | G26: 48 | H26: 0.16 | I26: 758.87 | J26: =+I26+I26*H26 -> 880.2892 | K26: =+J26*F26 -> 7042.3136 | L26: 1000 | M26: =+N26/G26 -> 0 | O26: =+N26*I26 -> 0 | P26: 0 | Q26: =+O26-P26 -> 0 | R26: =+Q26*H26 -> 0 | S26: =+R26+Q26 -> 0 | T26: =AX26*G26 -> 0 | U26: =+$W$3*T26 -> 0 | V26: =SUM(X26:AW26) -> 0 | W26: =+V26/U26 -> 
B27: 107295 | C27: 7703133072953 | D27: RIZADAS MAYONESA 45GX8X6 DE | E27: 6 | F27: 8 | G27: 48 | H27: 0.16 | I27: 758.87 | J27: 880.2892 | K27: 7042.3136 | L27: 1000 | M27: 0 | O27: 0 | P27: 0 | Q27: 0 | R27: 0 | S27: 0 | T27: 0 | U27: 0 | V27: 0 | AZ27: 0
B28: 107300 | C28: 7703133073011 | D28: RIZADAS POLLO 45GX8X6 DE | E28: 6 | F28: 8 | G28: 48 | H28: 0.16 | I28: 758.87 | J28: 880.2892 | K28: 7042.3136 | L28: 1000 | M28: 0 | O28: 0 | P28: 0 | Q28: 0 | R28: 0 | S28: 0 | T28: 0 | U28: 0 | V28: 240 | X28: =48*5 -> 240 | AZ28: 0
B29: 107299 | C29: 7703133072991 | D29: RIZADAS LIMON 45GX8X6 DE | E29: 6 | F29: 8 | G29: 48 | H29: 0.16 | I29: 758.87 | J29: 880.2892 | K29: 7042.3136 | L29: 1000 | M29: 0 | O29: 0 | P29: 0 | Q29: 0 | R29: 0 | S29: 0 | T29: 0 | U29: 0 | V29: 0 | AZ29: 0
A30: LIZAS | B30: 106982 | C30: 7703133070409 | D30: LIZA´S S/TOMATE 30g X 12 X 5 DE | E30: 5 | F30: 12 | G30: 60 | H30: 0.16 | I30: =715/1.16 -> 616.3793103 | J30: 715 | K30: 8580 | L30: 800 | M30: 2 | N30: 120 | O30: 73965.51724 | P30: 14793.10345 | Q30: 59172.41379 | R30: 9467.586207 | S30: 68640 | T30: 0 | U30: 0 | V30: 0 | AZ30: 0
B31: 106983 | C31: 7703133072423 | D31: LIZA´S S/ROSADA 30g X 12 X 5 DE | E31: 5 | F31: 12 | G31: 60 | H31: 0.16 | I31: =715/1.16 -> 616.3793103 | J31: 715 | K31: 8580 | L31: 800 | M31: 2 | N31: 120 | O31: 73965.51724 | P31: 14793.10345 | Q31: 59172.41379 | R31: 9467.586207 | S31: 68640 | T31: 0 | U31: 0 | V31: 0 | AZ31: 0
B32: 107380 | C32: 7703133070461 | D32: LIZA'S POLLO 30g X 12 X 5 DE | E32: 5 | F32: 12 | G32: 60 | H32: 0.16 | I32: =715/1.16 -> 616.3793103 | J32: 715 | K32: 8580 | L32: 800 | M32: 0 | O32: 0 | P32: 0 | Q32: 0 | R32: 0 | S32: 0 | T32: 0 | U32: 0 | V32: 0 | AZ32: 0
B33: 107132 | C33: 7703133070447 | D33: LIZA´S LIMÓN 30g X 12 X 5 DE | E33: 5 | F33: 12 | G33: 60 | H33: 0.16 | I33: =715/1.16 -> 616.3793103 | J33: 715 | K33: 8580 | L33: 800 | M33: 2 | N33: 120 | O33: 73965.51724 | P33: 14793.10345 | Q33: 59172.41379 | R33: 9467.586207 | S33: 68640 | T33: 0 | U33: 0 | V33: 0 | AZ33: 0
A34: MIXTOS | B34: 07260 | C34: 7703133072380 | D34: EL GOLPE 110g X 24 X 1 AS | E34: 24 | F34: 1 | G34: 24 | H34: 0.16 | I34: 1379.31 | J34: 1599.9996 | K34: 1599.9996 | L34: 1800 | M34: 0 | O34: 0 | P34: 0 | Q34: 0 | R34: 0 | S34: 0 | T34: 0 | U34: 0 | V34: 24 | X34: 24 | AZ34: 0
B35: 107258 | C35: 7703133077231 | D35: GOLPE 30g X 12 X 6 DE | E35: 6 | F35: 12 | G35: 72 | H35: 0.16 | I35: 435.34 | J35: 504.9944 | K35: 6059.9328 | L35: 1000 | M35: 0 | O35: 0 | P35: 0 | Q35: 0 | R35: 0 | S35: 0
B36: 107726 | C36: 7703133077231 | D36: GOLPE MIX 45g X 8 X 6 DE | E36: 6 | F36: 8 | G36: 48 | H36: 0.16 | I36: 733 | J36: 850.28 | K36: 6802.24 | L36: 1000 | M36: 0 | O36: 0 | P36: 0 | Q36: 0 | R36: 0 | S36: 0 | T36: 0 | U36: 0 | V36: 0 | AZ36: 0
B37: 107836 | C37: 7703133072571 | D37: EL GOLPE 45 gr 8 X 6 DE | E37: 6 | F37: 8 | G37: 48 | H37: 0.16 | I37: 733 | J37: 850.28 | K37: 6802.24 | L37: 1000 | M37: 0 | O37: 0 | P37: 0 | Q37: 0 | R37: 0 | S37: 0 | T37: 0 | U37: 0 | V37: 144 | X37: =48*3 -> 144 | AZ37: 0
B38: 107254 | C38: 7703133072540 | D38: EL GOLPE LIMON 45 gr 8 X 6 DE | E38: 6 | F38: 8 | G38: 48 | H38: 0.16 | I38: 733 | J38: 850.28 | K38: 6802.24 | L38: 1000 | M38: 0 | O38: 0 | P38: 0 | Q38: 0 | R38: 0 | S38: 0 | T38: 0 | U38: 0 | V38: 0 | AZ38: 0
B39: 107261 | C39: 7703133072533 | D39: EL GOLPE RANCHERO 45G X 8 X 6 DE | E39: 6 | F39: 8 | G39: 48 | H39: 0.16 | I39: 733 | J39: 850.28 | K39: 6802.24 | L39: 1000 | M39: 6 | N39: =36*8 -> 288 | O39: 211104 | P39: 42220.8 | Q39: 168883.2 | R39: 27021.312 | S39: 195904.512 | T39: 0 | U39: 0 | V39: 480 | X39: 480 | AZ39: 0
B40: 107590 | C40: 7703133072496 | D40: GOLPE RANCHERO 140 GR 17 X 1 AS | E40: 17 | F40: 1 | G40: =+E40*F40 -> 17 | H40: 0.16 | I40: 2161 | J40: =+I40+I40*H40 -> 2506.76 | K40: =+J40*F40 -> 2506.76 | L40: 2800 | M40: =+N40/G40 -> 0 | O40: =+N40*I40 -> 0 | P40: 0 | Q40: =+O40-P40 -> 0 | R40: =+Q40*H40 -> 0 | S40: =+R40+Q40 -> 0 | T40: =AX40*G40 -> 0 | U40: =+$W$3*T40 -> 0 | V40: =SUM(X40:AW40) -> 0 | W40: =+V40/U40 ->  | AZ40: 0
B41: 107465 | D41: WOW MIX NATURAL 45 gr X 8 X 6 DE | E41: 6 | F41: 8 | G41: =+E41*F41 -> 48 | H41: 0.16 | I41: =850/1.16 -> 732.7586207 | J41: =+I41+I41*H41 -> 850 | K41: =+J41*F41 -> 6800 | L41: 1000 | M41: =+N41/G41 -> 0 | O41: =+N41*I41 -> 0 | P41: 0 | Q41: =+O41-P41 -> 0 | R41: =+Q41*H41 -> 0 | S41: =+R41+Q41 -> 0 | T41: =AX41*G41 -> 0 | U41: =+$W$3*T41 -> 0 | V41: =SUM(X41:AW41) -> 0 | W41: =+V41/U41 ->  | AZ41: 0
B42: 107445 | D42: WOW MIX QUESO 45 gr X 8 X 6 DE | E42: 6 | F42: 8 | G42: =+E42*F42 -> 48 | H42: 0.16 | I42: =850/1.16 -> 732.7586207 | J42: =+I42+I42*H42 -> 850 | K42: =+J42*F42 -> 6800 | L42: 1000 | M42: =+N42/G42 -> 0 | O42: =+N42*I42 -> 0 | P42: 0 | Q42: =+O42-P42 -> 0 | R42: =+Q42*H42 -> 0 | S42: =+R42+Q42 -> 0 | T42: =AX42*G42 -> 0 | U42: =+$W$3*T42 -> 0 | V42: =SUM(X42:AW42) -> 0 | W42: =+V42/U42 ->  | AZ42: 0
B43: 107447 | D43: WOW MIX BBQ 45 gr X 8 X 6 DE | E43: 6 | F43: 8 | G43: =+E43*F43 -> 48 | H43: 0.16 | I43: 732.8 | J43: =+I43+I43*H43 -> 850.048 | K43: =+J43*F43 -> 6800.384 | L43: 1000 | M43: =+N43/G43 -> 0 | O43: =+N43*I43 -> 0 | P43: 0 | Q43: =+O43-P43 -> 0 | R43: =+Q43*H43 -> 0 | S43: =+R43+Q43 -> 0 | T43: =AX43*G43 -> 0 | U43: =+$W$3*T43 -> 0 | V43: =SUM(X43:AW43) -> 240 | W43: =+V43/U43 ->  | X43: =48*5 -> 240 | AZ43: 0
A44: TOSTIS | B44: 007226 | C44: 7703133072380 | D44: TOSTI AREPAS 150g X 17 X 1 AS | E44: 17 | F44: 1 | G44: 17 | H44: 0.1 | I44: 1545 | J44: 1699.5 | K44: 1699.5 | L44: 1800 | M44: 0 | O44: 0 | P44: 0 | Q44: 0 | R44: 0 | S44: 0 | T44: 0 | U44: 0 | V44: 0 | AZ44: 0
B45: 107228 | C45: 7703133072274 | D45: TOSTIAREPA 28 G X12 X6 DE | E45: 6 | F45: 12 | G45: 72 | H45: 0.1 | I45: 364 | J45: 400.4 | K45: 4804.8 | L45: 500 | M45: 0 | O45: 0 | P45: 0 | Q45: 0 | R45: 0 | S45: 0 | T45: 0 | U45: 0 | V45: 72 | X45: 72 | AZ45: 0
B46: 107240 | C46: 7703133072397 | D46: TOSTI EMPANADA CARNE 28GX12X6 DE | E46: 6 | F46: 12 | G46: 72 | H46: 0.1 | I46: 364 | J46: 400.4 | K46: 4804.8 | L46: 500 | M46: 0 | O46: 0 | P46: 0 | Q46: 0 | R46: 0 | S46: 0 | T46: 0 | U46: 0 | V46: 0 | AZ46: 0
B47: 107234 | C47: 7703133072335 | D47: TOSTI EMPANADA LIMON 28 G X 12 X 6 DE | E47: 6 | F47: 12 | G47: 72 | H47: 0.1 | I47: 364 | J47: 400.4 | K47: 4804.8 | L47: 500 | M47: 0 | O47: 0 | P47: 0 | Q47: 0 | R47: 0 | S47: 0 | T47: 0 | U47: 0 | V47: 1080 | X47: =72*15 -> 1080 | AZ47: 0
B48: 107220 | C48: 7703133072199 | D48: TOSTI PIZZA POLLO 28G X 12 X 6 DE | E48: 6 | F48: 12 | G48: 72 | H48: 0.1 | I48: 364 | J48: 400.4 | K48: 4804.8 | L48: 500 | M48: 0 | O48: 0 | P48: 0 | Q48: 0 | R48: 0 | S48: 0 | T48: 0 | U48: 0 | V48: 72 | X48: 72 | AZ48: 0
B49: 107222 | C49: 7703133072199 | D49: TOSTI PIZZA QUESO 28G X 12 X 6 DE | E49: 6 | F49: 12 | G49: 72 | H49: 0.1 | I49: 364 | J49: 400.4 | K49: 4804.8 | L49: 500 | M49: 0 | O49: 0 | P49: 0 | Q49: 0 | R49: 0 | S49: 0 | T49: 0 | U49: 0 | V49: 0 | AZ49: 0
B50: 107333 | D50: TOSTI NACHOS QUESO 28 GR X 12 X 6 DE | E50: 6 | F50: 12 | G50: 72 | H50: 0.1 | I50: 364 | J50: 400.4 | K50: 4804.8 | L50: 500 | M50: 0 | O50: 0 | P50: 0 | Q50: 0 | R50: 0 | S50: 0 | T50: 0 | U50: 0 | V50: 144 | X50: =72*2 -> 144 | AZ50: 0
B51: 107231 | C51: 7703133072304 | D51: TOSTIEMPANADA QUESO PICANTE 28G X 12 X 6 | E51: 6 | F51: 12 | G51: 72 | H51: 0.1 | I51: 364 | J51: 400.4 | K51: 4804.8 | L51: 500 | M51: 0 | O51: 0 | P51: 0 | Q51: 0 | R51: 0 | S51: 0 | T51: 0 | U51: 0 | V51: 0 | AZ51: 0
B52: 107335 | D52: TOSTI NACHOS CHILE LIMON 28 GR X 12 X 6 | E52: 6 | F52: 12 | G52: 72 | H52: 0.1 | I52: 364 | J52: 400.4 | K52: 4804.8 | L52: 500 | M52: 0 | O52: 0 | P52: 0 | Q52: 0 | R52: 0 | S52: 0 | T52: 0 | U52: 0 | V52: 0 | AZ52: 0
B53: 107485 | C53: 7703133079996 | D53: TOSTI PLATANITOS 30 GR X 12 X 6 DE | E53: 6 | F53: 12 | G53: 72 | H53: 0.16 | I53: 388 | J53: 450.08 | K53: 5400.96 | L53: 600 | M53: 0 | O53: 0 | P53: 0 | Q53: 0 | R53: 0 | S53: 0 | T53: 0 | U53: 0 | V53: 72 | X53: 72 | AZ53: 0
B54: 107561 | D54: TOSTI NACHOS 45 GR 8 X 6 | E54: 6 | F54: 8 | G54: 48 | H54: 0.1 | I54: =650/1.1 -> 590.9090909 | J54: 650 | K54: 5200 | L54: 800 | M54: 0 | O54: 0 | P54: 0 | Q54: 0 | R54: 0 | S54: 0 | T54: 0 | U54: 0 | V54: 0
B55: 007337 | C55: 7703133079996 | D55: TOSTI NACHOS CHILE LIMON 150 GR X 17 X 1 AS | E55: 17 | F55: 1 | G55: 17 | H55: 0.1 | I55: 1545 | J55: =+I55+I55*H55 -> 1699.5 | K55: =+J55*F55 -> 1699.5 | L55: 1800 | M55: =+N55/G55 -> 0 | O55: =+N55*I55 -> 0 | P55: 0 | Q55: =+O55-P55 -> 0 | R55: =+Q55*H55 -> 0 | S55: =+R55+Q55 -> 0 | T55: =AX55*G55 -> 0 | U55: 0 | V55: =SUM(X55:AW55) -> 0 | W55: =+V55/U55 ->  | AZ55: 0
B56: 007338 | C56: 7703133079996 | D56: TOSTI NACHOS QUESO 150 GR X 17 X 1 AS | E56: 17 | F56: 1 | G56: 17 | H56: 0.1 | I56: 1545 | J56: =+I56+I56*H56 -> 1699.5 | K56: =+J56*F56 -> 1699.5 | L56: 1800 | M56: =+N56/G56 -> 0 | O56: =+N56*I56 -> 0 | P56: 0 | Q56: =+O56-P56 -> 0 | R56: =+Q56*H56 -> 0 | S56: =+R56+Q56 -> 0 | T56: =AX56*G56 -> 0 | U56: 0 | V56: =SUM(X56:AW56) -> 0 | W56: =+V56/U56 ->  | AZ56: 0
A57: OTROS | B57: 107574 | C57: 77031330200227 | D57: MEKATROCITOS POLLO 28 GR X 12 X 8 DE | E57: 8 | F57: 12 | G57: 96 | H57: 0.1 | I57: 273 | J57: 300.3 | K57: 3603.6 | L57: 400 | M57: 1.5 | N57: 144 | O57: 39312 | P57: 7862.4 | Q57: 31449.6 | R57: 3144.96 | S57: 34594.56 | T57: 0 | U57: 0 | V57: 0 | AZ57: 0
B58: 02424 | C58: 7703133024242 | D58: TOZINETAS FRED 40g X 40 X 1 AS | E58: 40 | F58: 1 | G58: 40 | H58: 0.16 | I58: 954.55 | J58: 1107.278 | K58: 1107.278 | L58: 1280 | M58: 0 | O58: 0 | P58: 0 | Q58: 0 | R58: 0 | S58: 0 | T58: 0 | U58: 0 | V58: 0 | AZ58: 0
B59: 107385 | C59: 7703133024211 | D59: TOZINETAS FRED 25G X 48 DE | E59: 48 | F59: 1 | G59: 48 | H59: 0.16 | I59: 498 | J59: 577.68 | K59: 577.68 | L59: 600 | M59: 0 | O59: 0 | P59: 0 | Q59: 0 | R59: 0 | S59: 0 | T59: 0 | U59: 0 | V59: 48 | X59: 48 | AZ59: 0
B60: 102411 | C60: 7703133024105 | D60: COSTILLITAS FRED 25GX 48 DE | E60: 48 | F60: 1 | G60: 48 | H60: 0.16 | I60: 498 | J60: 577.68 | K60: 577.68 | L60: 700 | M60: 0 | O60: 0 | P60: 0 | Q60: 0 | R60: 0 | S60: 0 | T60: 0 | U60: 0 | V60: 48 | X60: 48 | AZ60: 0
B61: 107996 | D61: PAPAS CHIPS 45g X 48 DE | E61: 48 | F61: 1 | G61: 48 | H61: 0.16 | I61: 646.8 | J61: 750.288 | K61: 750.288 | L61: 900 | M61: 0 | O61: 0 | P61: 0 | Q61: 0 | R61: 0 | S61: 0 | T61: 0 | U61: 0
D62: PAPAS CHIPS 150g X 17 AS | E62: 17 | F62: 1 | G62: =+E62*F62 -> 17 | H62: 0.16 | I62: =2250/1.16 -> 1939.655172 | J62: =+I62+I62*H62 -> 2250 | K62: =+J62*F62 -> 2250 | L62: 2700 | M62: =+N62/G62 -> 0 | O62: =+N62*I62 -> 0 | P62: =+O62*$O$83 -> 0 | Q62: =+O62-P62 -> 0 | R62: =+Q62*H62 -> 0 | S62: =+R62+Q62 -> 0 | T62: =AX62*G62 -> 0 | U62: =+$W$3*T62 -> 0
B63: 07795 | C63: 7703133077958 | D63: LONCHERA DIVERTIDA 241g X 12 AS | E63: 12 | F63: 1 | G63: 12 | H63: 0.16 | I63: 3275.8621 | J63: 3800.000036 | K63: 3800.000036 | L63: 4650 | M63: 0 | O63: 0 | P63: =+O63*$O$83 -> 0 | Q63: 0 | R63: 0 | S63: 0 | T63: 0 | U63: 0 | V63: 12 | X63: 12 | AZ63: 0
B64: 02156 | C64: 7703133023979 | D64: LONCHIPACK 309g X 12 X 12 AS | E64: 12 | F64: 1 | G64: 12 | H64: 0.16 | I64: 4051.72 | J64: 4699.9952 | K64: 4699.9952 | L64: 6050 | M64: 0 | O64: 0 | P64: 0 | Q64: 0 | R64: 0 | S64: 0 | T64: 0 | U64: 0 | V64: 0
A65: CRESPAS | B65: 100008 | D65: MEKATO NATURAL 25 GR X 12 X 6 | E65: 12 | F65: 6 | G65: 72 | H65: 0.16 | I65: 474.16 | J65: 550.0256 | K65: 3300.1536 | L65: 700 | M65: 0 | O65: 0 | P65: 0 | Q65: 0 | R65: 0 | S65: 0 | T65: 0 | U65: 0 | V65: 0
B66: 100009 | D66: MEKATO LIMON 25 GR X 12 X 6 | E66: 12 | F66: 6 | G66: 72 | H66: 0.16 | I66: 474.16 | J66: 550.0256 | K66: 3300.1536 | L66: 700 | M66: 0 | O66: 0 | P66: 0 | Q66: 0 | R66: 0 | S66: 0 | T66: 0 | U66: 0 | V66: 0
B67: 100002 | D67: CRESPAS SALSA TOMATE 25 GR | E67: 12 | F67: 6 | G67: 72 | H67: 0.16 | I67: 505 | J67: 585.8 | K67: 3514.8 | L67: 700 | M67: 0 | O67: 0 | P67: 0 | Q67: 0 | R67: 0 | S67: 0 | T67: 0 | U67: 0 | V67: 0
B68: 100003 | D68: CRESPAS LIMON 25 GR | E68: 12 | F68: 6 | G68: 72 | H68: 0.16 | I68: 505 | J68: 585.8 | K68: 3514.8 | L68: 700 | M68: 0 | O68: 0 | P68: 0 | Q68: 0 | R68: 0 | S68: 0 | T68: 0 | U68: 0 | V68: 0
B69: 100004 | D69: CRESPAS POLLO 25 GR | E69: 12 | F69: 6 | G69: 72 | H69: 0.16 | I69: 505 | J69: 585.8 | K69: 3514.8 | L69: 700 | M69: 0 | O69: 0 | P69: 0 | Q69: 0 | R69: 0 | S69: 0 | T69: 0 | U69: 0 | V69: 0
A70: MEKATO | B70: 100144 | D70: ROSKOTAS AREQUIPE 14G X 12 X 7 | E70: 7 | F70: 12 | G70: 84 | H70: 0.1 | I70: 436.38 | J70: 480.018 | K70: 6074.4096 | L70: 700 | M70: 0 | O70: 0 | P70: 0 | Q70: 0 | R70: 0 | S70: 0 | T70: 0 | U70: 0 | V70: 0
B71: 000034 | D71: MEKATO ESCOLAR 205 GR X 24 | E71: 24 | F71: 1 | G71: 24 | H71: 0.16 | I71: 2844.82 | J71: 3299.9912 | K71: =+J71*F71 -> 3299.9912 | L71: 200 | M71: 0 | O71: 0 | P71: =+O71*$O$83 -> 0 | Q71: 0 | R71: 0 | S71: 0
B72: 100126 | D72: TICOS 9 G X 12 X 12 | E72: 12 | F72: 12 | G72: 144 | H72: 0.16 | I72: 86.21 | J72: 100.0036 | K72: 1200.0432 | L72: 200 | M72: 0 | O72: 0 | P72: 0 | Q72: 0 | R72: 0 | S72: 0 | T72: 0 | U72: 0 | V72: 0 | W72: =+V72/U72 -> 
B73: 100138 | D73: TICOS PICANTE 9 G X 12 X 20 | E73: 12 | F73: 20 | G73: 240 | H73: 0.16 | I73: 133.62 | J73: 154.9992 | K73: 3099.984 | L73: 200 | M73: 0 | O73: 0 | P73: 0 | Q73: 0 | R73: 0 | S73: 0
B74: 000127 | D74: TICOS 38G X 36 | E74: 36 | F74: 1 | G74: 36 | H74: 0.16 | I74: 327.59 | J74: 380.0044 | K74: 380.0044 | L74: 500 | M74: 0 | O74: 0 | P74: 0 | Q74: 0 | R74: 0 | S74: 0 | T74: 0 | U74: 0 | V74: 0
B75: 100130 | D75: TICOS QUESO 12 G X 12 X 20 | E75: 20 | F75: 12 | G75: 240 | H75: 0.16 | I75: 129.31 | J75: 149.9996 | K75: 1799.9952 | L75: 200 | M75: 0 | O75: 0 | P75: 0 | Q75: 0 | R75: 0 | S75: 0 | T75: 0 | U75: 0 | V75: 0
B76: 000152 | D76: TICOS QUESO 38 G X 36 | E76: 36 | F76: 1 | G76: 36 | H76: 0.16 | I76: 344.8276 | J76: 400.000016 | K76: 400.000016 | L76: 500 | M76: 0 | O76: 0 | P76: 0 | Q76: 0 | R76: 0 | S76: 0 | T76: 0 | U76: 0 | V76: 360 | X76: 360
B77: 100137 | D77: TICOS QUESO 8 G X 12 X 20 | E77: 20 | F77: 12 | G77: 240 | H77: 0.16 | I77: 133.62 | J77: 154.9992 | K77: 1859.9904 | L77: 500 | M77: 0 | O77: 0 | P77: 0 | Q77: 0 | R77: 0 | S77: 0 | T77: 0 | U77: 0 | V77: 0
B78: 100149 | D78: TICOS POLLO 9G 12 X 20 | E78: 12 | F78: 20 | G78: 240 | H78: 0.16 | I78: 133.62 | J78: 154.9992 | K78: 3099.984 | L78: 200 | M78: 0 | O78: 0 | P78: 0 | Q78: 0 | R78: 0 | S78: 0 | T78: 0 | U78: 0 | V78: 1200 | X78: =240*5 -> 1200
B79: 000128 | D79: TICOS POLLO 38 G X 36 | E79: 36 | F79: 1 | G79: 36 | H79: 0.16 | I79: 345 | J79: 400.2 | K79: 400.2 | L79: 500 | M79: 0 | O79: 0 | P79: 0 | Q79: 0 | R79: 0 | S79: 0 | T79: 0 | U79: 0 | V79: 0
B80: 000151 | D80: TICOS CARAMELO 38 G X 36 | E80: 36 | F80: 1 | G80: 36 | H80: 0.16 | I80: 344.8276 | J80: 400.000016 | K80: 400.000016 | L80: 500 | M80: 0 | O80: 0 | P80: 0 | Q80: 0 | R80: 0 | S80: 0 | T80: 0 | U80: 0 | V80: 0
B81: 000150 | C81: 7703133023979 | D81: TICO PICANTE 38G X 36 | E81: 36 | F81: 1 | G81: 36 | H81: 0.16 | I81: 327.5862 | J81: 379.999992 | K81: 379.999992 | L81: 500 | M81: 0 | O81: =+N81*I81 -> 0 | P81: 0 | Q81: =+O81-P81 -> 0 | R81: =+Q81*H81 -> 0 | S81: =+R81+Q81 -> 0 | T81: 0 | U81: 0 | V81: 108 | X81: =36*3 -> 108 | AZ81: 0
A82: CUPO CREDITO TOTAL | C82: 0 | E82: CUPO ACTUAL | F82: 0 | M82: =SUM(M5:M81) -> 14.5 | N82: =S82/1000 -> 464.067072 | O82: =SUM(O5:O81) -> 502105.6552 | P82: 100421.131 | Q82: 401684.5241 | R82: 62382.54786 | S82: 464067.072 | T82: 0 | U82: 0 | V82: 6044 | AX82: =SUM(AX5:AX81) -> 0 | AY82: =SUM(AY5:AY81) -> 0 | AZ82: =SUM(AZ5:AZ81) -> 0
B83: 0 | C83: 0 | D83: 0 | E83: 0 | F83: 0 | G83: 0 | H83: 0 | I83: 0 | J83: 0 | K83: 0 | L83: 0 | O83: =S1 -> 0.2

Sheet Yupi (45) (hidden)
D1: FRANQUICIADO | E1: DIDIER VIZCAINO | M1: DESCUENTO | S1: 0.2 | T1: DIAS MES | W1: DIA HABIL
D2: CODIGO | M2: ZONA | S2: VILLANUEVA
D3: FECHA | E3: =TODAY() -> 2012-09-10 | M3: VALOR PEDIDO | S3: =S81 -> 575183.9693 | T3: 26 | W3: 3
B4: Codigo | C4: Codigo Barras | D4: Descripción | E4: Displays por paca | F4: Unds por Display | G4: Unds por Paca | H4: Iva | I4: Precio Antes de Iva | J4: Precio incluido IVA | K4: Valor Display al tendero | L4: PVP Sugerido (Und) | M4: PACAS | N4: UNIDADES | O4: v.antes iva | P4: Descuento | Q4: total | R4: iva | S4: Total a Pagar | T4: PPTO DIA | U4: PPTO DIA HABIL | V4: VENTA ACUMULADA | W4: CUMP DIA HABIL | X4: 1 | Y4: =+X4+1 -> 2 | Z4: 3 | AA4: 4 | AB4: 5 | AC4: 6 | AD4: 7 | AE4: 8 | AF4: 9 | AG4: 10 | AH4: 11 | AI4: 12 | AJ4: 13 | AK4: 14 | AL4: 15 | AM4: 16 | AN4: 17 | AO4: 18 | AP4: 19 | AQ4: 20 | AR4: 21 | AS4: 22 | AT4: 23 | AU4: 24 | AV4: 25 | AW4: 26 | AX4: VENTA TOTAL | AY4: PPTO | AZ4: DIFERENCIA
A5: EXTRUIDOS | B5: 007695 | C5: 7703133078771 | D5: YUPIS QUESO 45g X 36 X 1 AS | E5: 36 | F5: 1 | G5: =+E5*F5 -> 36 | H5: 0.16 | I5: 560 | J5: =+I5+I5*H5 -> 649.6 | K5: =+J5*F5 -> 649.6 | L5: 700 | M5: =+N5/G5 -> 2 | N5: 72 | O5: =+N5*I5 -> 40320 | P5: =+O5*$O$82 -> 8064 | Q5: =+O5-P5 -> 32256 | R5: =+Q5*H5 -> 5160.96 | S5: =+R5+Q5 -> 37416.96 | T5: =AX5*G5 -> 0 | U5: =+$W$3*T5 -> 0 | V5: =SUM(X5:AW5) -> 0 | W5: =+V5/U5 ->  | AZ5: =+AY5-AX5 -> 0
B6: 007164 | C6: 7703133077309 | D6: YUPIS SALADO 60g X 36 X 1 AS | E6: 36 | F6: 1 | G6: =+E6*F6 -> 36 | H6: 0.16 | I6: =650/1.16 -> 560.3448276 | J6: 650 | K6: 650 | L6: 700 | M6: 0 | O6: 0 | P6: 0 | Q6: 0 | R6: 0 | S6: 0 | T6: 0 | U6: 0 | V6: 720 | X6: =36*20 -> 720 | AZ6: =+AY6-AX6 -> 0
B7: 007899 | D7: YUPIS PICANTE 45g X 36 X 1 AS | E7: 36 | F7: 1 | G7: 36 | H7: 0.16 | I7: =650/1.16 -> 560.3448276 | J7: 650 | K7: 650 | L7: 700 | M7: 2 | N7: 72 | O7: 40344.82759 | P7: 8068.965517 | Q7: 32275.86207 | R7: 5164.137931 | S7: 37440 | T7: 0 | U7: 0 | V7: 0 | AZ7: 0
B8: 07881 | C8: 7703133078818 | D8: YUPI CARAMELO 50gX36X1 AS | E8: 36 | F8: 1 | G8: 36 | H8: 0.16 | I8: =650/1.16 -> 560.3448276 | J8: 650 | K8: 650 | L8: 700 | M8: 4 | N8: 144 | O8: 80689.65517 | P8: 16137.93103 | Q8: 64551.72414 | R8: 10328.27586 | S8: 74880 | T8: 0 | U8: 0 | V8: 0 | AZ8: 0
B9: 007742 | D9: YUPI AREQUIQUESO 45 GR | E9: 36 | F9: 1 | G9: 36 | H9: 0.16 | I9: =650/1.16 -> 560.3448276 | J9: =+I9+I9*H9 -> 650 | K9: =+J9*F9 -> 650 | L9: 700 | M9: 0 | O9: =+N9*I9 -> 0 | P9: 0 | Q9: =+O9-P9 -> 0 | R9: =+Q9*H9 -> 0 | S9: 0 | T9: =AX9*G9 -> 0 | U9: =+$W$3*T9 -> 0 | V9: =SUM(X9:AW9) -> 0 | W9: =+V9/U9 ->  | AZ9: 0
B10: 102174 | C10: 7703133021739 | D10: YUPIS SALADO 10g X 12 X 20 DE | E10: 20 | F10: 12 | G10: 240 | H10: 0.16 | I10: =144/1.16 -> 124.137931 | J10: 144 | K10: 1728 | L10: 200 | M10: 0 | O10: 0 | P10: 0 | Q10: 0 | R10: 0 | S10: 0 | T10: 0 | U10: 0 | V10: 960 | X10: =240*4 -> 960 | AZ10: 0
B11: 07716 | C11: 7703133077248 | D11: TICK CHEESE 100G X 24 X 1 AS | E11: 24 | F11: 1 | G11: 24 | H11: 0.16 | I11: 767.2 | J11: 889.952 | K11: 889.952 | L11: 1000 | M11: 0 | O11: 0 | P11: 0 | Q11: 0 | R11: 0 | S11: 0 | T11: 0 | U11: 0 | V11: 0 | AZ11: 0
B12: 107729 | C12: 7703133077194 | D12: TICK CHEESE 40g X 12 X 6 DE | E12: 6 | F12: 12 | G12: 72 | H12: 0.16 | I12: 396 | J12: 459.36 | K12: 5512.32 | L12: 600 | M12: 0 | O12: 0 | P12: 0 | Q12: 0 | R12: 0 | S12: 0 | T12: 0 | U12: 0 | V12: 0 | AZ12: 0
B13: 02122 | C13: 7703133021227 | D13: PALOMITAS CARAMELO 68g X 36 X 1 AS | E13: 36 | F13: 1 | G13: 36 | H13: 0.16 | I13: 582 | J13: 675.12 | K13: 675.12 | L13: 800 | M13: 0 | O13: 0 | P13: 0 | Q13: 0 | R13: 0 | S13: 0 | T13: 0 | U13: 0 | V13: 0 | AZ13: 0
B14: 102117 | C14: 7703133021166 | D14: PALOMITAS CARAMELO 20g X 12 X 12 DE | E14: 12 | F14: 12 | G14: 144 | H14: 0.16 | I14: 344.8 | J14: 399.968 | K14: 4799.616 | L14: 500 | M14: 0 | O14: 0 | P14: 0 | Q14: 0 | R14: 0 | S14: 0 | T14: 0 | U14: 0 | V14: 0 | AZ14: 0
A15: RIZADAS | B15: 109128 | C15: 7703133091275 | D15: RIZADAS NATURAL 30g X 12 X 6 DE | E15: 6 | F15: 12 | G15: 72 | H15: 0.16 | I15: =750/1.16 -> 646.5517241 | J15: =+I15+I15*H15 -> 750 | K15: =+J15*F15 -> 9000 | L15: 800 | M15: =+N15/G15 -> 0 | O15: =+N15*I15 -> 0 | P15: 0 | Q15: =+O15-P15 -> 0 | R15: =+Q15*H15 -> 0 | S15: =+R15+Q15 -> 0 | AZ15: 0
B16: 109130 | C16: 7703133070324 | D16: RIZADAS POLLO 30g X 12 X 6 DE | E16: 6 | F16: 12 | G16: 72 | H16: 0.16 | I16: =750/1.16 -> 646.5517241 | J16: 750 | K16: 9000 | L16: 800 | M16: 0 | O16: 0 | P16: 0 | Q16: 0 | R16: 0 | S16: 0 | T16: 0 | U16: 0 | V16: 0 | AZ16: 0
B17: 109132 | C17: 7703133070362 | D17: RIZADAS MAYONESA 30g X 12 X 6 DE | E17: 6 | F17: 12 | G17: 72 | H17: 0.16 | I17: =750/1.16 -> 646.5517241 | J17: 750 | K17: 9000 | L17: 800 | M17: 0 | O17: 0 | P17: 0 | Q17: 0 | R17: 0 | S17: 0 | T17: 0 | U17: 0 | V17: 0 | AZ17: 0
B18: 109134 | C18: 7703133070348 | D18: RIZADAS LIMON 30g X 12 X 6 DE | E18: 6 | F18: 12 | G18: 72 | H18: 0.16 | I18: =750/1.16 -> 646.5517241 | J18: 750 | K18: 9000 | L18: 800 | M18: 0 | O18: 0 | P18: 0 | Q18: 0 | R18: 0 | S18: 0 | T18: 0 | U18: 0 | V18: 0 | AZ18: 0
B19: 107029 | C19: 7703133070287 | D19: RIZADAS BBQ RANCHERA 28g X 12 X 6 DE | E19: 6 | F19: 12 | G19: 72 | H19: 0.16 | I19: 581.9 | J19: 675.004 | K19: 8100.048 | L19: 800 | M19: =+N19/G19 -> 0 | O19: 0 | P19: 0 | Q19: 0 | R19: 0 | S19: 0 | T19: 0 | U19: 0 | V19: 0 | AZ19: 0
B20: 107122 | D20: RIZADAS MEXICAN FUSION 28g X 12 X 6 DE | E20: 6 | F20: 12 | G20: 72 | H20: 0.16 | I20: =750/1.16 -> 646.5517241 | J20: 750 | K20: 9000 | L20: 800 | M20: 0 | O20: 0 | P20: 0 | Q20: 0 | R20: 0 | S20: 0 | T20: 0 | U20: 0 | V20: 0 | AZ20: 0
B21: 107587 | C21: 7703133072922 | D21: RIZADAS NATURAL 115g X 20 X 1 AS | E21: 20 | F21: 1 | G21: 20 | H21: 0.16 | I21: =1907/1.16 -> 1643.965517 | J21: 1907 | K21: 1907 | L21: 2300 | M21: 0 | O21: 0 | P21: 0 | Q21: 0 | R21: 0 | S21: 0 | T21: 0 | U21: 0 | V21: 0 | AZ21: 0
B22: 107588 | C22: 7703133072946 | D22: RIZADAS MAYONESA 115g X 20 X 1 AS | E22: 20 | F22: 1 | G22: 20 | H22: 0.16 | I22: =1907/1.16 -> 1643.965517 | J22: 1907 | K22: 1907 | L22: 2300 | M22: 0 | O22: 0 | P22: 0 | Q22: 0 | R22: 0 | S22: 0 | T22: 0 | U22: 0 | V22: 0 | AZ22: 0
B23: 107586 | C23: 7703133072984 | D23: RIZADAS LIMON 115g X 20 X 1 AS | E23: 20 | F23: 1 | G23: 20 | H23: 0.16 | I23: =1907/1.16 -> 1643.965517 | J23: 1907 | K23: 1907 | L23: 2300 | M23: 0 | O23: 0 | P23: 0 | Q23: 0 | R23: 0 | S23: 0 | T23: 0 | U23: 0 | V23: 0 | AZ23: 0
B24: 107592 | C24: 7703133078856 | D24: RIZADAS POLLO 115g X 20 X 1 AS | E24: 20 | F24: 1 | G24: 20 | H24: 0.16 | I24: =1907/1.16 -> 1643.965517 | J24: 1907 | K24: 1907 | L24: 2300 | M24: 0 | O24: 0 | P24: 0 | Q24: 0 | R24: 0 | S24: 0 | T24: 0 | U24: 0 | V24: 20 | X24: 20 | AZ24: 0
B25: 007111 | D25: RIZADAS MEXICAN FUSION 115g X 20 X 1 AS | E25: 20 | F25: 1 | G25: 20 | H25: 0.16 | I25: 1508 | J25: =+I25+I25*H25 -> 1749.28 | K25: =+J25*F25 -> 1749.28 | L25: 1800 | M25: =+N25/G25 -> 0 | O25: =+N25*I25 -> 0 | P25: 0 | Q25: =+O25-P25 -> 0 | R25: =+Q25*H25 -> 0 | S25: =+R25+Q25 -> 0 | T25: =AX25*G25 -> 0 | U25: =+$W$3*T25 -> 0 | V25: =SUM(X25:AW25) -> 0 | W25: =+V25/U25 ->  | AZ25: 0
B26: 107443 | C26: 7703133072953 | D26: RIZADAS NATURAL 45GX8X6 DE | E26: 6 | F26: 8 | G26: 48 | H26: 0.16 | I26: 758.87 | J26: =+I26+I26*H26 -> 880.2892 | K26: =+J26*F26 -> 7042.3136 | L26: 1000 | M26: =+N26/G26 -> 0 | O26: =+N26*I26 -> 0 | P26: 0 | Q26: =+O26-P26 -> 0 | R26: =+Q26*H26 -> 0 | S26: =+R26+Q26 -> 0 | T26: =AX26*G26 -> 0 | U26: =+$W$3*T26 -> 0 | V26: =SUM(X26:AW26) -> 0 | W26: =+V26/U26 -> 
B27: 107295 | C27: 7703133072953 | D27: RIZADAS MAYONESA 45GX8X6 DE | E27: 6 | F27: 8 | G27: 48 | H27: 0.16 | I27: 758.87 | J27: 880.2892 | K27: 7042.3136 | L27: 1000 | M27: 1 | N27: 48 | O27: 36425.76 | P27: 7285.152 | Q27: 29140.608 | R27: 4662.49728 | S27: 33803.10528 | T27: 0 | U27: 0 | V27: 0 | AZ27: 0
B28: 107300 | C28: 7703133073011 | D28: RIZADAS POLLO 45GX8X6 DE | E28: 6 | F28: 8 | G28: 48 | H28: 0.16 | I28: 758.87 | J28: 880.2892 | K28: 7042.3136 | L28: 1000 | M28: 0 | O28: 0 | P28: 0 | Q28: 0 | R28: 0 | S28: 0 | T28: 0 | U28: 0 | V28: 240 | X28: =48*5 -> 240 | AZ28: 0
B29: 107299 | C29: 7703133072991 | D29: RIZADAS LIMON 45GX8X6 DE | E29: 6 | F29: 8 | G29: 48 | H29: 0.16 | I29: 758.87 | J29: 880.2892 | K29: 7042.3136 | L29: 1000 | M29: 0 | O29: 0 | P29: 0 | Q29: 0 | R29: 0 | S29: 0 | T29: 0 | U29: 0 | V29: 0 | AZ29: 0
A30: LIZAS | B30: 106982 | C30: 7703133070409 | D30: LIZA´S S/TOMATE 30g X 12 X 5 DE | E30: 5 | F30: 12 | G30: 60 | H30: 0.16 | I30: =715/1.16 -> 616.3793103 | J30: 715 | K30: 8580 | L30: 800 | M30: 1.2 | N30: 72 | O30: 44379.31034 | P30: 8875.862069 | Q30: 35503.44828 | R30: 5680.551724 | S30: 41184 | T30: 0 | U30: 0 | V30: 0 | AZ30: 0
B31: 106983 | C31: 7703133072423 | D31: LIZA´S S/ROSADA 30g X 12 X 5 DE | E31: 5 | F31: 12 | G31: 60 | H31: 0.16 | I31: =715/1.16 -> 616.3793103 | J31: 715 | K31: 8580 | L31: 800 | M31: 0 | O31: 0 | P31: 0 | Q31: 0 | R31: 0 | S31: 0 | T31: 0 | U31: 0 | V31: 0 | AZ31: 0
B32: 107380 | C32: 7703133070461 | D32: LIZA'S POLLO 30g X 12 X 5 DE | E32: 5 | F32: 12 | G32: 60 | H32: 0.16 | I32: =715/1.16 -> 616.3793103 | J32: 715 | K32: 8580 | L32: 800 | M32: 0 | O32: 0 | P32: 0 | Q32: 0 | R32: 0 | S32: 0 | T32: 0 | U32: 0 | V32: 0 | AZ32: 0
B33: 107132 | C33: 7703133070447 | D33: LIZA´S LIMÓN 30g X 12 X 5 DE | E33: 5 | F33: 12 | G33: 60 | H33: 0.16 | I33: =715/1.16 -> 616.3793103 | J33: 715 | K33: 8580 | L33: 800 | M33: 1.2 | N33: 72 | O33: 44379.31034 | P33: 8875.862069 | Q33: 35503.44828 | R33: 5680.551724 | S33: 41184 | T33: 0 | U33: 0 | V33: 0 | AZ33: 0
A34: MIXTOS | B34: 07260 | C34: 7703133072380 | D34: EL GOLPE 110g X 24 X 1 AS | E34: 24 | F34: 1 | G34: 24 | H34: 0.16 | I34: 1379.31 | J34: 1599.9996 | K34: 1599.9996 | L34: 1800 | M34: 0 | O34: 0 | P34: 0 | Q34: 0 | R34: 0 | S34: 0 | T34: 0 | U34: 0 | V34: 24 | X34: 24 | AZ34: 0
B35: 107258 | C35: 7703133077231 | D35: GOLPE 30g X 12 X 6 DE | E35: 6 | F35: 12 | G35: 72 | H35: 0.16 | I35: 435.34 | J35: 504.9944 | K35: 6059.9328 | L35: 1000 | M35: 0 | O35: 0 | P35: 0 | Q35: 0 | R35: 0 | S35: 0
B36: 107726 | C36: 7703133077231 | D36: GOLPE MIX 45g X 8 X 6 DE | E36: 6 | F36: 8 | G36: 48 | H36: 0.16 | I36: 733 | J36: 850.28 | K36: 6802.24 | L36: 1000 | M36: 2 | N36: 96 | O36: 70368 | P36: 14073.6 | Q36: 56294.4 | R36: 9007.104 | S36: 65301.504 | T36: 0 | U36: 0 | V36: 0 | AZ36: 0
B37: 107836 | C37: 7703133072571 | D37: EL GOLPE 45 gr 8 X 6 DE | E37: 6 | F37: 8 | G37: 48 | H37: 0.16 | I37: 733 | J37: 850.28 | K37: 6802.24 | L37: 1000 | M37: 2 | N37: 96 | O37: 70368 | P37: 14073.6 | Q37: 56294.4 | R37: 9007.104 | S37: 65301.504 | T37: 0 | U37: 0 | V37: 144 | X37: =48*3 -> 144 | AZ37: 0
B38: 107254 | C38: 7703133072540 | D38: EL GOLPE LIMON 45 gr 8 X 6 DE | E38: 6 | F38: 8 | G38: 48 | H38: 0.16 | I38: 733 | J38: 850.28 | K38: 6802.24 | L38: 1000 | M38: 1 | N38: 48 | O38: 35184 | P38: 7036.8 | Q38: 28147.2 | R38: 4503.552 | S38: 32650.752 | T38: 0 | U38: 0 | V38: 0 | AZ38: 0
B39: 107261 | C39: 7703133072533 | D39: EL GOLPE RANCHERO 45G X 8 X 6 DE | E39: 6 | F39: 8 | G39: 48 | H39: 0.16 | I39: 733 | J39: 850.28 | K39: 6802.24 | L39: 1000 | M39: 2 | N39: 96 | O39: 70368 | P39: 14073.6 | Q39: 56294.4 | R39: 9007.104 | S39: 65301.504 | T39: 0 | U39: 0 | V39: 480 | X39: 480 | AZ39: 0
B40: 107590 | C40: 7703133072496 | D40: GOLPE RANCHERO 140 GR 17 X 1 AS | E40: 17 | F40: 1 | G40: =+E40*F40 -> 17 | H40: 0.16 | I40: 2161 | J40: =+I40+I40*H40 -> 2506.76 | K40: =+J40*F40 -> 2506.76 | L40: 2800 | M40: =+N40/G40 -> 0 | O40: =+N40*I40 -> 0 | P40: 0 | Q40: =+O40-P40 -> 0 | R40: =+Q40*H40 -> 0 | S40: =+R40+Q40 -> 0 | T40: =AX40*G40 -> 0 | U40: =+$W$3*T40 -> 0 | V40: =SUM(X40:AW40) -> 0 | W40: =+V40/U40 ->  | AZ40: 0
B41: 107465 | D41: WOW MIX NATURAL 45 gr X 8 X 6 DE | E41: 6 | F41: 8 | G41: =+E41*F41 -> 48 | H41: 0.16 | I41: =850/1.16 -> 732.7586207 | J41: =+I41+I41*H41 -> 850 | K41: =+J41*F41 -> 6800 | L41: 1000 | M41: =+N41/G41 -> 0 | O41: =+N41*I41 -> 0 | P41: 0 | Q41: =+O41-P41 -> 0 | R41: =+Q41*H41 -> 0 | S41: =+R41+Q41 -> 0 | T41: =AX41*G41 -> 0 | U41: =+$W$3*T41 -> 0 | V41: =SUM(X41:AW41) -> 0 | W41: =+V41/U41 ->  | AZ41: 0
B42: 107445 | D42: WOW MIX QUESO 45 gr X 8 X 6 DE | E42: 6 | F42: 8 | G42: =+E42*F42 -> 48 | H42: 0.16 | I42: =850/1.16 -> 732.7586207 | J42: =+I42+I42*H42 -> 850 | K42: =+J42*F42 -> 6800 | L42: 1000 | M42: =+N42/G42 -> 0 | O42: =+N42*I42 -> 0 | P42: 0 | Q42: =+O42-P42 -> 0 | R42: =+Q42*H42 -> 0 | S42: =+R42+Q42 -> 0 | T42: =AX42*G42 -> 0 | U42: =+$W$3*T42 -> 0 | V42: =SUM(X42:AW42) -> 0 | W42: =+V42/U42 ->  | AZ42: 0
B43: 107447 | D43: WOW MIX BBQ 45 gr X 8 X 6 DE | E43: 6 | F43: 8 | G43: =+E43*F43 -> 48 | H43: 0.16 | I43: 732.8 | J43: =+I43+I43*H43 -> 850.048 | K43: =+J43*F43 -> 6800.384 | L43: 1000 | M43: =+N43/G43 -> 0 | O43: =+N43*I43 -> 0 | P43: 0 | Q43: =+O43-P43 -> 0 | R43: =+Q43*H43 -> 0 | S43: =+R43+Q43 -> 0 | T43: =AX43*G43 -> 0 | U43: =+$W$3*T43 -> 0 | V43: =SUM(X43:AW43) -> 240 | W43: =+V43/U43 ->  | X43: =48*5 -> 240 | AZ43: 0
A44: TOSTIS | B44: 007226 | C44: 7703133072380 | D44: TOSTI AREPAS 150g X 17 X 1 AS | E44: 17 | F44: 1 | G44: 17 | H44: 0.1 | I44: 1545 | J44: 1699.5 | K44: 1699.5 | L44: 1800 | M44: 0 | O44: 0 | P44: 0 | Q44: 0 | R44: 0 | S44: 0 | T44: 0 | U44: 0 | V44: 0 | AZ44: 0
B45: 107228 | C45: 7703133072274 | D45: TOSTIAREPA 28 G X12 X6 DE | E45: 6 | F45: 12 | G45: 72 | H45: 0.1 | I45: 364 | J45: 400.4 | K45: 4804.8 | L45: 500 | M45: 0 | O45: 0 | P45: 0 | Q45: 0 | R45: 0 | S45: 0 | T45: 0 | U45: 0 | V45: 72 | X45: 72 | AZ45: 0
B46: 107240 | C46: 7703133072397 | D46: TOSTI EMPANADA CARNE 28GX12X6 DE | E46: 6 | F46: 12 | G46: 72 | H46: 0.1 | I46: 364 | J46: 400.4 | K46: 4804.8 | L46: 500 | M46: 0 | O46: 0 | P46: 0 | Q46: 0 | R46: 0 | S46: 0 | T46: 0 | U46: 0 | V46: 0 | AZ46: 0
B47: 107234 | C47: 7703133072335 | D47: TOSTI EMPANADA LIMON 28 G X 12 X 6 DE | E47: 6 | F47: 12 | G47: 72 | H47: 0.1 | I47: 364 | J47: 400.4 | K47: 4804.8 | L47: 500 | M47: 2 | N47: 144 | O47: 52416 | P47: 10483.2 | Q47: 41932.8 | R47: 4193.28 | S47: 46126.08 | T47: 0 | U47: 0 | V47: 1080 | X47: =72*15 -> 1080 | AZ47: 0
B48: 107220 | C48: 7703133072199 | D48: TOSTI PIZZA POLLO 28G X 12 X 6 DE | E48: 6 | F48: 12 | G48: 72 | H48: 0.1 | I48: 364 | J48: 400.4 | K48: 4804.8 | L48: 500 | M48: 0 | O48: 0 | P48: 0 | Q48: 0 | R48: 0 | S48: 0 | T48: 0 | U48: 0 | V48: 72 | X48: 72 | AZ48: 0
B49: 107222 | C49: 7703133072199 | D49: TOSTI PIZZA QUESO 28G X 12 X 6 DE | E49: 6 | F49: 12 | G49: 72 | H49: 0.1 | I49: 364 | J49: 400.4 | K49: 4804.8 | L49: 500 | M49: 0 | O49: 0 | P49: 0 | Q49: 0 | R49: 0 | S49: 0 | T49: 0 | U49: 0 | V49: 0 | AZ49: 0
B50: 107333 | D50: TOSTI NACHOS QUESO 28 GR X 12 X 6 DE | E50: 6 | F50: 12 | G50: 72 | H50: 0.1 | I50: 364 | J50: 400.4 | K50: 4804.8 | L50: 500 | M50: 0 | O50: 0 | P50: 0 | Q50: 0 | R50: 0 | S50: 0 | T50: 0 | U50: 0 | V50: 144 | X50: =72*2 -> 144 | AZ50: 0
B51: 107231 | C51: 7703133072304 | D51: TOSTIEMPANADA QUESO PICANTE 28G X 12 X 6 | E51: 6 | F51: 12 | G51: 72 | H51: 0.1 | I51: 364 | J51: 400.4 | K51: 4804.8 | L51: 500 | M51: 0 | O51: 0 | P51: 0 | Q51: 0 | R51: 0 | S51: 0 | T51: 0 | U51: 0 | V51: 0 | AZ51: 0
B52: 107335 | D52: TOSTI NACHOS CHILE LIMON 28 GR X 12 X 6 | E52: 6 | F52: 12 | G52: 72 | H52: 0.1 | I52: 364 | J52: 400.4 | K52: 4804.8 | L52: 500 | M52: 0 | O52: 0 | P52: 0 | Q52: 0 | R52: 0 | S52: 0 | T52: 0 | U52: 0 | V52: 0 | AZ52: 0
B53: 107485 | C53: 7703133079996 | D53: TOSTI PLATANITOS 30 GR X 12 X 6 DE | E53: 6 | F53: 12 | G53: 72 | H53: 0.16 | I53: 388 | J53: 450.08 | K53: 5400.96 | L53: 600 | M53: 0 | O53: 0 | P53: 0 | Q53: 0 | R53: 0 | S53: 0 | T53: 0 | U53: 0 | V53: 72 | X53: 72 | AZ53: 0
B54: 107561 | D54: TOSTI NACHOS 45 GR 8 X 6 | E54: 6 | F54: 8 | G54: 48 | H54: 0.1 | I54: =650/1.1 -> 590.9090909 | J54: 650 | K54: 5200 | L54: 800 | M54: 0 | O54: 0 | P54: 0 | Q54: 0 | R54: 0 | S54: 0 | T54: 0 | U54: 0 | V54: 0
B55: 007337 | C55: 7703133079996 | D55: TOSTI NACHOS CHILE LIMON 150 GR X 17 X 1 AS | E55: 17 | F55: 1 | G55: 17 | H55: 0.1 | I55: 1545 | J55: =+I55+I55*H55 -> 1699.5 | K55: =+J55*F55 -> 1699.5 | L55: 1800 | M55: =+N55/G55 -> 0 | O55: =+N55*I55 -> 0 | P55: 0 | Q55: =+O55-P55 -> 0 | R55: =+Q55*H55 -> 0 | S55: =+R55+Q55 -> 0 | T55: =AX55*G55 -> 0 | U55: 0 | V55: =SUM(X55:AW55) -> 0 | W55: =+V55/U55 ->  | AZ55: 0
B56: 007338 | C56: 7703133079996 | D56: TOSTI NACHOS QUESO 150 GR X 17 X 1 AS | E56: 17 | F56: 1 | G56: 17 | H56: 0.1 | I56: 1545 | J56: =+I56+I56*H56 -> 1699.5 | K56: =+J56*F56 -> 1699.5 | L56: 1800 | M56: =+N56/G56 -> 0 | O56: =+N56*I56 -> 0 | P56: 0 | Q56: =+O56-P56 -> 0 | R56: =+Q56*H56 -> 0 | S56: =+R56+Q56 -> 0 | T56: =AX56*G56 -> 0 | U56: 0 | V56: =SUM(X56:AW56) -> 0 | W56: =+V56/U56 ->  | AZ56: 0
A57: OTROS | B57: 107574 | C57: 77031330200227 | D57: MEKATROCITOS POLLO 28 GR X 12 X 8 DE | E57: 8 | F57: 12 | G57: 96 | H57: 0.1 | I57: 273 | J57: 300.3 | K57: 3603.6 | L57: 400 | M57: 1.5 | N57: 144 | O57: 39312 | P57: 7862.4 | Q57: 31449.6 | R57: 3144.96 | S57: 34594.56 | T57: 0 | U57: 0 | V57: 0 | AZ57: 0
B58: 02424 | C58: 7703133024242 | D58: TOZINETAS FRED 40g X 40 X 1 AS | E58: 40 | F58: 1 | G58: 40 | H58: 0.16 | I58: 954.55 | J58: 1107.278 | K58: 1107.278 | L58: 1280 | M58: 0 | O58: 0 | P58: 0 | Q58: 0 | R58: 0 | S58: 0 | T58: 0 | U58: 0 | V58: 0 | AZ58: 0
B59: 107385 | C59: 7703133024211 | D59: TOZINETAS FRED 25G X 48 DE | E59: 48 | F59: 1 | G59: 48 | H59: 0.16 | I59: 498 | J59: 577.68 | K59: 577.68 | L59: 600 | M59: 0 | O59: 0 | P59: 0 | Q59: 0 | R59: 0 | S59: 0 | T59: 0 | U59: 0 | V59: 48 | X59: 48 | AZ59: 0
B60: 102411 | C60: 7703133024105 | D60: COSTILLITAS FRED 25GX 48 DE | E60: 48 | F60: 1 | G60: 48 | H60: 0.16 | I60: 498 | J60: 577.68 | K60: 577.68 | L60: 700 | M60: 0 | O60: 0 | P60: 0 | Q60: 0 | R60: 0 | S60: 0 | T60: 0 | U60: 0 | V60: 48 | X60: 48 | AZ60: 0
B61: 107996 | D61: PAPAS CHIPS 45 GRMS | E61: 48 | F61: 1 | G61: 48 | H61: 0.16 | I61: 646.8 | J61: 750.288 | K61: 750.288 | L61: 900 | M61: 0 | O61: 0 | P61: 0 | Q61: 0 | R61: 0 | S61: 0 | T61: 0 | U61: 0
B62: 07795 | C62: 7703133077958 | D62: LONCHERA DIVERTIDA 241g X 12 AS | E62: 12 | F62: 1 | G62: 12 | H62: 0.16 | I62: 3275.8621 | J62: 3800.000036 | K62: 3800.000036 | L62: 4650 | M62: 0 | O62: 0 | P62: 0 | Q62: 0 | R62: 0 | S62: 0 | T62: 0 | U62: 0 | V62: 12 | X62: 12 | AZ62: 0
B63: 02156 | C63: 7703133023979 | D63: LONCHIPACK 309g X 12 X 12 AS | E63: 12 | F63: 1 | G63: 12 | H63: 0.16 | I63: 4051.72 | J63: 4699.9952 | K63: 4699.9952 | L63: 6050 | M63: 0 | O63: 0 | P63: 0 | Q63: 0 | R63: 0 | S63: 0 | T63: 0 | U63: 0 | V63: 0
A64: CRESPAS | B64: 100008 | D64: MEKATO NATURAL 25 GR X 12 X 6 | E64: 12 | F64: 6 | G64: 72 | H64: 0.16 | I64: 474.16 | J64: 550.0256 | K64: 3300.1536 | L64: 700 | M64: 0 | O64: 0 | P64: 0 | Q64: 0 | R64: 0 | S64: 0 | T64: 0 | U64: 0 | V64: 0
B65: 100009 | D65: MEKATO LIMON 25 GR X 12 X 6 | E65: 12 | F65: 6 | G65: 72 | H65: 0.16 | I65: 474.16 | J65: 550.0256 | K65: 3300.1536 | L65: 700 | M65: 0 | O65: 0 | P65: 0 | Q65: 0 | R65: 0 | S65: 0 | T65: 0 | U65: 0 | V65: 0
B66: 100002 | D66: CRESPAS SALSA TOMATE 25 GR | E66: 12 | F66: 6 | G66: 72 | H66: 0.16 | I66: 505 | J66: 585.8 | K66: 3514.8 | L66: 700 | M66: 0 | O66: 0 | P66: 0 | Q66: 0 | R66: 0 | S66: 0 | T66: 0 | U66: 0 | V66: 0
B67: 100003 | D67: CRESPAS LIMON 25 GR | E67: 12 | F67: 6 | G67: 72 | H67: 0.16 | I67: 505 | J67: 585.8 | K67: 3514.8 | L67: 700 | M67: 0 | O67: 0 | P67: 0 | Q67: 0 | R67: 0 | S67: 0 | T67: 0 | U67: 0 | V67: 0
B68: 100004 | D68: CRESPAS POLLO 25 GR | E68: 12 | F68: 6 | G68: 72 | H68: 0.16 | I68: 505 | J68: 585.8 | K68: 3514.8 | L68: 700 | M68: 0 | O68: 0 | P68: 0 | Q68: 0 | R68: 0 | S68: 0 | T68: 0 | U68: 0 | V68: 0
A69: MEKATO | B69: 100144 | D69: ROSKOTAS AREQUIPE 14G X 12 X 7 | E69: 7 | F69: 12 | G69: 84 | H69: 0.1 | I69: 436.38 | J69: 480.018 | K69: 6074.4096 | L69: 700 | M69: 0 | O69: 0 | P69: =+O69*$O$82 -> 0 | Q69: 0 | R69: 0 | S69: 0 | T69: 0 | U69: 0 | V69: 0
B70: 000034 | D70: MEKATO ESCOLAR 205 GR X 24 | E70: 24 | F70: 1 | G70: 24 | H70: 0.16 | I70: 2844.82 | J70: 3299.9912 | K70: =+J70*F70 -> 3299.9912 | L70: 200 | M70: 0 | O70: 0 | P70: 0 | Q70: 0 | R70: 0 | S70: 0
B71: 100126 | D71: TICOS 9 G X 12 X 12 | E71: 12 | F71: 12 | G71: 144 | H71: 0.16 | I71: 86.21 | J71: 100.0036 | K71: 1200.0432 | L71: 200 | M71: 0 | O71: 0 | P71: 0 | Q71: 0 | R71: 0 | S71: 0 | T71: 0 | U71: 0 | V71: 0 | W71: =+V71/U71 -> 
B72: 100138 | D72: TICOS PICANTE 9 G X 12 X 20 | E72: 12 | F72: 20 | G72: 240 | H72: 0.16 | I72: 133.62 | J72: 154.9992 | K72: 3099.984 | L72: 200 | M72: 0 | O72: 0 | P72: 0 | Q72: 0 | R72: 0 | S72: 0
B73: 000127 | D73: TICOS 38G X 36 | E73: 36 | F73: 1 | G73: 36 | H73: 0.16 | I73: 327.59 | J73: 380.0044 | K73: 380.0044 | L73: 500 | M73: 0 | O73: 0 | P73: 0 | Q73: 0 | R73: 0 | S73: 0 | T73: 0 | U73: 0 | V73: 0
B74: 100130 | D74: TICOS QUESO 12 G X 12 X 20 | E74: 20 | F74: 12 | G74: 240 | H74: 0.16 | I74: 129.31 | J74: 149.9996 | K74: 1799.9952 | L74: 200 | M74: 0 | O74: 0 | P74: 0 | Q74: 0 | R74: 0 | S74: 0 | T74: 0 | U74: 0 | V74: 0
B75: 000152 | D75: TICOS QUESO 38 G X 36 | E75: 36 | F75: 1 | G75: 36 | H75: 0.16 | I75: 344.8276 | J75: 400.000016 | K75: 400.000016 | L75: 500 | M75: 0 | O75: 0 | P75: 0 | Q75: 0 | R75: 0 | S75: 0 | T75: 0 | U75: 0 | V75: 360 | X75: 360
B76: 100137 | D76: TICOS QUESO 8 G X 12 X 20 | E76: 20 | F76: 12 | G76: 240 | H76: 0.16 | I76: 133.62 | J76: 154.9992 | K76: 1859.9904 | L76: 500 | M76: 0 | O76: 0 | P76: 0 | Q76: 0 | R76: 0 | S76: 0 | T76: 0 | U76: 0 | V76: 0
B77: 100149 | D77: TICOS POLLO 9G 12 X 20 | E77: 12 | F77: 20 | G77: 240 | H77: 0.16 | I77: 133.62 | J77: 154.9992 | K77: 3099.984 | L77: 200 | M77: 0 | O77: 0 | P77: 0 | Q77: 0 | R77: 0 | S77: 0 | T77: 0 | U77: 0 | V77: 1200 | X77: =240*5 -> 1200
B78: 000128 | D78: TICOS POLLO 38 G X 36 | E78: 36 | F78: 1 | G78: 36 | H78: 0.16 | I78: 345 | J78: 400.2 | K78: 400.2 | L78: 500 | M78: 0 | O78: 0 | P78: 0 | Q78: 0 | R78: 0 | S78: 0 | T78: 0 | U78: 0 | V78: 0
B79: 000151 | D79: TICOS CARAMELO 38 G X 36 | E79: 36 | F79: 1 | G79: 36 | H79: 0.16 | I79: 344.8276 | J79: 400.000016 | K79: 400.000016 | L79: 500 | M79: 0 | O79: 0 | P79: 0 | Q79: 0 | R79: 0 | S79: 0 | T79: 0 | U79: 0 | V79: 0
B80: 000150 | C80: 7703133023979 | D80: TICO PICANTE 38G X 36 | E80: 36 | F80: 1 | G80: 36 | H80: 0.16 | I80: 327.5862 | J80: 379.999992 | K80: 379.999992 | L80: 500 | M80: 0 | O80: =+N80*I80 -> 0 | P80: 0 | Q80: =+O80-P80 -> 0 | R80: =+Q80*H80 -> 0 | S80: =+R80+Q80 -> 0 | T80: 0 | U80: 0 | V80: 108 | X80: =36*3 -> 108 | AZ80: 0
A81: CUPO CREDITO TOTAL | C81: 0 | E81: CUPO ACTUAL | F81: 0 | M81: =SUM(M5:M80) -> 21.9 | N81: =S81/1000 -> 575.1839693 | O81: =SUM(O5:O80) -> 624554.8634 | P81: 124910.9727 | Q81: 499643.8908 | R81: 75540.07852 | S81: 575183.9693 | T81: 0 | U81: 0 | V81: 6044 | AX81: =SUM(AX5:AX80) -> 0 | AY81: =SUM(AY5:AY80) -> 0 | AZ81: =SUM(AZ5:AZ80) -> 0
B82: 0 | C82: 0 | D82: 0 | E82: 0 | F82: 0 | G82: 0 | H82: 0 | I82: 0 | J82: 0 | K82: 0 | L82: 0 | O82: =S1 -> 0.2

Sheet PEDIDO
D1: FRANQUICIADO | M1: DESCUENTO | S1: 0.2 | T1: DIAS MES | W1: DIA HABIL
D2: CODIGO | M2: ZONA
D3: FECHA | E3: =TODAY() -> 2012-09-10 | M3: VALOR PEDIDO | S3: =S84 -> 4583755.697 | T3: 26 | W3: 3
B4: Codigo | C4: Codigo Barras | E4: Displays por paca | F4: Unds por Display | G4: Unds por Paca | H4: Iva | I4: Precio Antes de Iva | J4: Precio incluido IVA | K4: Valor Display al tendero | L4: PVP Sugerido (Und) | M4: PACAS | N4: UNIDADES | O4: v.antes iva | P4: Descuento | Q4: total | R4: iva | S4: Total a Pagar | T4: PPTO DIA | U4: PPTO DIA HABIL | V4: VENTA ACUMULADA | W4: CUMP DIA HABIL | X4: 1 | Y4: =+X4+1 -> 2 | Z4: 3 | AA4: 4 | AB4: 5 | AC4: 6 | AD4: 7 | AE4: 8 | AF4: 9 | AG4: 10 | AH4: 11 | AI4: 12 | AJ4: 13 | AK4: 14 | AL4: 15 | AM4: 16 | AN4: 17 | AO4: 18 | AP4: 19 | AQ4: 20 | AR4: 21 | AS4: 22 | AT4: 23 | AU4: 24 | AV4: 25 | AW4: 26 | AX4: VENTA TOTAL | AY4: PPTO | AZ4: DIFERENCIA | BB4: SALDO BODEGA displays | BC4: SALDO BODEGA pacas | BD4: unidades por display
A5: EXTRUIDOS | B5: 008019 | C5: 7703133078771 | D5: YUPIS QUESO 45g X 36 X 1 AS | E5: 36 | F5: 1 | G5: =+E5*F5 -> 36 | H5: 0.16 | I5: 560 | J5: =+I5+I5*H5 -> 649.6 | K5: =+J5*F5 -> 649.6 | L5: 700 | M5: =+N5/G5 -> 6.027777778 | N5: =+BD5 -> 217 | O5: =+N5*I5 -> 121520 | P5: =+O5*$O$85 -> 24304 | Q5: =+O5-P5 -> 97216 | R5: =+Q5*H5 -> 15554.56 | S5: =+R5+Q5 -> 112770.56 | T5: =AX5*G5 -> 0 | U5: =+$W$3*T5 -> 0 | V5: =SUM(X5:AW5) -> 0 | W5: =+V5/U5 ->  | AZ5: =+AY5-AX5 -> 0 | BB5: =+CONTABILIDAD!AL5 -> 217 | BC5: =+BB5/E5 -> 6.027777778 | BD5: =+BB5*F5 -> 217 | BE5: 30
B6: 008015 | C6: 7703133077309 | D6: YUPIS SALADO 60g X 36 X 1 AS | E6: 36 | F6: 1 | G6: =+E6*F6 -> 36 | H6: 0.16 | I6: =650/1.16 -> 560.3448276 | J6: 650 | K6: 650 | L6: 700 | M6: 20.13888889 | N6: =+BD6 -> 725 | O6: 406250 | P6: 81250 | Q6: 325000 | R6: 52000 | S6: 377000 | T6: 0 | U6: 0 | V6: 720 | X6: =36*20 -> 720 | AZ6: =+AY6-AX6 -> 0 | BB6: =+CONTABILIDAD!AL6 -> 725 | BC6: =+BB6/E6 -> 20.13888889 | BD6: =+BB6*F6 -> 725 | BE6: 30
B7: 008017 | D7: YUPIS PICANTE 45g X 36 X 1 AS | E7: 36 | F7: 1 | G7: 36 | H7: 0.16 | I7: =650/1.16 -> 560.3448276 | J7: 650 | K7: 650 | L7: 700 | M7: 8.166666667 | N7: 294 | O7: 164741.3793 | P7: 32948.27586 | Q7: 131793.1034 | R7: 21086.89655 | S7: 152880 | T7: 0 | U7: 0 | V7: 0 | AZ7: 0 | BB7: =+CONTABILIDAD!AL7 -> 294 | BC7: 8.166666667 | BD7: 294 | BE7: 15
B8: 008016 | C8: 7703133078818 | D8: YUPI CARAMELO 50gX36X1 AS | E8: 36 | F8: 1 | G8: 36 | H8: 0.16 | I8: =650/1.16 -> 560.3448276 | J8: 650 | K8: 650 | L8: 700 | M8: 20.33333333 | N8: 732 | O8: 410172.4138 | P8: 82034.48276 | Q8: 328137.931 | R8: 52502.06897 | S8: 380640 | T8: 0 | U8: 0 | V8: 0 | AZ8: 0 | BB8: =+CONTABILIDAD!AL8 -> 732 | BC8: 20.33333333 | BD8: 732 | BE8: 3
B9: 008018 | D9: YUPI AREQUIQUESO 45grX36 | E9: 36 | F9: 1 | G9: 36 | H9: 0.16 | I9: =650/1.16 -> 560.3448276 | J9: =+I9+I9*H9 -> 650 | K9: =+J9*F9 -> 650 | L9: 700 | M9: 3.555555556 | N9: 128 | O9: =+N9*I9 -> 71724.13793 | P9: 14344.82759 | Q9: =+O9-P9 -> 57379.31034 | R9: =+Q9*H9 -> 9180.689655 | S9: 66560 | T9: =AX9*G9 -> 0 | U9: =+$W$3*T9 -> 0 | V9: =SUM(X9:AW9) -> 0 | W9: =+V9/U9 ->  | AZ9: 0 | BB9: =+CONTABILIDAD!AL9 -> 128 | BC9: 3.555555556 | BD9: 128 | BE9: 5
B10: 008014 | D10: YUPI UVA 45grX36 | E10: 36 | F10: 1 | G10: =+E10*F10 -> 36 | H10: 0.16 | I10: =650/1.16 -> 560.3448276 | J10: =+I10+I10*H10 -> 650 | K10: =+J10*F10 -> 650 | L10: 700 | M10: =+N10/G10 -> 0 | N10: 0 | O10: =+N10*I10 -> 0 | P10: =+O10*$O$85 -> 0 | Q10: =+O10-P10 -> 0 | R10: =+Q10*H10 -> 0 | S10: =+R10+Q10 -> 0 | BB10: =+CONTABILIDAD!AL10 -> 0 | BC10: 0 | BD10: 0
B11: 102174 | C11: 7703133021739 | D11: YUPIS SALADO 10g X 12 X 20 DE | E11: 20 | F11: 12 | G11: 240 | H11: 0.16 | I11: =144/1.16 -> 124.137931 | J11: 144 | K11: 1728 | L11: 200 | M11: 11.8 | N11: 2832 | O11: 351558.6207 | P11: 70311.72414 | Q11: 281246.8966 | R11: 44999.50345 | S11: 326246.4 | T11: 0 | U11: 0 | V11: 960 | X11: =240*4 -> 960 | AZ11: 0 | BB11: =+CONTABILIDAD!AL11 -> 236 | BC11: 11.8 | BD11: 2832 | BE11: 15
B12: 07716 | C12: 7703133077248 | D12: TICK CHEESE 100G X 24 X 1 AS | E12: 24 | F12: 1 | G12: 24 | H12: 0.16 | I12: 767.2 | J12: 889.952 | K12: 889.952 | L12: 1000 | M12: 0.375 | N12: 9 | O12: 6904.8 | P12: 1380.96 | Q12: 5523.84 | R12: 883.8144 | S12: 6407.6544 | T12: 0 | U12: 0 | V12: 0 | AZ12: 0 | BB12: =+CONTABILIDAD!AL12 -> 9 | BC12: 0.375 | BD12: 9 | BE12: 1
B13: 107729 | C13: 7703133077194 | D13: TICK CHEESE 40g X 12 X 6 DE | E13: 6 | F13: 12 | G13: 72 | H13: 0.16 | I13: 396 | J13: 459.36 | K13: 5512.32 | L13: 600 | M13: 0.4166666667 | N13: 30 | O13: 11880 | P13: 2376 | Q13: 9504 | R13: 1520.64 | S13: 11024.64 | T13: 0 | U13: 0 | V13: 0 | AZ13: 0 | BB13: =+CONTABILIDAD!AL13 -> 2.5 | BC13: 0.4166666667 | BD13: 30 | BE13: 1
B14: 02122 | C14: 7703133021227 | D14: PALOMITAS CARAMELO 68g X 36 X 1 AS | E14: 36 | F14: 1 | G14: 36 | H14: 0.16 | I14: 582 | J14: 675.12 | K14: 675.12 | L14: 800 | M14: 1.055555556 | N14: 38 | O14: 22116 | P14: 4423.2 | Q14: 17692.8 | R14: 2830.848 | S14: 20523.648 | T14: 0 | U14: 0 | V14: 0 | AZ14: 0 | BB14: =+CONTABILIDAD!AL14 -> 38 | BC14: 1.055555556 | BD14: 38 | BE14: 1
B15: 102117 | C15: 7703133021166 | D15: PALOMITAS CARAMELO 20g X 12 X 12 DE | E15: 12 | F15: 12 | G15: 144 | H15: 0.16 | I15: 344.8 | J15: 399.968 | K15: 4799.616 | L15: 500 | M15: 0.625 | N15: 90 | O15: 31032 | P15: 6206.4 | Q15: 24825.6 | R15: 3972.096 | S15: 28797.696 | T15: 0 | U15: 0 | V15: 0 | AZ15: 0 | BB15: =+CONTABILIDAD!AL15 -> 7.5 | BC15: 0.625 | BD15: 90 | BE15: 1
A16: RIZADAS | B16: 103024 | C16: 7703133091275 | D16: RIZADAS NATURAL 30g X 12 X 6 DE | E16: 6 | F16: 12 | G16: 72 | H16: 0.16 | I16: =750/1.16 -> 646.5517241 | J16: =+I16+I16*H16 -> 750 | K16: =+J16*F16 -> 9000 | L16: 800 | M16: =+N16/G16 -> 1.166666667 | N16: 84 | O16: =+N16*I16 -> 54310.34483 | P16: 10862.06897 | Q16: =+O16-P16 -> 43448.27586 | R16: =+Q16*H16 -> 6951.724138 | S16: =+R16+Q16 -> 50400 | AZ16: 0 | BB16: =+CONTABILIDAD!AL16 -> 7 | BC16: 1.166666667 | BD16: 84
B17: 103025 | C17: 7703133070324 | D17: RIZADAS POLLO 30g X 12 X 6 DE | E17: 6 | F17: 12 | G17: 72 | H17: 0.16 | I17: =750/1.16 -> 646.5517241 | J17: 750 | K17: 9000 | L17: 800 | M17: 1.5 | N17: 108 | O17: 69827.58621 | P17: 13965.51724 | Q17: 55862.06897 | R17: 8937.931034 | S17: 64800 | T17: 0 | U17: 0 | V17: 0 | AZ17: 0 | BB17: =+CONTABILIDAD!AL17 -> 9 | BC17: 1.5 | BD17: 108 | BE17: 2
B18: 103026 | C18: 7703133070362 | D18: RIZADAS MAYONESA 30g X 12 X 6 DE | E18: 6 | F18: 12 | G18: 72 | H18: 0.16 | I18: =750/1.16 -> 646.5517241 | J18: 750 | K18: 9000 | L18: 800 | M18: 4 | N18: 288 | O18: 186206.8966 | P18: 37241.37931 | Q18: 148965.5172 | R18: 23834.48276 | S18: 172800 | T18: 0 | U18: 0 | V18: 0 | AZ18: 0 | BB18: =+CONTABILIDAD!AL18 -> 24 | BC18: 4 | BD18: 288 | BE18: 2
B19: 103027 | C19: 7703133070348 | D19: RIZADAS LIMON 30g X 12 X 6 DE | E19: 6 | F19: 12 | G19: 72 | H19: 0.16 | I19: =750/1.16 -> 646.5517241 | J19: 750 | K19: 9000 | L19: 800 | M19: 2.666666667 | N19: 192 | O19: 124137.931 | P19: 24827.58621 | Q19: 99310.34483 | R19: 15889.65517 | S19: 115200 | T19: 0 | U19: 0 | V19: 0 | AZ19: 0 | BB19: =+CONTABILIDAD!AL19 -> 16 | BC19: 2.666666667 | BD19: 192
B20: 107029 | C20: 7703133070287 | D20: RIZADAS BBQ RANCHERA 28g X 12 X 6 DE | E20: 6 | F20: 12 | G20: 72 | H20: 0.16 | I20: 581.9 | J20: 675.004 | K20: 8100.048 | L20: 800 | M20: =+N20/G20 -> 0 | N20: 0 | O20: 0 | P20: 0 | Q20: 0 | R20: 0 | S20: 0 | T20: 0 | U20: 0 | V20: 0 | AZ20: 0 | BB20: =+CONTABILIDAD!AL20 -> 0 | BC20: 0 | BD20: 0
B21: 107122 | D21: RIZADAS MEXICAN FUSION 28g X 12 X 6 DE | E21: 6 | F21: 12 | G21: 72 | H21: 0.16 | I21: =750/1.16 -> 646.5517241 | J21: 750 | K21: 9000 | L21: 800 | M21: 0 | N21: 0 | O21: 0 | P21: 0 | Q21: 0 | R21: 0 | S21: 0 | T21: 0 | U21: 0 | V21: 0 | AZ21: 0 | BB21: =+CONTABILIDAD!AL21 -> 0 | BC21: 0 | BD21: 0
B22: 007103 | C22: 7703133072922 | D22: RIZADAS NATURAL 115g X 20 X 1 AS | E22: 20 | F22: 1 | G22: 20 | H22: 0.16 | I22: =1750/1.16 -> 1508.62069 | J22: 1750 | K22: 1750 | L22: 2300 | M22: 1.45 | N22: 29 | O22: 43750 | P22: 8750 | Q22: 35000 | R22: 5600 | S22: 40600 | T22: 0 | U22: 0 | V22: 0 | AZ22: 0 | BB22: =+CONTABILIDAD!AL22 -> 29 | BC22: 1.45 | BD22: 29 | BE22: 2
B23: 007109 | C23: 7703133072946 | D23: RIZADAS MAYONESA 115g X 20 X 1 AS | E23: 20 | F23: 1 | G23: 20 | H23: 0.16 | I23: =1750/1.16 -> 1508.62069 | J23: 1750 | K23: 1750 | L23: 2300 | M23: 1.1 | N23: 22 | O23: 33189.65517 | P23: 6637.931034 | Q23: 26551.72414 | R23: 4248.275862 | S23: 30800 | T23: 0 | U23: 0 | V23: 0 | AZ23: 0 | BB23: =+CONTABILIDAD!AL23 -> 22 | BC23: 1.1 | BD23: 22 | BE23: 2
B24: 007107 | C24: 7703133072984 | D24: RIZADAS LIMON 115g X 20 X 1 AS | E24: 20 | F24: 1 | G24: 20 | H24: 0.16 | I24: =1750/1.16 -> 1508.62069 | J24: 1750 | K24: 1750 | L24: 2300 | M24: 1.05 | N24: 21 | O24: 31681.03448 | P24: 6336.206897 | Q24: 25344.82759 | R24: 4055.172414 | S24: 29400 | T24: 0 | U24: 0 | V24: 0 | AZ24: 0 | BB24: =+CONTABILIDAD!AL24 -> 21 | BC24: 1.05 | BD24: 21 | BE24: 2
B25: 007105 | C25: 7703133078856 | D25: RIZADAS POLLO 115g X 20 X 1 AS | E25: 20 | F25: 1 | G25: 20 | H25: 0.16 | I25: =1750/1.16 -> 1508.62069 | J25: 1750 | K25: 1750 | L25: 2300 | M25: 1.35 | N25: 27 | O25: 40732.75862 | P25: 8146.551724 | Q25: 32586.2069 | R25: 5213.793103 | S25: 37800 | T25: 0 | U25: 0 | V25: 20 | X25: 20 | AZ25: 0 | BB25: =+CONTABILIDAD!AL25 -> 27 | BC25: 1.35 | BD25: 27 | BE25: 2
B26: 007111 | D26: RIZADAS MEXICAN FUSION 115g X 20 X 1 AS | E26: 20 | F26: 1 | G26: 20 | H26: 0.16 | I26: =1750/1.16 -> 1508.62069 | J26: =+I26+I26*H26 -> 1750 | K26: =+J26*F26 -> 1750 | L26: 1800 | M26: =+N26/G26 -> 0 | N26: 0 | O26: =+N26*I26 -> 0 | P26: 0 | Q26: =+O26-P26 -> 0 | R26: =+Q26*H26 -> 0 | S26: =+R26+Q26 -> 0 | T26: =AX26*G26 -> 0 | U26: =+$W$3*T26 -> 0 | V26: =SUM(X26:AW26) -> 0 | W26: =+V26/U26 ->  | AZ26: 0 | BB26: =+CONTABILIDAD!AL26 -> 0 | BC26: 0 | BD26: 0
B27: 103028 | C27: 7703133072953 | D27: RIZADAS NATURAL 45GX8X6 DE | E27: 6 | F27: 8 | G27: 48 | H27: 0.16 | I27: 758.87 | J27: =+I27+I27*H27 -> 880.2892 | K27: =+J27*F27 -> 7042.3136 | L27: 1000 | M27: =+N27/G27 -> 1.333333333 | N27: 64 | O27: =+N27*I27 -> 48567.68 | P27: 9713.536 | Q27: =+O27-P27 -> 38854.144 | R27: =+Q27*H27 -> 6216.66304 | S27: =+R27+Q27 -> 45070.80704 | T27: =AX27*G27 -> 0 | U27: =+$W$3*T27 -> 0 | V27: =SUM(X27:AW27) -> 0 | W27: =+V27/U27 ->  | BB27: =+CONTABILIDAD!AL27 -> 8 | BC27: 1.333333333 | BD27: 64 | BE27: 10
B28: 103030 | C28: 7703133072953 | D28: RIZADAS MAYONESA 45GX8X6 DE | E28: 6 | F28: 8 | G28: 48 | H28: 0.16 | I28: 758.87 | J28: 880.2892 | K28: 7042.3136 | L28: 1000 | M28: 2.166666667 | N28: 104 | O28: 78922.48 | P28: 15784.496 | Q28: 63137.984 | R28: 10102.07744 | S28: 73240.06144 | T28: 0 | U28: 0 | V28: 0 | AZ28: 0 | BB28: =+CONTABILIDAD!AL28 -> 13 | BC28: 2.166666667 | BD28: 104 | BE28: 20
B29: 103029 | C29: 7703133073011 | D29: RIZADAS POLLO 45GX8X6 DE | E29: 6 | F29: 8 | G29: 48 | H29: 0.16 | I29: 758.87 | J29: 880.2892 | K29: 7042.3136 | L29: 1000 | M29: 0 | N29: 0 | O29: 0 | P29: 0 | Q29: 0 | R29: 0 | S29: 0 | T29: 0 | U29: 0 | V29: 240 | X29: =48*5 -> 240 | AZ29: 0 | BB29: =+CONTABILIDAD!AL29 -> 0 | BC29: 0 | BD29: 0 | BE29: 20
B30: 103031 | C30: 7703133072991 | D30: RIZADAS LIMON 45GX8X6 DE | E30: 6 | F30: 8 | G30: 48 | H30: 0.16 | I30: 758.87 | J30: 880.2892 | K30: 7042.3136 | L30: 1000 | M30: 2.5 | N30: 120 | O30: 91064.4 | P30: 18212.88 | Q30: 72851.52 | R30: 11656.2432 | S30: 84507.7632 | T30: 0 | U30: 0 | V30: 0 | AZ30: 0 | BB30: =+CONTABILIDAD!AL30 -> 15 | BC30: 2.5 | BD30: 120 | BE30: 20
A31: LIZAS | B31: 106982 | C31: 7703133070409 | D31: LIZA´S S/TOMATE 30g X 12 X 5 DE | E31: 5 | F31: 12 | G31: 60 | H31: 0.16 | I31: =750/1.16 -> 646.5517241 | J31: 750 | K31: 9000 | L31: 800 | M31: 0.7 | N31: 42 | O31: 27155.17241 | P31: 5431.034483 | Q31: 21724.13793 | R31: 3475.862069 | S31: 25200 | T31: 0 | U31: 0 | V31: 0 | AZ31: 0 | BB31: =+CONTABILIDAD!AL31 -> 3.5 | BC31: 0.7 | BD31: 42 | BE31: 10
B32: 106983 | C32: 7703133072423 | D32: LIZA´S S/ROSADA 30g X 12 X 5 DE | E32: 5 | F32: 12 | G32: 60 | H32: 0.16 | I32: =750/1.16 -> 646.5517241 | J32: 750 | K32: 9000 | L32: 800 | M32: 3.7 | N32: 222 | O32: 143534.4828 | P32: 28706.89655 | Q32: 114827.5862 | R32: 18372.41379 | S32: 133200 | T32: 0 | U32: 0 | V32: 0 | AZ32: 0 | BB32: =+CONTABILIDAD!AL32 -> 18.5 | BC32: 3.7 | BD32: 222 | BE32: 15
B33: 107380 | C33: 7703133070461 | D33: LIZA'S POLLO 30g X 12 X 5 DE | E33: 5 | F33: 12 | G33: 60 | H33: 0.16 | I33: =750/1.16 -> 646.5517241 | J33: 750 | K33: 9000 | L33: 800 | M33: 9.9 | N33: 594 | O33: 384051.7241 | P33: 76810.34483 | Q33: 307241.3793 | R33: 49158.62069 | S33: 356400 | T33: 0 | U33: 0 | V33: 0 | AZ33: 0 | BB33: =+CONTABILIDAD!AL33 -> 49.5 | BC33: 9.9 | BD33: 594 | BE33: 5
B34: 107132 | C34: 7703133070447 | D34: LIZA´S LIMÓN 30g X 12 X 5 DE | E34: 5 | F34: 12 | G34: 60 | H34: 0.16 | I34: =750/1.16 -> 646.5517241 | J34: 750 | K34: 9000 | L34: 800 | M34: 4.6 | N34: 276 | O34: 178448.2759 | P34: 35689.65517 | Q34: 142758.6207 | R34: 22841.37931 | S34: 165600 | T34: 0 | U34: 0 | V34: 0 | AZ34: 0 | BB34: =+CONTABILIDAD!AL34 -> 23 | BC34: 4.6 | BD34: 276 | BE34: 5
A35: MIXTOS | B35: 07260 | C35: 7703133072380 | D35: EL GOLPE 110g X 24 X 1 AS | E35: 24 | F35: 1 | G35: 24 | H35: 0.16 | I35: 1379.31 | J35: 1599.9996 | K35: 1599.9996 | L35: 1800 | M35: 0 | N35: 0 | O35: 0 | P35: 0 | Q35: 0 | R35: 0 | S35: 0 | T35: 0 | U35: 0 | V35: 24 | X35: 24 | AZ35: 0 | BB35: =+CONTABILIDAD!AL35 -> 0 | BC35: 0 | BD35: 0
B36: 107258 | C36: 7703133077231 | D36: GOLPE 30g X 12 X 6 DE | E36: 6 | F36: 12 | G36: 72 | H36: 0.16 | I36: 435.34 | J36: 504.9944 | K36: 6059.9328 | L36: 1000 | M36: 0 | N36: 0 | O36: 0 | P36: 0 | Q36: 0 | R36: 0 | S36: 0 | BB36: =+CONTABILIDAD!AL36 -> 0 | BC36: 0 | BD36: 0
B37: 107726 | C37: 7703133077231 | D37: GOLPE MIX 45g X 8 X 6 DE | E37: 6 | F37: 8 | G37: 48 | H37: 0.16 | I37: =940/1.16 -> 810.3448276 | J37: 940 | K37: 7520 | L37: 1000 | M37: 7.5 | N37: 360 | O37: 291724.1379 | P37: 58344.82759 | Q37: 233379.3103 | R37: 37340.68966 | S37: 270720 | T37: 0 | U37: 0 | V37: 0 | AZ37: 0 | BB37: =+CONTABILIDAD!AL37 -> 45 | BC37: 7.5 | BD37: 360 | BE37: 3
B38: 107836 | C38: 7703133072571 | D38: EL GOLPE 45 gr 8 X 6 DE | E38: 6 | F38: 8 | G38: 48 | H38: 0.16 | I38: =940/1.16 -> 810.3448276 | J38: 940 | K38: 7520 | L38: 1000 | M38: 8.166666667 | N38: 392 | O38: 317655.1724 | P38: 63531.03448 | Q38: 254124.1379 | R38: 40659.86207 | S38: 294784 | T38: 0 | U38: 0 | V38: 144 | X38: =48*3 -> 144 | AZ38: 0 | BB38: =+CONTABILIDAD!AL38 -> 49 | BC38: 8.166666667 | BD38: 392 | BE38: 5
B39: 107254 | C39: 7703133072540 | D39: EL GOLPE LIMON 45 gr 8 X 6 DE | E39: 6 | F39: 8 | G39: 48 | H39: 0.16 | I39: 810.3448276 | J39: 940 | K39: 7520 | L39: 1000 | M39: 6 | N39: 288 | O39: 233379.3103 | P39: 46675.86207 | Q39: 186703.4483 | R39: 29872.55172 | S39: 216576 | T39: 0 | U39: 0 | V39: 0 | AZ39: 0 | BB39: =+CONTABILIDAD!AL39 -> 36 | BC39: 6 | BD39: 288 | BE39: 8
B40: 107261 | C40: 7703133072533 | D40: EL GOLPE RANCHERO 45G X 8 X 6 DE | E40: 6 | F40: 8 | G40: 48 | H40: 0.16 | I40: 810.3448276 | J40: 940 | K40: 7520 | L40: 1000 | M40: 6.5 | N40: 312 | O40: 252827.5862 | P40: 50565.51724 | Q40: 202262.069 | R40: 32361.93103 | S40: 234624 | T40: 0 | U40: 0 | V40: 480 | X40: 480 | AZ40: 0 | BB40: =+CONTABILIDAD!AL40 -> 39 | BC40: 6.5 | BD40: 312 | BE40: 8
B41: 107590 | C41: 7703133072496 | D41: GOLPE RANCHERO 140 GR 17 X 1 AS | E41: 17 | F41: 1 | G41: =+E41*F41 -> 17 | H41: 0.16 | I41: 2161 | J41: =+I41+I41*H41 -> 2506.76 | K41: =+J41*F41 -> 2506.76 | L41: 2800 | M41: =+N41/G41 -> 0 | N41: 0 | O41: =+N41*I41 -> 0 | P41: 0 | Q41: =+O41-P41 -> 0 | R41: =+Q41*H41 -> 0 | S41: =+R41+Q41 -> 0 | T41: =AX41*G41 -> 0 | U41: =+$W$3*T41 -> 0 | V41: =SUM(X41:AW41) -> 0 | W41: =+V41/U41 ->  | AZ41: 0 | BB41: =+CONTABILIDAD!AL41 -> 0 | BC41: 0 | BD41: 0
B42: 107465 | D42: WOW MIX NATURAL 45 gr X 8 X 6 DE | E42: 6 | F42: 8 | G42: =+E42*F42 -> 48 | H42: 0.16 | I42: 810.3448276 | J42: =+I42+I42*H42 -> 940 | K42: =+J42*F42 -> 7520 | L42: 1000 | M42: =+N42/G42 -> 1.166666667 | N42: 56 | O42: =+N42*I42 -> 45379.31034 | P42: 9075.862069 | Q42: =+O42-P42 -> 36303.44828 | R42: =+Q42*H42 -> 5808.551724 | S42: =+R42+Q42 -> 42112 | T42: =AX42*G42 -> 0 | U42: =+$W$3*T42 -> 0 | V42: =SUM(X42:AW42) -> 0 | W42: =+V42/U42 ->  | AZ42: 0 | BB42: =+CONTABILIDAD!AL42 -> 7 | BC42: 1.166666667 | BD42: 56
B43: 107445 | D43: WOW MIX QUESO 45 gr X 8 X 6 DE | E43: 6 | F43: 8 | G43: =+E43*F43 -> 48 | H43: 0.16 | I43: 810.3448276 | J43: =+I43+I43*H43 -> 940 | K43: =+J43*F43 -> 7520 | L43: 1000 | M43: =+N43/G43 -> 0.5 | N43: 24 | O43: =+N43*I43 -> 19448.27586 | P43: 3889.655172 | Q43: =+O43-P43 -> 15558.62069 | R43: =+Q43*H43 -> 2489.37931 | S43: =+R43+Q43 -> 18048 | T43: =AX43*G43 -> 0 | U43: =+$W$3*T43 -> 0 | V43: =SUM(X43:AW43) -> 0 | W43: =+V43/U43 ->  | AZ43: 0 | BB43: =+CONTABILIDAD!AL43 -> 3 | BC43: 0.5 | BD43: 24 | BE43: 1
B44: 107447 | D44: WOW MIX BBQ 45 gr X 8 X 6 DE | E44: 6 | F44: 8 | G44: =+E44*F44 -> 48 | H44: 0.16 | I44: 810.3448276 | J44: =+I44+I44*H44 -> 940 | K44: =+J44*F44 -> 7520 | L44: 1000 | M44: =+N44/G44 -> 1.666666667 | N44: 80 | O44: =+N44*I44 -> 64827.58621 | P44: 12965.51724 | Q44: =+O44-P44 -> 51862.06897 | R44: =+Q44*H44 -> 8297.931034 | S44: =+R44+Q44 -> 60160 | T44: =AX44*G44 -> 0 | U44: =+$W$3*T44 -> 0 | V44: =SUM(X44:AW44) -> 240 | W44: =+V44/U44 ->  | X44: =48*5 -> 240 | AZ44: 0 | BB44: =+CONTABILIDAD!AL44 -> 10 | BC44: 1.666666667 | BD44: 80 | BE44: 1
A45: TOSTIS | B45: 007226 | C45: 7703133072380 | D45: TOSTI AREPAS 150g X 17 X 1 AS | E45: 17 | F45: 1 | G45: 17 | H45: 0.1 | I45: 1545 | J45: 1699.5 | K45: 1699.5 | L45: 1800 | M45: 0 | N45: 0 | O45: 0 | P45: 0 | Q45: 0 | R45: 0 | S45: 0 | T45: 0 | U45: 0 | V45: 0 | AZ45: 0 | BB45: =+CONTABILIDAD!AL45 -> 0 | BC45: 0 | BD45: 0
B46: 103032 | C46: 7703133072274 | D46: COMBO TOSTI SUR | E46: 6 | F46: 1 | G46: 6 | H46: 0.1 | I46: =4000/1.1 -> 3636.363636 | J46: 4000 | K46: 4000 | L46: 500 | M46: 3 | N46: 18 | O46: 65454.54545 | P46: 13090.90909 | Q46: 52363.63636 | R46: 5236.363636 | S46: 57600 | T46: 0 | U46: 0 | V46: 72 | X46: 72 | AZ46: 0 | BB46: =+CONTABILIDAD!AL46 -> 18 | BC46: 3 | BD46: 18
B47: 107228 | D47: TOSTI AREPAS 28g X 12 X 6 | E47: 6 | F47: 12 | G47: =+E47*F47 -> 72 | H47: 0.1 | I47: 364 | J47: =+I47+I47*H47 -> 400.4 | K47: =+J47*F47 -> 4804.8 | L47: 500 | M47: =+N47/G47 -> 0 | N47: 0 | O47: =+N47*I47 -> 0 | P47: =+O47*$O$85 -> 0 | Q47: =+O47-P47 -> 0 | R47: =+Q47*H47 -> 0 | S47: =+R47+Q47 -> 0 | BB47: =+CONTABILIDAD!AL47 -> 0 | BC47: 0 | BD47: 0
B48: 107240 | C48: 7703133072397 | D48: TOSTI EMPANADA CARNE 28GX12X6 DE | E48: 6 | F48: 12 | G48: 72 | H48: 0.1 | I48: 364 | J48: 400.4 | K48: 4804.8 | L48: 500 | M48: 1.5 | N48: 108 | O48: 39312 | P48: 7862.4 | Q48: 31449.6 | R48: 3144.96 | S48: 34594.56 | T48: 0 | U48: 0 | V48: 0 | AZ48: 0 | BB48: =+CONTABILIDAD!AL48 -> 9 | BC48: 1.5 | BD48: 108 | BE48: 1
B49: 107234 | C49: 7703133072335 | D49: TOSTI EMPANADA LIMON 28 G X 12 X 6 DE | E49: 6 | F49: 12 | G49: 72 | H49: 0.1 | I49: 364 | J49: 400.4 | K49: 4804.8 | L49: 500 | M49: 4.833333333 | N49: 348 | O49: 126672 | P49: 25334.4 | Q49: 101337.6 | R49: 10133.76 | S49: 111471.36 | T49: 0 | U49: 0 | V49: 1080 | X49: =72*15 -> 1080 | AZ49: 0 | BB49: =+CONTABILIDAD!AL49 -> 29 | BC49: 4.833333333 | BD49: 348 | BE49: 6
B50: 107220 | C50: 7703133072199 | D50: TOSTI PIZZA POLLO 28G X 12 X 6 DE | E50: 6 | F50: 12 | G50: 72 | H50: 0.1 | I50: 364 | J50: 400.4 | K50: 4804.8 | L50: 500 | M50: 0 | N50: 0 | O50: 0 | P50: 0 | Q50: 0 | R50: 0 | S50: 0 | T50: 0 | U50: 0 | V50: 72 | X50: 72 | AZ50: 0 | BB50: =+CONTABILIDAD!AL50 -> 0 | BC50: 0 | BD50: 0
B51: 107222 | C51: 7703133072199 | D51: TOSTI PIZZA QUESO 28G X 12 X 6 DE | E51: 6 | F51: 12 | G51: 72 | H51: 0.1 | I51: 364 | J51: 400.4 | K51: 4804.8 | L51: 500 | M51: 0 | N51: 0 | O51: 0 | P51: 0 | Q51: 0 | R51: 0 | S51: 0 | T51: 0 | U51: 0 | V51: 0 | AZ51: 0 | BB51: =+CONTABILIDAD!AL51 -> 0 | BC51: 0 | BD51: 0
B52: 107333 | D52: TOSTI NACHOS QUESO 28 GR X 12 X 6 DE | E52: 6 | F52: 12 | G52: 72 | H52: 0.1 | I52: 364 | J52: 400.4 | K52: 4804.8 | L52: 500 | M52: 1 | N52: 72 | O52: 26208 | P52: 5241.6 | Q52: 20966.4 | R52: 2096.64 | S52: 23063.04 | T52: 0 | U52: 0 | V52: 144 | X52: =72*2 -> 144 | AZ52: 0 | BB52: =+CONTABILIDAD!AL52 -> 6 | BC52: 1 | BD52: 72 | BE52: 1
B53: 107231 | C53: 7703133072304 | D53: TOSTIEMPANADA QUESO PICANTE 28G X 12 X 6 | E53: 6 | F53: 12 | G53: 72 | H53: 0.1 | I53: 364 | J53: 400.4 | K53: 4804.8 | L53: 500 | M53: 0 | N53: 0 | O53: 0 | P53: 0 | Q53: 0 | R53: 0 | S53: 0 | T53: 0 | U53: 0 | V53: 0 | AZ53: 0 | BB53: =+CONTABILIDAD!AL53 -> 0 | BC53: 0 | BD53: 0
B54: 107335 | D54: TOSTI NACHOS CHILE LIMON 28 GR X 12 X 6 | E54: 6 | F54: 12 | G54: 72 | H54: 0.1 | I54: 364 | J54: 400.4 | K54: 4804.8 | L54: 500 | M54: 0 | N54: 0 | O54: 0 | P54: 0 | Q54: 0 | R54: 0 | S54: 0 | T54: 0 | U54: 0 | V54: 0 | AZ54: 0 | BB54: =+CONTABILIDAD!AL54 -> 0 | BC54: 0 | BD54: 0
B55: 107485 | C55: 7703133079996 | D55: TOSTI PLATANITOS 30 GR X 12 X 6 DE | E55: 6 | F55: 12 | G55: 72 | H55: 0.16 | I55: 388 | J55: 450.08 | K55: 5400.96 | L55: 600 | M55: 0 | N55: 0 | O55: 0 | P55: 0 | Q55: 0 | R55: 0 | S55: 0 | T55: 0 | U55: 0 | V55: 72 | X55: 72 | AZ55: 0 | BB55: =+CONTABILIDAD!AL55 -> 0 | BC55: 0 | BD55: 0
B56: 107561 | D56: TOSTI NACHOS 45 GR 8 X 6 | E56: 6 | F56: 8 | G56: 48 | H56: 0.1 | I56: =650/1.1 -> 590.9090909 | J56: 650 | K56: 5200 | L56: 800 | M56: 0 | N56: 0 | O56: 0 | P56: 0 | Q56: 0 | R56: 0 | S56: 0 | T56: 0 | U56: 0 | V56: 0 | BB56: =+CONTABILIDAD!AL56 -> 0 | BC56: 0 | BD56: 0
B57: 007337 | C57: 7703133079996 | D57: TOSTI NACHOS CHILE LIMON 150 GR X 17 X 1 AS | E57: 17 | F57: 1 | G57: 17 | H57: 0.1 | I57: 1545 | J57: =+I57+I57*H57 -> 1699.5 | K57: =+J57*F57 -> 1699.5 | L57: 1800 | M57: =+N57/G57 -> 0 | N57: 0 | O57: =+N57*I57 -> 0 | P57: 0 | Q57: =+O57-P57 -> 0 | R57: =+Q57*H57 -> 0 | S57: =+R57+Q57 -> 0 | T57: =AX57*G57 -> 0 | U57: 0 | V57: =SUM(X57:AW57) -> 0 | W57: =+V57/U57 ->  | AZ57: 0 | BB57: =+CONTABILIDAD!AL57 -> 0 | BC57: 0 | BD57: 0
B58: 007338 | C58: 7703133079996 | D58: TOSTI NACHOS QUESO 150 GR X 17 X 1 AS | E58: 17 | F58: 1 | G58: 17 | H58: 0.1 | I58: 1545 | J58: =+I58+I58*H58 -> 1699.5 | K58: =+J58*F58 -> 1699.5 | L58: 1800 | M58: =+N58/G58 -> 0 | N58: 0 | O58: =+N58*I58 -> 0 | P58: 0 | Q58: =+O58-P58 -> 0 | R58: =+Q58*H58 -> 0 | S58: =+R58+Q58 -> 0 | T58: =AX58*G58 -> 0 | U58: 0 | V58: =SUM(X58:AW58) -> 0 | W58: =+V58/U58 ->  | AZ58: 0 | BB58: =+CONTABILIDAD!AL58 -> 0 | BC58: 0 | BD58: 0
A59: OTROS | B59: 107574 | C59: 77031330200227 | D59: MEKATROCITOS POLLO 28 GR X 12 X 8 DE | E59: 8 | F59: 12 | G59: 96 | H59: 0.1 | I59: 273 | J59: 300.3 | K59: 3603.6 | L59: 400 | M59: -0.875 | N59: -84 | O59: -22932 | P59: -4586.4 | Q59: -18345.6 | R59: -1834.56 | S59: -20180.16 | T59: 0 | U59: 0 | V59: 0 | AZ59: 0 | BB59: =+CONTABILIDAD!AL59 -> -7 | BC59: -0.875 | BD59: -84 | BE59: 10
B60: 02424 | C60: 7703133024242 | D60: TOZINETAS FRED 40g X 40 X 1 AS | E60: 40 | F60: 1 | G60: 40 | H60: 0.16 | I60: 954.55 | J60: 1107.278 | K60: 1107.278 | L60: 1280 | M60: 0 | N60: 0 | O60: 0 | P60: 0 | Q60: 0 | R60: 0 | S60: 0 | T60: 0 | U60: 0 | V60: 0 | AZ60: 0 | BB60: =+CONTABILIDAD!AL60 -> 0 | BC60: 0 | BD60: 0
B61: 107385 | C61: 7703133024211 | D61: TOZINETAS FRED 25G X 48 DE | E61: 48 | F61: 1 | G61: 48 | H61: 0.16 | I61: 498 | J61: 577.68 | K61: 577.68 | L61: 600 | M61: 1.041666667 | N61: 50 | O61: 24900 | P61: 4980 | Q61: 19920 | R61: 3187.2 | S61: 23107.2 | T61: 0 | U61: 0 | V61: 48 | X61: 48 | AZ61: 0 | BB61: =+CONTABILIDAD!AL61 -> 50 | BC61: 1.041666667 | BD61: 50 | BE61: 1
B62: 102411 | C62: 7703133024105 | D62: COSTILLITAS FRED 25GX 48 DE | E62: 48 | F62: 1 | G62: 48 | H62: 0.16 | I62: 498 | J62: 577.68 | K62: 577.68 | L62: 700 | M62: 0.6458333333 | N62: 31 | O62: 15438 | P62: 3087.6 | Q62: 12350.4 | R62: 1976.064 | S62: 14326.464 | T62: 0 | U62: 0 | V62: 48 | X62: 48 | AZ62: 0 | BB62: =+CONTABILIDAD!AL62 -> 31 | BC62: 0.6458333333 | BD62: 31
B63: 107996 | D63: PAPAS CHIPS 45 GRMS | E63: 48 | F63: 1 | G63: 48 | H63: 0.16 | I63: 646.8 | J63: 750.288 | K63: 750.288 | L63: 900 | M63: 0 | N63: 0 | O63: 0 | P63: 0 | Q63: 0 | R63: 0 | S63: 0 | T63: 0 | U63: 0 | BB63: =+CONTABILIDAD!AL63 -> 0 | BC63: 0 | BD63: 0
B64: 108006 | D64: PAPAS CHIPS 150 GRMS | E64: 17 | F64: 1 | G64: =+E64*F64 -> 17 | H64: 0.16 | I64: 1939.7 | J64: =+I64+I64*H64 -> 2250.052 | K64: =+J64*F64 -> 2250.052 | L64: 900 | M64: =+N64/G64 -> 0 | N64: 0 | O64: =+N64*I64 -> 0 | P64: =+O64*$O$85 -> 0 | Q64: =+O64-P64 -> 0 | R64: =+Q64*H64 -> 0 | S64: =+R64+Q64 -> 0 | BB64: =+CONTABILIDAD!AL64 -> 0 | BC64: 0 | BD64: 0
B65: 07795 | C65: 7703133077958 | D65: LONCHERA DIVERTIDA 241g X 12 AS | E65: 12 | F65: 1 | G65: 12 | H65: 0.16 | I65: 3275.8621 | J65: 3800.000036 | K65: 3800.000036 | L65: 4650 | M65: 8.083333333 | N65: 97 | O65: 317758.6237 | P65: 63551.72474 | Q65: 254206.899 | R65: 40673.10383 | S65: 294880.0028 | T65: 0 | U65: 0 | V65: 12 | X65: 12 | AZ65: 0 | BB65: =+CONTABILIDAD!AL65 -> 97 | BC65: 8.083333333 | BD65: 97 | BE65: 10
B66: 02156 | C66: 7703133023979 | D66: LONCHIPACK 309g X 12 X 12 AS | E66: 12 | F66: 1 | G66: 12 | H66: 0.16 | I66: 4051.72 | J66: 4699.9952 | K66: 4699.9952 | L66: 6050 | M66: 0 | O66: 0 | P66: 0 | Q66: 0 | R66: 0 | S66: 0 | T66: 0 | U66: 0 | V66: 0 | BB66: =+CONTABILIDAD!AL66 -> 0 | BC66: 0 | BD66: 0
A67: CRESPAS | B67: 100008 | D67: MEKATO NATURAL 25 GR X 12 X 6 | E67: 12 | F67: 6 | G67: 72 | H67: 0.16 | I67: 474.16 | J67: 550.0256 | K67: 3300.1536 | L67: 700 | M67: 0 | O67: 0 | P67: 0 | Q67: 0 | R67: 0 | S67: 0 | T67: 0 | U67: 0 | V67: 0 | BB67: =+CONTABILIDAD!AL67 -> 0 | BC67: 0 | BD67: 0
B68: 100009 | D68: MEKATO LIMON 25 GR X 12 X 6 | E68: 12 | F68: 6 | G68: 72 | H68: 0.16 | I68: 474.16 | J68: 550.0256 | K68: 3300.1536 | L68: 700 | M68: 0 | O68: 0 | P68: 0 | Q68: 0 | R68: 0 | S68: 0 | T68: 0 | U68: 0 | V68: 0 | BB68: =+CONTABILIDAD!AL68 -> 0 | BC68: 0 | BD68: 0
B69: 100002 | D69: CRESPAS SALSA TOMATE 25 GR | E69: 12 | F69: 6 | G69: 72 | H69: 0.16 | I69: 505 | J69: 585.8 | K69: 3514.8 | L69: 700 | M69: 0 | O69: 0 | P69: 0 | Q69: 0 | R69: 0 | S69: 0 | T69: 0 | U69: 0 | V69: 0 | BB69: =+CONTABILIDAD!AL69 -> 0 | BC69: 0 | BD69: 0
B70: 100003 | D70: CRESPAS LIMON 25 GR | E70: 12 | F70: 6 | G70: 72 | H70: 0.16 | I70: 505 | J70: 585.8 | K70: 3514.8 | L70: 700 | M70: 0 | O70: 0 | P70: 0 | Q70: 0 | R70: 0 | S70: 0 | T70: 0 | U70: 0 | V70: 0
B71: 100004 | D71: CRESPAS POLLO 25 GR | E71: 12 | F71: 6 | G71: 72 | H71: 0.16 | I71: 505 | J71: 585.8 | K71: 3514.8 | L71: 700 | M71: 0 | O71: 0 | P71: 0 | Q71: 0 | R71: 0 | S71: 0 | T71: 0 | U71: 0 | V71: 0
A72: MEKATO | B72: 100144 | D72: ROSKOTAS AREQUIPE 14G X 12 X 7 | E72: 7 | F72: 12 | G72: 84 | H72: 0.1 | I72: 436.38 | J72: 480.018 | K72: 6074.4096 | L72: 700 | M72: 0 | O72: 0 | P72: =+O72*$O$85 -> 0 | Q72: 0 | R72: 0 | S72: 0 | T72: 0 | U72: 0 | V72: 0
B73: 000034 | D73: MEKATO ESCOLAR 205 GR X 24 | E73: 24 | F73: 1 | G73: 24 | H73: 0.16 | I73: 2844.82 | J73: 3299.9912 | K73: =+J73*F73 -> 3299.9912 | L73: 200 | M73: 0 | O73: 0 | P73: 0 | Q73: 0 | R73: 0 | S73: 0
B74: 100126 | D74: TICOS 9 G X 12 X 12 | E74: 12 | F74: 12 | G74: 144 | H74: 0.16 | I74: 86.21 | J74: 100.0036 | K74: 1200.0432 | L74: 200 | M74: 0 | O74: 0 | P74: 0 | Q74: 0 | R74: 0 | S74: 0 | T74: 0 | U74: 0 | V74: 0 | W74: =+V74/U74 -> 
B75: 100138 | D75: TICOS PICANTE 9 G X 12 X 20 | E75: 12 | F75: 20 | G75: 240 | H75: 0.16 | I75: 133.62 | J75: 154.9992 | K75: 3099.984 | L75: 200 | M75: 0 | O75: 0 | P75: 0 | Q75: 0 | R75: 0 | S75: 0
B76: 000127 | D76: TICOS 38G X 36 | E76: 36 | F76: 1 | G76: 36 | H76: 0.16 | I76: 327.59 | J76: 380.0044 | K76: 380.0044 | L76: 500 | M76: 0 | O76: 0 | P76: 0 | Q76: 0 | R76: 0 | S76: 0 | T76: 0 | U76: 0 | V76: 0
B77: 100130 | D77: TICOS QUESO 12 G X 12 X 20 | E77: 20 | F77: 12 | G77: 240 | H77: 0.16 | I77: 129.31 | J77: 149.9996 | K77: 1799.9952 | L77: 200 | M77: 0 | O77: 0 | P77: 0 | Q77: 0 | R77: 0 | S77: 0 | T77: 0 | U77: 0 | V77: 0
B78: 000152 | D78: TICOS QUESO 38 G X 36 | E78: 36 | F78: 1 | G78: 36 | H78: 0.16 | I78: 344.8276 | J78: 400.000016 | K78: 400.000016 | L78: 500 | M78: 0 | O78: 0 | P78: 0 | Q78: 0 | R78: 0 | S78: 0 | T78: 0 | U78: 0 | V78: 360 | X78: 360
B79: 100137 | D79: TICOS QUESO 8 G X 12 X 20 | E79: 20 | F79: 12 | G79: 240 | H79: 0.16 | I79: 133.62 | J79: 154.9992 | K79: 1859.9904 | L79: 500 | M79: 0 | O79: 0 | P79: 0 | Q79: 0 | R79: 0 | S79: 0 | T79: 0 | U79: 0 | V79: 0
B80: 100153 | D80: TICOS POLLO 9G 12 X 20 | E80: 12 | F80: 20 | G80: 240 | H80: 0.16 | I80: 133.62 | J80: 154.9992 | K80: 3099.984 | L80: 200 | M80: 0 | O80: 0 | P80: 0 | Q80: 0 | R80: 0 | S80: 0 | T80: 0 | U80: 0 | V80: 1200 | X80: =240*5 -> 1200
B81: 000128 | D81: TICOS POLLO 38 G X 36 | E81: 36 | F81: 1 | G81: 36 | H81: 0.16 | I81: 345 | J81: 400.2 | K81: 400.2 | L81: 500 | M81: 0 | O81: 0 | P81: 0 | Q81: 0 | R81: 0 | S81: 0 | T81: 0 | U81: 0 | V81: 0
B82: 000151 | D82: TICOS CARAMELO 38 G X 36 | E82: 36 | F82: 1 | G82: 36 | H82: 0.16 | I82: 344.8276 | J82: 400.000016 | K82: 400.000016 | L82: 500 | M82: 0 | O82: 0 | P82: 0 | Q82: 0 | R82: 0 | S82: 0 | T82: 0 | U82: 0 | V82: 0
B83: 000150 | C83: 7703133023979 | D83: TICO PICANTE 38G X 36 | E83: 36 | F83: 1 | G83: 36 | H83: 0.16 | I83: 327.5862 | J83: 379.999992 | K83: 379.999992 | L83: 500 | M83: 0 | O83: =+N83*I83 -> 0 | P83: 0 | Q83: =+O83-P83 -> 0 | R83: =+Q83*H83 -> 0 | S83: =+R83+Q83 -> 0 | T83: 0 | U83: 0 | V83: 108 | X83: =36*3 -> 108 | AZ83: 0
A84: CUPO CREDITO TOTAL | C84: 0 | E84: CUPO ACTUAL | F84: 0 | M84: =SUM(M5:M83) -> 162.4069444 | N84: =S84/1000 -> 4583.755697 | O84: =SUM(O5:O83) -> 4951532.322 | P84: 990306.4645 | Q84: 3961225.858 | R84: 622529.8391 | S84: 4583755.697 | T84: 0 | U84: 0 | V84: 6044 | AX84: =SUM(AX5:AX83) -> 0 | AY84: =SUM(AY5:AY83) -> 0 | AZ84: =SUM(AZ5:AZ83) -> 0
C85: 0 | O85: =S1 -> 0.2

Sheet CONTABILIDAD
D1: FRANQUICIADO | H1: CONTABILIDAD | M1: DESCUENTO | S1: 0.2
D2: CODIGO | M2: ZONA
D3: FECHA | E3: =TODAY() -> 2012-09-10 | M3: VALOR PEDIDO | S3: =S84 -> 0
B4: Codigo | C4: Codigo Barras | D4: Descripción | E4: Displays por paca | F4: Unds por Display | G4: Unds por Paca | H4: Iva | I4: Precio Antes de Iva | J4: Precio incluido IVA | K4: Valor Display al tendero | L4: PVP Sugerido (Und) | M4: PACAS | N4: UNIDADES | O4: v.antes iva | P4: Descuento | Q4: total | R4: iva | S4: Total a Pagar | T4: PRECIO VTA | U4: inventario contable sept 11 | AB4: total compras | AK4: total ventas | AL4: saldo
A5: EXTRUIDOS | B5: 101 | C5: 7703133078771 | D5: YUPIS QUESO 45g X 36 X 1 AS | E5: 36 | F5: 1 | G5: =+E5*F5 -> 36 | H5: 0.16 | I5: 560 | J5: =+I5+I5*H5 -> 649.6 | K5: =+J5*F5 -> 649.6 | L5: 700 | M5: =+N5/G5 -> 0 | O5: =+N5*I5 -> 0 | P5: =+O5*$O$85 -> 0 | Q5: =+O5-P5 -> 0 | R5: =+Q5*H5 -> 0 | S5: =+R5+Q5 -> 0 | T5: 650 | U5: 217 | AB5: =SUM(V5:AA5) -> 0 | AK5: =SUM(AC5:AJ5) -> 0 | AL5: =+U5+AB5-AK5 -> 217
B6: 102 | C6: 7703133077309 | D6: YUPIS SALADO 60g X 36 X 1 AS | E6: 36 | F6: 1 | G6: =+E6*F6 -> 36 | H6: 0.16 | I6: =650/1.16 -> 560.3448276 | J6: 650 | K6: 650 | L6: 700 | M6: 0 | O6: 0 | P6: 0 | Q6: 0 | R6: 0 | S6: 0 | T6: 650 | U6: 725 | AB6: =SUM(V6:AA6) -> 0 | AK6: =SUM(AC6:AJ6) -> 0 | AL6: 725
B7: 103 | D7: YUPIS PICANTE 45g X 36 X 1 AS | E7: 36 | F7: 1 | G7: 36 | H7: 0.16 | I7: =650/1.16 -> 560.3448276 | J7: 650 | K7: 650 | L7: 700 | M7: 0 | O7: 0 | P7: 0 | Q7: 0 | R7: 0 | S7: 0 | T7: 650 | U7: 294 | AB7: 0 | AK7: 0 | AL7: 294
B8: 104 | C8: 7703133078818 | D8: YUPI CARAMELO 50gX36X1 AS | E8: 36 | F8: 1 | G8: 36 | H8: 0.16 | I8: =650/1.16 -> 560.3448276 | J8: 650 | K8: 650 | L8: 700 | M8: 0 | O8: 0 | P8: 0 | Q8: 0 | R8: 0 | S8: 0 | T8: 650 | U8: 732 | AB8: 0 | AK8: 0 | AL8: 732
B9: 105 | D9: YUPI AREQUIQUESO 45grX36 | E9: 36 | F9: 1 | G9: 36 | H9: 0.16 | I9: =650/1.16 -> 560.3448276 | J9: =+I9+I9*H9 -> 650 | K9: =+J9*F9 -> 650 | L9: 700 | M9: 0 | O9: =+N9*I9 -> 0 | P9: 0 | Q9: =+O9-P9 -> 0 | R9: =+Q9*H9 -> 0 | S9: 0 | T9: 650 | U9: 128 | AB9: 0 | AK9: 0 | AL9: 128
B10: 106 | D10: YUPI UVA 45grX36 | E10: 36 | F10: 1 | G10: 36 | H10: 0.16 | I10: =650/1.16 -> 560.3448276 | J10: =+I10+I10*H10 -> 650 | K10: =+J10*F10 -> 650 | L10: 700 | M10: 0 | O10: =+N10*I10 -> 0 | P10: 0 | Q10: =+O10-P10 -> 0 | R10: =+Q10*H10 -> 0 | S10: 0 | T10: 650 | U10: 0 | AB10: 0 | AK10: 0 | AL10: 0
B11: 107 | C11: 7703133021739 | D11: YUPIS SALADO 10g X 12 X 20 DE | E11: 20 | F11: 12 | G11: 240 | H11: 0.16 | I11: =144/1.16 -> 124.137931 | J11: 144 | K11: 1728 | L11: 200 | M11: 0 | O11: 0 | P11: 0 | Q11: 0 | R11: 0 | S11: 0 | T11: 1750 | U11: 236 | AB11: 0 | AK11: 0 | AL11: 236
B12: 108 | C12: 7703133077248 | D12: TICK CHEESE 100G X 24 X 1 AS | E12: 24 | F12: 1 | G12: 24 | H12: 0.16 | I12: 767.2 | J12: 889.952 | K12: 889.952 | L12: 1000 | M12: 0 | O12: 0 | P12: 0 | Q12: 0 | R12: 0 | S12: 0 | T12: 900 | U12: 9 | AB12: 0 | AK12: 0 | AL12: 9
B13: 109 | C13: 7703133077194 | D13: TICK CHEESE 40g X 12 X 6 DE | E13: 6 | F13: 12 | G13: 72 | H13: 0.16 | I13: 396 | J13: 459.36 | K13: 5512.32 | L13: 600 | M13: 0 | O13: 0 | P13: 0 | Q13: 0 | R13: 0 | S13: 0 | T13: 6720 | U13: 2.5 | AB13: 0 | AK13: 0 | AL13: 2.5
B14: 110 | C14: 7703133021227 | D14: PALOMITAS CARAMELO 68g X 36 X 1 AS | E14: 36 | F14: 1 | G14: 36 | H14: 0.16 | I14: 582 | J14: 675.12 | K14: 675.12 | L14: 800 | M14: 0 | O14: 0 | P14: 0 | Q14: 0 | R14: 0 | S14: 0 | T14: 700 | U14: 38 | AB14: 0 | AK14: 0 | AL14: 38
B15: 111 | C15: 7703133021166 | D15: PALOMITAS CARAMELO 20g X 12 X 12 DE | E15: 12 | F15: 12 | G15: 144 | H15: 0.16 | I15: 344.8 | J15: 399.968 | K15: 4799.616 | L15: 500 | M15: 0 | O15: 0 | P15: 0 | Q15: 0 | R15: 0 | S15: 0 | T15: 5000 | U15: 7.5 | AB15: 0 | AK15: 0 | AL15: 7.5
A16: RIZADAS | B16: 112 | C16: 7703133091275 | D16: RIZADAS NATURAL 30g X 12 X 6 DE | E16: 6 | F16: 12 | G16: 72 | H16: 0.16 | I16: =750/1.16 -> 646.5517241 | J16: =+I16+I16*H16 -> 750 | K16: =+J16*F16 -> 9000 | L16: 800 | M16: =+N16/G16 -> 0 | O16: =+N16*I16 -> 0 | P16: 0 | Q16: =+O16-P16 -> 0 | R16: =+Q16*H16 -> 0 | S16: =+R16+Q16 -> 0 | T16: 9000 | U16: 7 | AB16: 0 | AK16: 0 | AL16: 7
B17: 113 | C17: 7703133070324 | D17: RIZADAS POLLO 30g X 12 X 6 DE | E17: 6 | F17: 12 | G17: 72 | H17: 0.16 | I17: =750/1.16 -> 646.5517241 | J17: 750 | K17: 9000 | L17: 800 | M17: 0 | O17: 0 | P17: 0 | Q17: 0 | R17: 0 | S17: 0 | T17: 9000 | U17: 9 | AB17: 0 | AK17: 0 | AL17: 9
B18: 114 | C18: 7703133070362 | D18: RIZADAS MAYONESA 30g X 12 X 6 DE | E18: 6 | F18: 12 | G18: 72 | H18: 0.16 | I18: =750/1.16 -> 646.5517241 | J18: 750 | K18: 9000 | L18: 800 | M18: 0 | O18: 0 | P18: 0 | Q18: 0 | R18: 0 | S18: 0 | T18: 9000 | U18: 24 | AB18: 0 | AK18: 0 | AL18: 24
B19: 115 | C19: 7703133070348 | D19: RIZADAS LIMON 30g X 12 X 6 DE | E19: 6 | F19: 12 | G19: 72 | H19: 0.16 | I19: =750/1.16 -> 646.5517241 | J19: 750 | K19: 9000 | L19: 800 | M19: 0 | O19: 0 | P19: 0 | Q19: 0 | R19: 0 | S19: 0 | T19: 9000 | U19: 16 | AB19: 0 | AK19: 0 | AL19: 16
B20: 116 | C20: 7703133070287 | D20: RIZADAS BBQ RANCHERA 28g X 12 X 6 DE | E20: 6 | F20: 12 | G20: 72 | H20: 0.16 | I20: 581.9 | J20: 675.004 | K20: 8100.048 | L20: 800 | M20: =+N20/G20 -> 0 | O20: 0 | P20: 0 | Q20: 0 | R20: 0 | S20: 0 | T20: 9000 | U20: 0 | AB20: 0 | AK20: 0 | AL20: 0
B21: 117 | D21: RIZADAS MEXICAN FUSION 28g X 12 X 6 DE | E21: 6 | F21: 12 | G21: 72 | H21: 0.16 | I21: =750/1.16 -> 646.5517241 | J21: 750 | K21: 9000 | L21: 800 | M21: 0 | O21: 0 | P21: 0 | Q21: 0 | R21: 0 | S21: 0 | T21: 9000 | U21: 0 | AB21: =SUM(V21:AA21) -> 0 | AK21: 0 | AL21: 0
B22: 118 | C22: 7703133072922 | D22: RIZADAS NATURAL 115g X 20 X 1 AS | E22: 20 | F22: 1 | G22: 20 | H22: 0.16 | I22: =1750/1.16 -> 1508.62069 | J22: 1750 | K22: 1800 | L22: 2300 | M22: 0 | O22: 0 | P22: 0 | Q22: 0 | R22: 0 | S22: 0 | T22: 1800 | U22: 29 | AB22: 0 | AK22: 0 | AL22: 29
B23: 119 | C23: 7703133072946 | D23: RIZADAS MAYONESA 115g X 20 X 1 AS | E23: 20 | F23: 1 | G23: 20 | H23: 0.16 | I23: =1750/1.16 -> 1508.62069 | J23: 1750 | K23: 1800 | L23: 2300 | M23: 0 | O23: 0 | P23: 0 | Q23: 0 | R23: 0 | S23: 0 | T23: 1800 | U23: 22 | AB23: 0 | AK23: 0 | AL23: 22
B24: 120 | C24: 7703133072984 | D24: RIZADAS LIMON 115g X 20 X 1 AS | E24: 20 | F24: 1 | G24: 20 | H24: 0.16 | I24: =1750/1.16 -> 1508.62069 | J24: 1750 | K24: 1800 | L24: 2300 | M24: 0 | O24: 0 | P24: 0 | Q24: 0 | R24: 0 | S24: 0 | T24: 1800 | U24: 21 | AB24: 0 | AK24: 0 | AL24: 21
B25: 121 | C25: 7703133078856 | D25: RIZADAS POLLO 115g X 20 X 1 AS | E25: 20 | F25: 1 | G25: 20 | H25: 0.16 | I25: =1750/1.16 -> 1508.62069 | J25: 1750 | K25: 1800 | L25: 2300 | M25: 0 | O25: 0 | P25: 0 | Q25: 0 | R25: 0 | S25: 0 | T25: 1800 | U25: 27 | AB25: 0 | AK25: 0 | AL25: 27
B26: 122 | D26: RIZADAS MEXICAN FUSION 115g X 20 X 1 AS | E26: 20 | F26: 1 | G26: 20 | H26: 0.16 | I26: =1750/1.16 -> 1508.62069 | J26: =+I26+I26*H26 -> 1750 | K26: 1800 | L26: 1800 | M26: =+N26/G26 -> 0 | O26: =+N26*I26 -> 0 | P26: 0 | Q26: =+O26-P26 -> 0 | R26: =+Q26*H26 -> 0 | S26: =+R26+Q26 -> 0 | T26: 1800 | U26: 0 | AB26: 0 | AK26: 0 | AL26: 0
B27: 123 | C27: 7703133072953 | D27: RIZADAS NATURAL 45GX8X6 DE | E27: 6 | F27: 8 | G27: 48 | H27: 0.16 | I27: 758.87 | J27: =+I27+I27*H27 -> 880.2892 | K27: =+J27*F27 -> 7042.3136 | L27: 1000 | M27: =+N27/G27 -> 0 | O27: =+N27*I27 -> 0 | P27: 0 | Q27: =+O27-P27 -> 0 | R27: =+Q27*H27 -> 0 | S27: =+R27+Q27 -> 0 | T27: 6800 | U27: 8 | AB27: 0 | AK27: 0 | AL27: 8
B28: 124 | C28: 7703133072953 | D28: RIZADAS MAYONESA 45GX8X6 DE | E28: 6 | F28: 8 | G28: 48 | H28: 0.16 | I28: 758.87 | J28: 880.2892 | K28: 7042.3136 | L28: 1000 | M28: 0 | O28: 0 | P28: 0 | Q28: 0 | R28: 0 | S28: 0 | T28: 6800 | U28: 13 | AB28: 0 | AK28: 0 | AL28: 13
B29: 125 | C29: 7703133073011 | D29: RIZADAS POLLO 45GX8X6 DE | E29: 6 | F29: 8 | G29: 48 | H29: 0.16 | I29: 758.87 | J29: 880.2892 | K29: 7042.3136 | L29: 1000 | M29: 0 | O29: 0 | P29: 0 | Q29: 0 | R29: 0 | S29: 0 | T29: 6800 | U29: 0 | AB29: 0 | AK29: 0 | AL29: 0
B30: 126 | C30: 7703133072991 | D30: RIZADAS LIMON 45GX8X6 DE | E30: 6 | F30: 8 | G30: 48 | H30: 0.16 | I30: 758.87 | J30: 880.2892 | K30: 7042.3136 | L30: 1000 | M30: 0 | O30: 0 | P30: 0 | Q30: 0 | R30: 0 | S30: 0 | T30: 6800 | U30: 15 | AB30: 0 | AK30: 0 | AL30: 15
A31: LIZAS | B31: 127 | C31: 7703133070409 | D31: LIZA´S S/TOMATE 30g X 12 X 5 DE | E31: 5 | F31: 12 | G31: 60 | H31: 0.16 | I31: =750/1.16 -> 646.5517241 | J31: 750 | K31: 9000 | L31: 800 | M31: 0 | O31: 0 | P31: 0 | Q31: 0 | R31: 0 | S31: 0 | T31: 7500 | U31: 3.5 | AB31: 0 | AK31: 0 | AL31: 3.5
B32: 128 | C32: 7703133072423 | D32: LIZA´S S/ROSADA 30g X 12 X 5 DE | E32: 5 | F32: 12 | G32: 60 | H32: 0.16 | I32: =750/1.16 -> 646.5517241 | J32: 750 | K32: 9000 | L32: 800 | M32: 0 | O32: 0 | P32: 0 | Q32: 0 | R32: 0 | S32: 0 | T32: 7500 | U32: 18.5 | AB32: 0 | AK32: 0 | AL32: 18.5
B33: 129 | C33: 7703133070461 | D33: LIZA'S POLLO 30g X 12 X 5 DE | E33: 5 | F33: 12 | G33: 60 | H33: 0.16 | I33: =750/1.16 -> 646.5517241 | J33: 750 | K33: 9000 | L33: 800 | M33: 0 | O33: 0 | P33: 0 | Q33: 0 | R33: 0 | S33: 0 | T33: 7500 | U33: 49.5 | AB33: =SUM(V33:AA33) -> 0 | AK33: 0 | AL33: 49.5
B34: 130 | C34: 7703133070447 | D34: LIZA´S LIMÓN 30g X 12 X 5 DE | E34: 5 | F34: 12 | G34: 60 | H34: 0.16 | I34: =750/1.16 -> 646.5517241 | J34: 750 | K34: 9000 | L34: 800 | M34: 0 | O34: 0 | P34: 0 | Q34: 0 | R34: 0 | S34: 0 | T34: 7500 | U34: 23 | AB34: =SUM(V34:AA34) -> 0 | AK34: 0 | AL34: 23
A35: MIXTOS | B35: 131 | C35: 7703133072380 | D35: EL GOLPE 110g X 24 X 1 AS | E35: 24 | F35: 1 | G35: 24 | H35: 0.16 | I35: 1379.31 | J35: 1599.9996 | K35: 1599.9996 | L35: 1800 | M35: 0 | O35: 0 | P35: 0 | Q35: 0 | R35: 0 | S35: 0 | T35: 1600 | U35: 0 | AB35: =SUM(V35:AA35) -> 0 | AK35: 0 | AL35: 0
B36: 132 | C36: 7703133077231 | D36: GOLPE 30g X 12 X 6 DE | E36: 6 | F36: 12 | G36: 72 | H36: 0.16 | I36: 435.34 | J36: 504.9944 | K36: 6059.9328 | L36: 1000 | M36: 0 | O36: 0 | P36: 0 | Q36: 0 | R36: 0 | S36: 0 | T36: 6100 | U36: 0 | AB36: =SUM(V36:AA36) -> 0 | AK36: 0 | AL36: 0
B37: 133 | C37: 7703133077231 | D37: GOLPE MIX 45g X 8 X 6 DE | E37: 6 | F37: 8 | G37: 48 | H37: 0.16 | I37: =940/1.16 -> 810.3448276 | J37: 940 | K37: 7520 | L37: 1000 | M37: 0 | O37: 0 | P37: 0 | Q37: 0 | R37: 0 | S37: 0 | T37: 7520 | U37: 45 | AB37: 0 | AK37: 0 | AL37: =+U37+AB37-AK37 -> 45
B38: 134 | C38: 7703133072571 | D38: EL GOLPE 45 gr 8 X 6 DE | E38: 6 | F38: 8 | G38: 48 | H38: 0.16 | I38: =940/1.16 -> 810.3448276 | J38: 940 | K38: 7520 | L38: 1000 | M38: 0 | O38: 0 | P38: 0 | Q38: 0 | R38: 0 | S38: 0 | T38: 7520 | U38: 49 | AB38: =SUM(V38:AA38) -> 0 | AK38: 0 | AL38: 49
B39: 135 | C39: 7703133072540 | D39: EL GOLPE LIMON 45 gr 8 X 6 DE | E39: 6 | F39: 8 | G39: 48 | H39: 0.16 | I39: 810.3448276 | J39: 940 | K39: 7520 | L39: 1000 | M39: 0 | O39: 0 | P39: 0 | Q39: 0 | R39: 0 | S39: 0 | T39: 7520 | U39: 36 | AB39: =SUM(V39:AA39) -> 0 | AK39: 0 | AL39: 36
B40: 136 | C40: 7703133072533 | D40: EL GOLPE RANCHERO 45G X 8 X 6 DE | E40: 6 | F40: 8 | G40: 48 | H40: 0.16 | I40: 810.3448276 | J40: 940 | K40: 7520 | L40: 1000 | M40: 0 | O40: 0 | P40: 0 | Q40: 0 | R40: 0 | S40: 0 | T40: 7520 | U40: 39 | AB40: =SUM(V40:AA40) -> 0 | AK40: 0 | AL40: 39
B41: 137 | C41: 7703133072496 | D41: GOLPE RANCHERO 140 GR 17 X 1 AS | E41: 17 | F41: 1 | G41: =+E41*F41 -> 17 | H41: 0.16 | I41: 2161 | J41: =+I41+I41*H41 -> 2506.76 | K41: =+J41*F41 -> 2506.76 | L41: 2800 | M41: =+N41/G41 -> 0 | O41: =+N41*I41 -> 0 | P41: 0 | Q41: =+O41-P41 -> 0 | R41: =+Q41*H41 -> 0 | S41: =+R41+Q41 -> 0 | T41: 2500 | U41: 0 | AB41: =SUM(V41:AA41) -> 0 | AK41: 0 | AL41: 0
B42: 138 | D42: WOW MIX NATURAL 45 gr X 8 X 6 DE | E42: 6 | F42: 8 | G42: =+E42*F42 -> 48 | H42: 0.16 | I42: 810.3448276 | J42: =+I42+I42*H42 -> 940 | K42: =+J42*F42 -> 7520 | L42: 1000 | M42: =+N42/G42 -> 0 | O42: =+N42*I42 -> 0 | P42: 0 | Q42: =+O42-P42 -> 0 | R42: =+Q42*H42 -> 0 | S42: =+R42+Q42 -> 0 | T42: 7520 | U42: 7 | AB42: =SUM(V42:AA42) -> 0 | AK42: 0 | AL42: 7
B43: 139 | D43: WOW MIX QUESO 45 gr X 8 X 6 DE | E43: 6 | F43: 8 | G43: =+E43*F43 -> 48 | H43: 0.16 | I43: 810.3448276 | J43: =+I43+I43*H43 -> 940 | K43: =+J43*F43 -> 7520 | L43: 1000 | M43: =+N43/G43 -> 0 | O43: =+N43*I43 -> 0 | P43: 0 | Q43: =+O43-P43 -> 0 | R43: =+Q43*H43 -> 0 | S43: =+R43+Q43 -> 0 | T43: 7520 | U43: 3 | AB43: 0 | AK43: 0 | AL43: 3
B44: 140 | D44: WOW MIX BBQ 45 gr X 8 X 6 DE | E44: 6 | F44: 8 | G44: =+E44*F44 -> 48 | H44: 0.16 | I44: 810.3448276 | J44: =+I44+I44*H44 -> 940 | K44: =+J44*F44 -> 7520 | L44: 1000 | M44: =+N44/G44 -> 0 | O44: =+N44*I44 -> 0 | P44: 0 | Q44: =+O44-P44 -> 0 | R44: =+Q44*H44 -> 0 | S44: =+R44+Q44 -> 0 | T44: 7520 | U44: 10 | AB44: =SUM(V44:AA44) -> 0 | AK44: 0 | AL44: 10
A45: TOSTIS | B45: 141 | C45: 7703133072380 | D45: TOSTI AREPAS 150g X 17 X 1 AS | E45: 17 | F45: 1 | G45: 17 | H45: 0.1 | I45: 1545 | J45: 1699.5 | K45: 1699.5 | L45: 1800 | M45: 0 | O45: 0 | P45: 0 | Q45: 0 | R45: 0 | S45: 0 | T45: 1700 | U45: 0 | AB45: =SUM(V45:AA45) -> 0 | AK45: 0 | AL45: 0
B46: 142 | C46: 7703133072274 | D46: COMBO TOSTI SUR | E46: 6 | F46: 1 | G46: 6 | H46: 0.1 | I46: =4000/1.1 -> 3636.363636 | J46: 4000 | K46: 4000 | L46: 500 | M46: 0 | O46: 0 | P46: 0 | Q46: 0 | R46: 0 | S46: 0 | T46: 4000 | U46: 18 | AB46: =SUM(V46:AA46) -> 0 | AK46: 0 | AL46: 18
B47: 143 | D47: TOSTI AREPAS 28g X 12 X 6 | E47: 6 | F47: 12 | G47: 72 | H47: 0.1 | I47: 364 | J47: 400.4 | K47: 4804.8 | L47: 500 | M47: 0 | O47: 0 | P47: 0 | Q47: 0 | R47: 0 | S47: 0 | T47: 5000 | U47: 0 | AB47: 0 | AK47: 0 | AL47: 0
B48: 144 | C48: 7703133072397 | D48: TOSTI EMPANADA CARNE 28GX12X6 DE | E48: 6 | F48: 12 | G48: 72 | H48: 0.1 | I48: 364 | J48: 400.4 | K48: 4804.8 | L48: 500 | M48: 0 | O48: 0 | P48: 0 | Q48: 0 | R48: 0 | S48: 0 | T48: 5000 | U48: 9 | AB48: 0 | AK48: 0 | AL48: 9
B49: 145 | C49: 7703133072335 | D49: TOSTI EMPANADA LIMON 28 G X 12 X 6 DE | E49: 6 | F49: 12 | G49: 72 | H49: 0.1 | I49: 364 | J49: 400.4 | K49: 4804.8 | L49: 500 | M49: 0 | O49: 0 | P49: 0 | Q49: 0 | R49: 0 | S49: 0 | T49: 5000 | U49: 29 | AB49: 0 | AK49: 0 | AL49: 29
B50: 146 | C50: 7703133072199 | D50: TOSTI PIZZA POLLO 28G X 12 X 6 DE | E50: 6 | F50: 12 | G50: 72 | H50: 0.1 | I50: 364 | J50: 400.4 | K50: 4804.8 | L50: 500 | M50: 0 | O50: 0 | P50: 0 | Q50: 0 | R50: 0 | S50: 0 | T50: 5000 | U50: 0 | AB50: 0 | AK50: 0 | AL50: 0
B51: 147 | C51: 7703133072199 | D51: TOSTI PIZZA QUESO 28G X 12 X 6 DE | E51: 6 | F51: 12 | G51: 72 | H51: 0.1 | I51: 364 | J51: 400.4 | K51: 4804.8 | L51: 500 | M51: 0 | O51: 0 | P51: 0 | Q51: 0 | R51: 0 | S51: 0 | T51: 5000 | U51: 0 | AB51: 0 | AK51: 0 | AL51: 0
B52: 148 | D52: TOSTI NACHOS QUESO 28 GR X 12 X 6 DE | E52: 6 | F52: 12 | G52: 72 | H52: 0.1 | I52: 364 | J52: 400.4 | K52: 4804.8 | L52: 500 | M52: 0 | O52: 0 | P52: 0 | Q52: 0 | R52: 0 | S52: 0 | T52: 5000 | U52: 6 | AB52: 0 | AK52: 0 | AL52: 6
B53: 149 | C53: 7703133072304 | D53: TOSTIEMPANADA QUESO PICANTE 28G X 12 X 6 | E53: 6 | F53: 12 | G53: 72 | H53: 0.1 | I53: 364 | J53: 400.4 | K53: 4804.8 | L53: 500 | M53: 0 | O53: 0 | P53: 0 | Q53: 0 | R53: 0 | S53: 0 | T53: 5000 | U53: 0 | AB53: 0 | AK53: 0 | AL53: 0
B54: 150 | D54: TOSTI NACHOS CHILE LIMON 28 GR X 12 X 6 | E54: 6 | F54: 12 | G54: 72 | H54: 0.1 | I54: 364 | J54: 400.4 | K54: 4804.8 | L54: 500 | M54: 0 | O54: 0 | P54: 0 | Q54: 0 | R54: 0 | S54: 0 | T54: 5000 | U54: 0 | AB54: 0 | AK54: 0 | AL54: 0
B55: 151 | C55: 7703133079996 | D55: TOSTI PLATANITOS 30 GR X 12 X 6 DE | E55: 6 | F55: 12 | G55: 72 | H55: 0.16 | I55: 388 | J55: 450.08 | K55: 5400.96 | L55: 600 | M55: 0 | O55: 0 | P55: 0 | Q55: 0 | R55: 0 | S55: 0 | T55: 5400 | U55: 0 | AB55: 0 | AK55: 0 | AL55: 0
B56: 152 | D56: TOSTI NACHOS 45 GR 8 X 6 | E56: 6 | F56: 8 | G56: 48 | H56: 0.1 | I56: =650/1.1 -> 590.9090909 | J56: 650 | K56: 5200 | L56: 800 | M56: 0 | O56: 0 | P56: 0 | Q56: 0 | R56: 0 | S56: 0 | T56: 650 | U56: 0 | AB56: 0 | AK56: 0 | AL56: 0
B57: 153 | C57: 7703133079996 | D57: TOSTI NACHOS CHILE LIMON 150 GR X 17 X 1 AS | E57: 17 | F57: 1 | G57: 17 | H57: 0.1 | I57: 1545 | J57: =+I57+I57*H57 -> 1699.5 | K57: =+J57*F57 -> 1699.5 | L57: 1800 | M57: =+N57/G57 -> 0 | O57: =+N57*I57 -> 0 | P57: 0 | Q57: =+O57-P57 -> 0 | R57: =+Q57*H57 -> 0 | S57: =+R57+Q57 -> 0 | T57: 1700 | U57: 0 | AB57: 0 | AK57: 0 | AL57: 0
B58: 154 | C58: 7703133079996 | D58: TOSTI NACHOS QUESO 150 GR X 17 X 1 AS | E58: 17 | F58: 1 | G58: 17 | H58: 0.1 | I58: 1545 | J58: =+I58+I58*H58 -> 1699.5 | K58: =+J58*F58 -> 1699.5 | L58: 1800 | M58: =+N58/G58 -> 0 | O58: =+N58*I58 -> 0 | P58: 0 | Q58: =+O58-P58 -> 0 | R58: =+Q58*H58 -> 0 | S58: =+R58+Q58 -> 0 | T58: 1700 | U58: 0 | AB58: 0 | AK58: 0 | AL58: 0
A59: OTROS | B59: 155 | C59: 77031330200227 | D59: MEKATROCITOS POLLO 28 GR X 12 X 8 DE | E59: 8 | F59: 12 | G59: 96 | H59: 0.1 | I59: 273 | J59: 300.3 | K59: 3603.6 | L59: 400 | M59: 0 | O59: 0 | P59: 0 | Q59: 0 | R59: 0 | S59: 0 | T59: 3600 | U59: -7 | AB59: =SUM(V59:AA59) -> 0 | AK59: 0 | AL59: -7
B60: 156 | C60: 7703133024242 | D60: TOZINETAS FRED 40g X 40 X 1 AS | E60: 40 | F60: 1 | G60: 40 | H60: 0.16 | I60: 954.55 | J60: 1107.278 | K60: 1107.278 | L60: 1280 | M60: 0 | O60: 0 | P60: 0 | Q60: 0 | R60: 0 | S60: 0 | T60: 1100 | U60: 0 | AB60: 0 | AK60: 0 | AL60: 0
B61: 157 | C61: 7703133024211 | D61: TOZINETAS FRED 25G X 48 DE | E61: 48 | F61: 1 | G61: 48 | H61: 0.16 | I61: 498 | J61: 577.68 | K61: 577.68 | L61: 600 | M61: 0 | O61: 0 | P61: 0 | Q61: 0 | R61: 0 | S61: 0 | T61: 600 | U61: 50 | AB61: =SUM(V61:AA61) -> 0 | AK61: 0 | AL61: 50
B62: 158 | C62: 7703133024105 | D62: COSTILLITAS FRED 25GX 48 DE | E62: 48 | F62: 1 | G62: 48 | H62: 0.16 | I62: 498 | J62: 577.68 | K62: 577.68 | L62: 700 | M62: 0 | O62: 0 | P62: 0 | Q62: 0 | R62: 0 | S62: 0 | T62: 600 | U62: 31 | AB62: =SUM(V62:AA62) -> 0 | AK62: 0 | AL62: 31
B63: 159 | D63: PAPAS CHIPS 45 GRMS | E63: 48 | F63: 1 | G63: 48 | H63: 0.16 | I63: 646.8 | J63: 750.288 | K63: 750.288 | L63: 900 | M63: 0 | O63: 0 | P63: 0 | Q63: 0 | R63: 0 | S63: 0 | T63: 560 | U63: 0 | AB63: 0 | AK63: 0 | AL63: 0
B64: 160 | D64: PAPAS CHIPS 150 GRMS | E64: 17 | F64: 1 | G64: 17 | H64: 0.16 | I64: 1939.7 | J64: 2250.052 | K64: 2250.052 | L64: 900 | M64: 0 | O64: 0 | P64: 0 | Q64: 0 | R64: 0 | S64: 0 | T64: 2250 | U64: 0 | AB64: 0 | AK64: 0 | AL64: 0
B65: 161 | C65: 7703133077958 | D65: LONCHERA DIVERTIDA 241g X 12 AS | E65: 12 | F65: 1 | G65: 12 | H65: 0.16 | I65: 3275.8621 | J65: 3800.000036 | K65: 3800.000036 | L65: 4650 | M65: 0 | O65: 0 | P65: 0 | Q65: 0 | R65: 0 | S65: 0 | T65: 4000 | U65: 97 | AB65: 0 | AK65: 0 | AL65: 97
C66: 7703133023979 | D66: LONCHIPACK 309g X 12 X 12 AS | E66: 12 | F66: 1 | G66: 12 | H66: 0.16 | I66: 4051.72 | J66: 4699.9952 | K66: 4699.9952 | L66: 6050 | M66: 0 | O66: 0 | P66: 0 | Q66: 0 | R66: 0 | S66: 0 | AB66: 0
A67: CRESPAS | D67: MEKATO NATURAL 25 GR X 12 X 6 | E67: 12 | F67: 6 | G67: 72 | H67: 0.16 | I67: 474.16 | J67: 550.0256 | K67: 3300.1536 | L67: 700 | M67: 0 | O67: 0 | P67: 0 | Q67: 0 | R67: 0 | S67: 0
D68: MEKATO LIMON 25 GR X 12 X 6 | E68: 12 | F68: 6 | G68: 72 | H68: 0.16 | I68: 474.16 | J68: 550.0256 | K68: 3300.1536 | L68: 700 | M68: 0 | O68: 0 | P68: 0 | Q68: 0 | R68: 0 | S68: 0
D69: CRESPAS SALSA TOMATE 25 GR | E69: 12 | F69: 6 | G69: 72 | H69: 0.16 | I69: 505 | J69: 585.8 | K69: 3514.8 | L69: 700 | M69: 0 | O69: 0 | P69: 0 | Q69: 0 | R69: 0 | S69: 0
D70: CRESPAS LIMON 25 GR | E70: 12 | F70: 6 | G70: 72 | H70: 0.16 | I70: 505 | J70: 585.8 | K70: 3514.8 | L70: 700 | M70: 0 | O70: 0 | P70: 0 | Q70: 0 | R70: 0 | S70: 0 | T70: 2439.64066 | AL70: =+U72+AB70-AK70 -> 0
D71: CRESPAS POLLO 25 GR | E71: 12 | F71: 6 | G71: 72 | H71: 0.16 | I71: 505 | J71: 585.8 | K71: 3514.8 | L71: 700 | M71: 0 | O71: 0 | P71: 0 | Q71: 0 | R71: 0 | S71: 0 | T71: 3658.87142
A72: MEKATO | D72: ROSKOTAS AREQUIPE 14G X 12 X 7 | E72: 7 | F72: 12 | G72: 84 | H72: 0.1 | I72: 436.38 | J72: 480.018 | K72: 6074.4096 | L72: 700 | M72: 0 | O72: 0 | P72: =+O72*$O$85 -> 0 | Q72: 0 | R72: 0 | S72: 0 | T72: 3660.05056 | AL72: =+U73+AB72-AK72 -> 0
D73: MEKATO ESCOLAR 205 GR X 24 | E73: 24 | F73: 1 | G73: 24 | H73: 0.16 | I73: 2844.82 | J73: 3299.9912 | K73: =+J73*F73 -> 3299.9912 | L73: 200 | M73: 0 | O73: 0 | P73: 0 | Q73: 0 | R73: 0 | S73: 0 | T73: 3785.0394 | AL73: 0
D74: TICOS 9 G X 12 X 12 | E74: 12 | F74: 12 | G74: 144 | H74: 0.16 | I74: 86.21 | J74: 100.0036 | K74: 1200.0432 | L74: 200 | M74: 0 | O74: 0 | P74: 0 | Q74: 0 | R74: 0 | S74: 0 | T74: 3781.50198 | AL74: 0
D75: TICOS PICANTE 9 G X 12 X 20 | E75: 12 | F75: 20 | G75: 240 | H75: 0.16 | I75: 133.62 | J75: 154.9992 | K75: 3099.984 | L75: 200 | M75: 0 | O75: 0 | P75: 0 | Q75: 0 | R75: 0 | S75: 0 | T75: 3785.0394 | AL75: 0
D76: TICOS 38G X 36 | E76: 36 | F76: 1 | G76: 36 | H76: 0.16 | I76: 327.59 | J76: 380.0044 | K76: 380.0044 | L76: 500 | M76: 0 | O76: 0 | P76: 0 | Q76: 0 | R76: 0 | S76: 0 | T76: 3785.0394 | AL76: 0
D77: TICOS QUESO 12 G X 12 X 20 | E77: 20 | F77: 12 | G77: 240 | H77: 0.16 | I77: 129.31 | J77: 149.9996 | K77: 1799.9952 | L77: 200 | M77: 0 | O77: 0 | P77: 0 | Q77: 0 | R77: 0 | S77: 0 | T77: 3557.46538 | AL77: 0
D78: TICOS QUESO 38 G X 36 | E78: 36 | F78: 1 | G78: 36 | H78: 0.16 | I78: 344.8276 | J78: 400.000016 | K78: 400.000016 | L78: 500 | M78: 0 | O78: 0 | P78: 0 | Q78: 0 | R78: 0 | S78: 0 | T78: 3415.96858 | AL78: 0
D79: TICOS QUESO 8 G X 12 X 20 | E79: 20 | F79: 12 | G79: 240 | H79: 0.16 | I79: 133.62 | J79: 154.9992 | K79: 1859.9904 | L79: 500 | M79: 0 | O79: 0 | P79: 0 | Q79: 0 | R79: 0 | S79: 0 | T79: 4513.74792 | AL79: 0
D80: TICOS POLLO 9G 12 X 20 | E80: 12 | F80: 20 | G80: 240 | H80: 0.16 | I80: 133.62 | J80: 154.9992 | K80: 3099.984 | L80: 200 | M80: 0 | O80: 0 | P80: 0 | Q80: 0 | R80: 0 | S80: 0 | T80: 2094.29495 | AL80: 0
D81: TICOS POLLO 38 G X 36 | E81: 36 | F81: 1 | G81: 36 | H81: 0.16 | I81: 345 | J81: 400.2 | K81: 400.2 | L81: 500 | M81: 0 | O81: 0 | P81: 0 | Q81: 0 | R81: 0 | S81: 0 | T81: 2094.29495 | AL81: 0
D82: TICOS CARAMELO 38 G X 36 | E82: 36 | F82: 1 | G82: 36 | H82: 0.16 | I82: 344.8276 | J82: 400.000016 | K82: 400.000016 | L82: 500 | M82: 0 | O82: 0 | P82: 0 | Q82: 0 | R82: 0 | S82: 0 | T82: 2094.29495 | AL82: 0
C83: 7703133023979 | D83: TICO PICANTE 38G X 36 | E83: 36 | F83: 1 | G83: 36 | H83: 0.16 | I83: 327.5862 | J83: 379.999992 | K83: 379.999992 | L83: 500 | M83: 0 | O83: =+N83*I83 -> 0 | P83: 0 | Q83: =+O83-P83 -> 0 | R83: =+Q83*H83 -> 0 | S83: =+R83+Q83 -> 0 | T83: 2787.54795 | AL83: 0
A84: CUPO CREDITO TOTAL | C84: 0 | E84: CUPO ACTUAL | F84: 0 | M84: =SUM(M5:M83) -> 0 | N84: =S84/1000 -> 0 | O84: =SUM(O5:O83) -> 0 | P84: =SUM(P5:P83) -> 0 | Q84: =SUM(Q5:Q83) -> 0 | R84: =SUM(R5:R83) -> 0 | S84: =SUM(S5:S83) -> 0 | T84: 2787.54795 | AL84: 0
T85: 2787.54795 | AL85: 0
T86: 1880.7283 | AL86: 0
T87: 1880.7283 | AL87: 0
T88: 1880.7283 | AL88: 0
T89: 3557.46538 | AL89: 0
T90: 3658.87142 | AL90: 0
T91: 3414.78944 | AL91: 0
T92: 3710.0217 | AL92: 0
T93: 3454.8802 | AL93: 0
T94: 3454.8802 | AL94: 0
T95: 1444.6498 | AL95: 0
T96: 2399.5499 | AL96: 0
T97: 2570.5252 | AL97: 0
T98: 2594.108 | AL98: 0
T99: 3354.6533 | AL99: 0
T100: 3354.6533 | AL100: 0
T101: 3557.46538 | AL101: 0
T102: 2439.64066 | AL102: 0
T103: 1833.766 | AL103: 0
T104: 3587.0252 | AL104: 0
T105: 3587.0252 | AL105: 0
T106: 3587.0252 | AL106: =+#REF!+AB106-AK106 -> 
T107: 1754.56032 | AL107: =+U107+AB107-AK107 -> 0
T108: 1707.39472 | AL108: 0
T109: 1707.39472 | AL109: 0
T110: 1707.39472 | AL110: 0
T111: 1707.39472 | AL111: 0
T112: 1707.39472 | AL112: 0
T113: 3253.24726 | AL113: 0
T114: 3415.96858 | AL114: 0
T115: 6607.90056 | AL115: 0
T116: 6607.90056 | AL116: 0
T117: 6607.90056 | AL117: 0
T118: 6607.90056 | AL118: 0
T119: 1982.47995 | AL119: 0
T120: 2693.15576 | AL120: 0
T121: 2693.15576 | AL121: 0

Sheet LISTA DE PRECIOS
C1: inventario de productos para venta en granada
A3: 101 | B3: 7703133078771 | C3: YUPIS QUESO 45g X 36 X 1 AS | D3: 650 | E3: =36*2+25 -> 97 | F3: =+E3*D3 -> 63050
A4: 102 | B4: 7703133077309 | C4: YUPIS SALADO 60g X 36 X 1 AS | D4: 650 | E4: 252 | F4: =+E4*D4 -> 163800
A5: 103 | C5: YUPIS PICANTE 45g X 36 X 1 AS | D5: 650 | E5: 162 | F5: 105300
A6: 104 | B6: 7703133078818 | C6: YUPI CARAMELO 50gX36X1 AS | D6: 650 | E6: 168 | F6: 109200
A7: 105 | C7: YUPI AREQUIQUESO 45grX36 | D7: 650 | E7: 13 | F7: 8450
A8: 106 | C8: YUPI UVA 45grX36 | D8: 650 | F8: 0
A9: 107 | B9: 7703133021739 | C9: YUPIS SALADO 10g X 12 X 20 DE | D9: 1750 | E9: 20 | F9: 35000
A10: 108 | B10: 7703133077248 | C10: TICK CHEESE 100G X 24 X 1 AS | D10: 900 | F10: 0
A11: 109 | B11: 7703133077194 | C11: TICK CHEESE 40g X 12 X 6 DE | D11: 6720 | F11: 0
A12: 110 | B12: 7703133021227 | C12: PALOMITAS CARAMELO 68g X 36 X 1 AS | D12: 700 | E12: 6 | F12: 4200
A13: 111 | B13: 7703133021166 | C13: PALOMITAS CARAMELO 20g X 12 X 12 DE | D13: 5000 | E13: 5 | F13: 25000
A14: 112 | B14: 7703133091275 | C14: RIZADAS NATURAL 30g X 12 X 6 DE | D14: 9000 | E14: 2 | F14: 18000
A15: 113 | B15: 7703133070324 | C15: RIZADAS POLLO 30g X 12 X 6 DE | D15: 9000 | E15: 7 | F15: 63000
A16: 114 | B16: 7703133070362 | C16: RIZADAS MAYONESA 30g X 12 X 6 DE | D16: 9000 | E16: 6 | F16: 54000
A17: 115 | B17: 7703133070348 | C17: RIZADAS LIMON 30g X 12 X 6 DE | D17: 9000 | E17: 5 | F17: 45000
A18: 116 | B18: 7703133070287 | C18: RIZADAS BBQ RANCHERA 28g X 12 X 6 DE | D18: 9000 | F18: 0
A19: 117 | C19: RIZADAS MEXICAN FUSION 28g X 12 X 6 DE | D19: 9000 | F19: 0
A20: 118 | B20: 7703133072922 | C20: RIZADAS NATURAL 115g X 20 X 1 AS | D20: 1800 | F20: 0
A21: 119 | B21: 7703133072946 | C21: RIZADAS MAYONESA 115g X 20 X 1 AS | D21: 1800 | F21: 0
A22: 120 | B22: 7703133072984 | C22: RIZADAS LIMON 115g X 20 X 1 AS | D22: 1800 | E22: 17 | F22: 30600
A23: 121 | B23: 7703133078856 | C23: RIZADAS POLLO 115g X 20 X 1 AS | D23: 1800 | F23: 0
A24: 122 | C24: RIZADAS MEXICAN FUSION 115g X 20 X 1 AS | D24: 1800 | F24: 0
A25: 123 | B25: 7703133072953 | C25: RIZADAS NATURAL 45GX8X6 DE | D25: 6800 | F25: 0
A26: 124 | B26: 7703133072953 | C26: RIZADAS MAYONESA 45GX8X6 DE | D26: 6800 | F26: 0
A27: 125 | B27: 7703133073011 | C27: RIZADAS POLLO 45GX8X6 DE | D27: 6800 | E27: 4 | F27: 27200
A28: 126 | B28: 7703133072991 | C28: RIZADAS LIMON 45GX8X6 DE | D28: 6800 | E28: 1 | F28: 6800
A29: 127 | B29: 7703133070409 | C29: LIZA´S S/TOMATE 30g X 12 X 5 DE | D29: 7500 | E29: 5 | F29: 37500
A30: 128 | B30: 7703133072423 | C30: LIZA´S S/ROSADA 30g X 12 X 5 DE | D30: 7500 | E30: 10 | F30: 75000
A31: 129 | B31: 7703133070461 | C31: LIZA'S POLLO 30g X 12 X 5 DE | D31: 7500 | E31: 2 | F31: 15000
A32: 130 | B32: 7703133070447 | C32: LIZA´S LIMÓN 30g X 12 X 5 DE | D32: 7500 | E32: 1.5 | F32: 11250
A33: 131 | B33: 7703133072380 | C33: EL GOLPE 110g X 24 X 1 AS | D33: 1600 | F33: 0
A34: 132 | B34: 7703133077231 | C34: GOLPE 30g X 12 X 6 DE | D34: 6100 | F34: 0
A35: 133 | B35: 7703133077231 | C35: GOLPE MIX 45g X 8 X 6 DE | D35: 7520 | E35: 7 | F35: 52640
A36: 134 | B36: 7703133072571 | C36: EL GOLPE 45 gr 8 X 6 DE | D36: 7520 | E36: 5 | F36: 37600
A37: 135 | B37: 7703133072540 | C37: EL GOLPE LIMON 45 gr 8 X 6 DE | D37: 7520 | E37: 2 | F37: 15040
A38: 136 | B38: 7703133072533 | C38: EL GOLPE RANCHERO 45G X 8 X 6 DE | D38: 7520 | E38: 8 | F38: 60160
A39: 137 | B39: 7703133072496 | C39: GOLPE RANCHERO 140 GR 17 X 1 AS | D39: 2500 | F39: 0
A40: 138 | C40: WOW MIX NATURAL 45 gr X 8 X 6 DE | D40: 7520 | F40: 0
A41: 139 | C41: WOW MIX QUESO 45 gr X 8 X 6 DE | D41: 7520 | F41: 0
A42: 140 | C42: WOW MIX BBQ 45 gr X 8 X 6 DE | D42: 7520 | F42: 0
A43: 141 | B43: 7703133072380 | C43: TOSTI AREPAS 150g X 17 X 1 AS | D43: 1700 | F43: 0
A44: 142 | B44: 7703133072274 | C44: COMBO TOSTI SUR | D44: 4000 | E44: 3 | F44: 12000
A45: 143 | C45: TOSTI AREPAS 28g X 12 X 6 | D45: 5000 | F45: 0
A46: 144 | B46: 7703133072397 | C46: TOSTI EMPANADA CARNE 28GX12X6 DE | D46: 5000 | E46: 1 | F46: 5000
A47: 145 | B47: 7703133072335 | C47: TOSTI EMPANADA LIMON 28 G X 12 X 6 DE | D47: 5000 | E47: 3.5 | F47: 17500
A48: 146 | B48: 7703133072199 | C48: TOSTI PIZZA POLLO 28G X 12 X 6 DE | D48: 5000 | F48: 0
A49: 147 | B49: 7703133072199 | C49: TOSTI PIZZA QUESO 28G X 12 X 6 DE | D49: 5000 | F49: 0
A50: 148 | C50: TOSTI NACHOS QUESO 28 GR X 12 X 6 DE | D50: 5000 | F50: 0
A51: 149 | B51: 7703133072304 | C51: TOSTIEMPANADA QUESO PICANTE 28G X 12 X 6 | D51: 5000 | F51: 0
A52: 150 | C52: TOSTI NACHOS CHILE LIMON 28 GR X 12 X 6 | D52: 5000 | F52: 0
A53: 151 | B53: 7703133079996 | C53: TOSTI PLATANITOS 30 GR X 12 X 6 DE | D53: 5400 | F53: 0
A54: 152 | C54: TOSTI NACHOS 45 GR 8 X 6 | D54: 650 | F54: 0
A55: 153 | B55: 7703133079996 | C55: TOSTI NACHOS CHILE LIMON 150 GR X 17 X 1 AS | D55: 1700 | F55: 0
A56: 154 | B56: 7703133079996 | C56: TOSTI NACHOS QUESO 150 GR X 17 X 1 AS | D56: 1700 | F56: 0
A57: 155 | B57: 77031330200227 | C57: MEKATROCITOS POLLO 28 GR X 12 X 8 DE | D57: 3600 | E57: 3 | F57: 10800
A58: 156 | B58: 7703133024242 | C58: TOZINETAS FRED 40g X 40 X 1 AS | D58: 1100 | F58: 0
A59: 157 | B59: 7703133024211 | C59: TOZINETAS FRED 25G X 48 DE | D59: 600 | E59: 11 | F59: 6600
A60: 158 | B60: 7703133024105 | C60: COSTILLITAS FRED 25GX 48 DE | D60: 600 | F60: 0
A61: 159 | C61: PAPAS CHIPS 45 GRMS | D61: 560 | E61: 5 | F61: 2800
A62: 160 | C62: PAPAS CHIPS 150 GRMS | D62: 2250 | F62: 0
A63: 161 | B63: 7703133077958 | C63: LONCHERA DIVERTIDA 241g X 12 AS | D63: 4000 | E63: 16 | F63: 64000
F64: =SUM(F3:F63) -> 1181490
F65: 1191990
E66: diferencia | F66: =+F64-F65 -> -10500

Sheet COMPRAS
A1: codigo | B1: 101
A2: cantidad | B2: 20
A3: vr total | B3: 403200
A4: und medida | B4: 36
A5: dto | B5: 20
A6: iva | B6: 1.16
A10: codigo | B10: cant. Display | C10: vr total | D10: und x display | E10: cant uns | F10: dto | G10: vr dto | H10: vr. Con dto | I10: iva | J10: vr. Con iva | K10: vr unitario
E11: =+B11*D11 -> 0 | G11: =+C11*F11/100 -> 0 | H11: =+C11-G11 -> 0 | J11: =+H11*I11 -> 0 | K11: =+J11/E11 ->  | L11: =+K11*1.25 -> 
A12: 101 | B12: 20 | C12: 403200 | D12: 36 | E12: =+B12*D12 -> 720 | F12: 20 | G12: =+C12*F12/100 -> 80640 | H12: =+C12-G12 -> 322560 | I12: 1.16 | J12: =+H12*I12 -> 374169.6 | K12: =+J12/E12 -> 519.68 | L12: =+K12*1.25 -> 649.6
A13: 102 | B13: 15 | C13: 302400 | D13: 36 | E13: 540 | F13: 20 | G13: 60480 | H13: 241920 | I13: 1.16 | J13: 280627.2 | K13: 519.68 | L13: 649.6
A14: 103 | B14: 15 | C14: 302400 | D14: 36 | E14: 540 | F14: 20 | G14: 60480 | H14: 241920 | I14: 1.16 | J14: 280627.2 | K14: 519.68 | L14: 649.6
A15: 104 | B15: 25 | C15: 504000 | D15: 36 | E15: 900 | F15: 20 | G15: 100800 | H15: 403200 | I15: 1.16 | J15: 467712 | K15: 519.68 | L15: 649.6
A16: 105 | B16: 5 | C16: 100800 | D16: 36 | E16: 180 | F16: 20 | G16: 20160 | H16: 80640 | I16: 1.16 | J16: 93542.4 | K16: 519.68 | L16: 649.6
A17: 107 | B17: 15 | C17: 446760 | D17: 20 | E17: 300 | F17: 20 | G17: 89352 | H17: 357408 | I17: 1.16 | J17: 414593.28 | K17: 1381.9776 | L17: 1727.472
A18: 108 | B18: 1 | C18: 18408 | D18: 24 | E18: 24 | F18: 20 | G18: 3681.6 | H18: 14726.4 | I18: 1.16 | J18: 17082.624 | K18: 711.776 | L18: 889.72
A19: 109 | B19: 1 | C19: 34776 | D19: 6 | E19: 6 | F19: 20 | G19: 6955.2 | H19: 27820.8 | I19: 1.16 | J19: 32272.128 | K19: 5378.688 | L19: 6723.36
A20: 110 | B20: 1 | C20: 20952 | D20: 36 | E20: 36 | F20: 20 | G20: 4190.4 | H20: 16761.6 | I20: 1.16 | J20: 19443.456 | K20: 540.096 | L20: 675.12
A21: 111 | B21: 1 | C21: 49651.2 | D21: 12 | E21: 12 | F21: 20 | G21: 9930.24 | H21: 39720.96 | I21: 1.16 | J21: 46076.3136 | K21: 3839.6928 | L21: 4799.616
A22: 112 | B22: 1 | C22: 46584 | D22: 6 | E22: 6 | F22: 20 | G22: 9316.8 | H22: 37267.2 | I22: 1.16 | J22: 43229.952 | K22: 7204.992 | L22: 9006.24
A23: 113 | B23: 1 | C23: 46584 | D23: 6 | E23: 6 | F23: 20 | G23: 9316.8 | H23: 37267.2 | I23: 1.16 | J23: 43229.952 | K23: 7204.992 | L23: 9006.24
A24: 114 | B24: 2 | C24: 93168 | D24: 6 | E24: 12 | F24: 20 | G24: 18633.6 | H24: 74534.4 | I24: 1.16 | J24: 86459.904 | K24: 7204.992 | L24: 9006.24
A25: 118 | B25: 2 | C25: 61360 | D25: 20 | E25: 40 | F25: 20 | G25: 12272 | H25: 49088 | I25: 1.16 | J25: 56942.08 | K25: 1423.552 | L25: 1779.44
A26: 119 | B26: 2 | C26: 61360 | D26: 20 | E26: 40 | F26: 20 | G26: 12272 | H26: 49088 | I26: 1.16 | J26: 56942.08 | K26: 1423.552 | L26: 1779.44
A27: 120 | B27: 2 | C27: 61360 | D27: 20 | E27: 40 | F27: 20 | G27: 12272 | H27: 49088 | I27: 1.16 | J27: 56942.08 | K27: 1423.552 | L27: 1779.44
A28: 121 | B28: 2 | C28: 61360 | D28: 20 | E28: 40 | F28: 20 | G28: 12272 | H28: 49088 | I28: 1.16 | J28: 56942.08 | K28: 1423.552 | L28: 1779.44
A29: 123 | B29: 5 | C29: 175920 | D29: 6 | E29: 30 | F29: 20 | G29: 35184 | H29: 140736 | I29: 1.16 | J29: 163253.76 | K29: 5441.792 | L29: 6802.24
A30: 124 | B30: 15 | C30: 527760 | D30: 6 | E30: 90 | F30: 20 | G30: 105552 | H30: 422208 | I30: 1.16 | J30: 489761.28 | K30: 5441.792 | L30: 6802.24
A31: 125 | B31: 10 | C31: 351840 | D31: 6 | E31: 60 | F31: 20 | G31: 70368 | H31: 281472 | I31: 1.16 | J31: 326507.52 | K31: 5441.792 | L31: 6802.24
A32: 126 | B32: 10 | C32: 351840 | D32: 6 | E32: 60 | F32: 20 | G32: 70368 | H32: 281472 | I32: 1.16 | J32: 326507.52 | K32: 5441.792 | L32: 6802.24
A33: 128 | B33: 5 | C33: 161700 | D33: 5 | E33: 25 | F33: 20 | G33: 32340 | H33: 129360 | I33: 1.16 | J33: 150057.6 | K33: 6002.304 | L33: 7502.88
A34: 129 | B34: 3 | C34: 97020 | D34: 5 | E34: 15 | F34: 20 | G34: 19404 | H34: 77616 | I34: 1.16 | J34: 90034.56 | K34: 6002.304 | L34: 7502.88
A35: 133 | B35: 3 | C35: 116697.6 | D35: 6 | E35: 18 | F35: 20 | G35: 23339.52 | H35: 93358.08 | I35: 1.16 | J35: 108295.3728 | K35: 6016.4096 | L35: 7520.512
A36: 135 | B36: 5 | C36: 194496 | D36: 6 | E36: 30 | F36: 20 | G36: 38899.2 | H36: 155596.8 | I36: 1.16 | J36: 180492.288 | K36: 6016.4096 | L36: 7520.512
A37: 136 | B37: 5 | C37: 194496 | D37: 6 | E37: 30 | F37: 20 | G37: 38899.2 | H37: 155596.8 | I37: 1.16 | J37: 180492.288 | K37: 6016.4096 | L37: 7520.512
A38: 140 | B38: 1 | C38: 38899.2 | D38: 6 | E38: 6 | F38: 20 | G38: 7779.84 | H38: 31119.36 | I38: 1.16 | J38: 36098.4576 | K38: 6016.4096 | L38: 7520.512
A39: 142 | B39: 3 | C39: 65512 | D39: 6 | E39: 18 | F39: 20 | G39: 13102.4 | H39: 52409.6 | I39: 1.1 | J39: 57650.56 | K39: 3202.808889 | L39: 4003.511111
A40: 145 | B40: 3 | C40: 78624 | D40: 6 | E40: 18 | F40: 20 | G40: 15724.8 | H40: 62899.2 | I40: 1.1 | J40: 69189.12 | K40: 3843.84 | L40: 4804.8
A41: 157 | B41: 1 | C41: 23904 | D41: 48 | E41: 48 | F41: 20 | G41: 4780.8 | H41: 19123.2 | I41: 1.16 | J41: 22182.912 | K41: 462.144 | L41: 577.68
A42: 161 | B42: 5 | C42: 196551.72 | D42: 12 | E42: 60 | F42: 20 | G42: 39310.344 | H42: 157241.376 | I42: 1.16 | J42: 182399.9962 | K42: 3039.999936 | L42: 3799.99992
J43: =SUM(J11:J42) -> 4809757.564
